Workbook

Sheet Cover
E1: THE REPUBLIC OF THE GAMBIA
D3: Gambia National Accounts Statistics Annual Bulletin
E25: APRIL 2019
A33: GAMBIA BUREAU OF STATISTICS, GBoS
A34: https://www.gbosdata.org/

Sheet Content
A2: TABLE OF CONTENTS
A5: Table 1.1: Gross Domestic Product (GDP) at Current Market Prices by Economic Activity (GMD Million)
A7: Table 1.2: Gross Domestic Product (GDP) at Constant 2013 Prices by Economic Activity (GMD Million)
A9: Table 1.3: Contribution of Gross Domestic Product (at Basic Prices) by Economic Activity (percent)
A11: Table 1.4: Growth Rates of Gross Domestic Product at Constant 2013 Prices (percent)
A13: Table 1.5: GDP deflator

Sheet Tab1.1_2013_GDP_P_Current
A1: Current GDP estimates, 2013 base year
A3: ISIC Rev.4 | B3: Industry | C3: IC/GO | D3: 2004 | E3: 2005 | F3: 2006 | G3: 2007 | H3: 2008 | I3: 2009 | J3: 2010 | K3: 2011 | L3: 2012 | M3: 2013 | N3: 2014 | O3: 2015 | P3: 2016 | Q3: 2017 | R3: 2018*
B4: Gross Domestic Product (GDP) market price | D4: 2.888595643e+10 | E4: 2.936700297e+10 | F4: 2.958443116e+10 | G4: 3.183060804e+10 | H4: 3.465927888e+10 | I4: 3.863812047e+10 | J4: 4.323070649e+10 | K4: 4.153171606e+10 | L4: 4.538929662e+10 | M4: 4.946359658e+10 | N4: 5.130907934e+10 | O4: 5.85810616e+10 | P4: 6.438993927e+10 | Q4: 7.014218825e+10 | R4: 78622559655
A5: A | B5: Agriculture, forestry and fishing | D5: 9099832640 | E5: 9424057144 | F5: 7573681214 | G5: 7501263757 | H5: 1.032004685e+10 | I5: 1.226150844e+10 | J5: 1.521428781e+10 | K5: 1.12976321e+10 | L5: 1.243374943e+10 | M5: 1.297040491e+10 | N5: 1.152342363e+10 | O5: 1.301020124e+10 | P5: 1.407652886e+10 | Q5: 1.473118851e+10 | R5: 1.561923282e+10
B6: Crop | D6: 6103625876 | E6: 6388604413 | F6: 4337161842 | G6: 3686338440 | H6: 6285448240 | I6: 8125928371 | J6: 1.082064417e+10 | K6: 6570670066 | L6: 7432120527 | M6: 7413605987 | N6: 6233471131 | O6: 6978245802 | P6: 7130316899 | Q6: 6525694144 | R6: 7185588646
B7: Livestock | C7: 0.1493708023 | D7: 1279625981 | E7: 1301919965 | F7: 1396379508 | G7: 1643344848 | H7: 1735765771 | I7: 1754466500 | J7: 1891170734 | K7: 2011972583 | L7: 2156805713 | M7: 2475418410 | N7: 2689993823 | O7: 2695667993 | P7: 2957402638 | Q7: 2936857005 | R7: 2979236913
B8: Forestry and logging | C8: 0.1813098868 | D8: 435122995.5 | E8: 456270739.7 | F8: 465062211 | G8: 469351706.1 | H8: 475970371.8 | I8: 469310442.6 | J8: 504817686.2 | K8: 522334859.9 | L8: 538266073.2 | M8: 567908487.4 | N8: 572346609.1 | O8: 576784730.9 | P8: 581257267 | Q8: 585764484.3 | R8: 590306651.7
B9: Fishing and aquaculture | C9: 0.4787507125 | D9: 1281457788 | E9: 1277262026 | F9: 1375077654 | G9: 1702228763 | H9: 1822862472 | I9: 1911803127 | J9: 1997655223 | K9: 2192654587 | L9: 2306557120 | M9: 2513472022 | N9: 2027612070 | O9: 2759502711 | P9: 3407552051 | Q9: 4682872879 | R9: 4864100608
B10: Industry | D10: 3307922835 | E10: 3375466699 | F10: 3586784616 | G10: 3781329766 | H10: 3868686289 | I10: 3945341428 | J10: 4248785736 | K10: 4781405442 | L10: 5427819466 | M10: 5883544649 | N10: 6780409791 | O10: 1.004281676e+10 | P10: 1.34804156e+10 | Q10: 1.25503699e+10 | R10: 1.223892332e+10
A11: B | B11: Mining and quarrying | D11: 36274506.85 | E11: 56818079.42 | F11: 60720159.6 | G11: 53528405.19 | H11: 71263158.91 | I11: 81876672.12 | J11: 95772814.22 | K11: 107615812.3 | L11: 121831258.4 | M11: 137781650.4 | N11: 261996810.5 | O11: 245733019.8 | P11: 238886001.1 | Q11: 324119267.9 | R11: 326702264.3
A12: C | B12: Manufacturing | C12: 0.5682428709 | D12: 1520000938 | E12: 1850713527 | F12: 1966007716 | G12: 2071878310 | H12: 1937914290 | I12: 1866211461 | J12: 1967360123 | K12: 2279557229 | L12: 2609049346 | M12: 2775502629 | N12: 3341134895 | O12: 3719460591 | P12: 3596987455 | Q12: 3134859327 | R12: 3472223980
A13: D | B13: Electricity, gas, steam and air conditioning supply | D13: 167958048.5 | E13: 219089589.2 | F13: 234656081.4 | G13: 319444554.6 | H13: 350486160.8 | I13: 374019763.3 | J13: 412808617.6 | K13: 413692157.6 | L13: 418255414.4 | M13: 456931209.7 | N13: 482924453.6 | O13: 595312927.3 | P13: 638763329.4 | Q13: 584594638.9 | R13: 1173192463
A14: E | B14: Water supply, sewerage, waste management and remediation activities | D14: 119743763.4 | E14: 156197408.6 | F14: 167295360.5 | G14: 227744329.5 | H14: 249875086.5 | I14: 266653098.3 | J14: 294307166.9 | K14: 294937076.6 | L14: 298190398.1 | M14: 325763862.6 | N14: 384209542.3 | O14: 441799990.3 | P14: 478908320.5 | Q14: 467552861.2 | R14: 469203375.7
A15: F | B15: Construction | D15: 1463945578 | E15: 1092648095 | F15: 1158105299 | G15: 1108734167 | H15: 1259147593 | I15: 1356580433 | J15: 1478537014 | K15: 1685603166 | L15: 1980493050 | M15: 2187565298 | N15: 2310144089 | O15: 5040510231 | P15: 8526870495 | Q15: 8039243804 | R15: 6797601238
B16: Services | D16: 1.474868024e+10 | E16: 1.490102491e+10 | F16: 1.645017797e+10 | G16: 1.825719498e+10 | H16: 1.836546901e+10 | I16: 1.974424023e+10 | J16: 2.126973985e+10 | K16: 2.280099562e+10 | L16: 2.471502407e+10 | M16: 2.726744916e+10 | N16: 2.895819372e+10 | O16: 3.039758834e+10 | P16: 3.142102471e+10 | Q16: 3.747371454e+10 | R16: 4.442945325e+10
A17: G | B17: Wholesale and retail trade; repair of motors and motocycles | C17: 0.5674787616 | D17: 9089441505 | E17: 8757997531 | F17: 9807751698 | G17: 1.147833486e+10 | H17: 1.123480048e+10 | I17: 1.173006202e+10 | J17: 1.27047759e+10 | K17: 1.340011618e+10 | L17: 1.455754554e+10 | M17: 1.558250912e+10 | N17: 1.666404194e+10 | O17: 1.787206227e+10 | P17: 1.816920098e+10 | Q17: 2.290245276e+10 | R17: 2.66324258e+10
A18: H | B18: Transport and storage | C18: 0.4989055004 | D18: 671682074.5 | E18: 805938669 | F18: 823936738.4 | G18: 870241340.7 | H18: 915768066.5 | I18: 973535612.7 | J18: 1139242930 | K18: 1301882437 | L18: 1457734318 | M18: 1731429690 | N18: 2088274322 | O18: 1847335286 | P18: 2073521442 | Q18: 2295478035 | R18: 2812177744
A19: I | B19: Accommodation and food service activities | C19: 0.528323599 | D19: 447546560.7 | E19: 562304435.9 | F19: 643859477 | G19: 755195527 | H19: 814097821.7 | I19: 823330021.4 | J19: 564007098.6 | K19: 710264376.4 | L19: 777803959.6 | M19: 905782024.1 | N19: 876356310 | O19: 821865164.4 | P19: 1074571746 | Q19: 1154292081 | R19: 1707688142
A20: J | B20: Information and Communication | C20: 0.6232815162 | D20: 697391564.4 | E20: 734222670.6 | F20: 797798779.6 | G20: 888123794.5 | H20: 839742900.9 | I20: 940081191 | J20: 1105450761 | K20: 1213597773 | L20: 1390503882 | M20: 1765095128 | N20: 1683136520 | O20: 1858931322 | P20: 1821550409 | Q20: 2320360266 | R20: 2664331495
A21: K | B21: Financial and insurance activities | C21: 0.4313128832 | D21: 387131670.6 | E21: 412099075.1 | F21: 463285101.5 | G21: 459644168 | H21: 582292730.1 | I21: 778041175.3 | J21: 822317043 | K21: 979041281.4 | L21: 1064334527 | M21: 1193253259 | N21: 1346759348 | O21: 1269761722 | P21: 1164430371 | Q21: 1417064822 | R21: 2571224936
A22: L | B22: Real estate activities | C22: 0.4429195858 | D22: 682047177.9 | E22: 723546104.7 | F22: 791966098 | G22: 839353420.8 | H22: 873848303.3 | I22: 928187780.6 | J22: 965477688.2 | K22: 997466228.6 | L22: 1024929165 | M22: 1119592412 | N22: 1149392980 | O22: 1284650308 | P22: 1337181693 | Q22: 1424663272 | R22: 1499808038
A23: M | B23: Professional, scientific and technical activities | C23: 0.3998816226 | D23: 63987240.77 | E23: 67880522.49 | F23: 74299442.96 | G23: 78745153.06 | H23: 81981340.27 | I23: 87079276.79 | J23: 90577683.32 | K23: 93578734.42 | L23: 96155209.47 | M23: 105036178.7 | N23: 112365383.5 | O23: 115738165 | P23: 135880704.7 | Q23: 122136146.6 | R23: 119310344.5
A24: N | B24: Administrative and support service activities | C24: 0.3299929415 | D24: 362116658.5 | E24: 384149522.4 | F24: 420475483.7 | G24: 445634650.8 | H24: 463948884.8 | I24: 492799132.4 | J24: 512597318.2 | K24: 529580869.6 | L24: 544161659.9 | M24: 594420849.9 | N24: 672965539.5 | O24: 708812912.4 | P24: 755364486.2 | Q24: 844326020.1 | R24: 790904238
A25: O | B25: Public administration and defence; compulsory social security | C25: 0.5557042691 | D25: 946268941 | E25: 983139339.6 | F25: 1034827807 | G25: 787805481.6 | H25: 811178194.7 | I25: 1107078497 | J25: 1323432869 | K25: 1420193420 | L25: 1527385771 | M25: 1727435505 | N25: 1592915459 | O25: 1732861295 | P25: 1651124042 | Q25: 1694960564 | R25: 2234733864
A26: P | B26: Education | C26: 0.2339573325 | D26: 544446858.2 | E26: 582780012.4 | F26: 634266507.4 | G26: 671885599.4 | H26: 741414957.3 | I26: 786261545.8 | J26: 872507130.5 | K26: 937621403.4 | L26: 1012291402 | M26: 1156209336 | N26: 1109597998 | O26: 1176831269 | P26: 1364573976 | Q26: 1507407823 | R26: 1485175772
A27: Q | B27: Human health and social work activities | C27: 0.4197194776 | D27: 243760845.2 | E27: 249208771.7 | F27: 294793145 | G27: 294186439.3 | H27: 296453888.7 | I27: 361911580.6 | J27: 404258645.1 | K27: 419663326.8 | L27: 421375110.3 | M27: 461652123.5 | N27: 440731129.8 | O27: 421876827.7 | P27: 486319118.2 | Q27: 448754214.3 | R27: 511454566.1
A28: R | B28: Arts, entertainment and recreation | C28: 0.5275427888 | D28: 141193428.8 | E28: 146929806.1 | F28: 152726156.9 | G28: 158515003.9 | H28: 163559714.8 | I28: 169533813.5 | J28: 176266206.5 | K28: 183844672 | L28: 193708350 | M28: 213113661.7 | N28: 283088136 | O28: 357357463.6 | P28: 387607013.3 | Q28: 420039952.4 | R28: 446835418.5
A29: S | B29: Other service activities | C29: 0.6495412157 | D29: 471665710.9 | E29: 490828447.5 | F29: 510191529.3 | G29: 529529544.3 | H29: 546381724.8 | I29: 566338585.1 | J29: 588828575.9 | K29: 614144926.3 | L29: 647095175.9 | M29: 711919865 | N29: 938568648.8 | O29: 929504330.1 | P29: 999698725.2 | Q29: 921778574.9 | R29: 953382888.8
B30: GDP basic price (Gross Value Added) | D30: 2.715643571e+10 | E30: 2.770054875e+10 | F30: 2.76106438e+10 | G30: 2.953978851e+10 | H30: 3.255420215e+10 | I30: 3.59510901e+10 | J30: 4.07328134e+10 | K30: 3.888003316e+10 | L30: 4.257659297e+10 | M30: 4.612139871e+10 | N30: 4.726202714e+10 | O30: 5.345060634e+10 | P30: 5.897796917e+10 | Q30: 6.475527295e+10 | R30: 7.228760939e+10
B31: Taxes less subsidies on products (+) | D31: 1729520719 | E31: 1666454224 | F31: 1973787364 | G31: 2290819530 | H31: 2105076730 | I31: 2687030364 | J31: 2497893093 | K31: 2651682900 | L31: 2812703659 | M31: 3342197869 | N31: 4047052197 | O31: 5130455265 | P31: 5411970103 | Q31: 5386915297 | R31: 6334950268
B33: Items
B34: Population estimates | C34: Population estimates | M34: 1857181 | N34: 1897597 | O34: 1958560 | P34: 2020414 | Q34: 2083429 | R34: 2147677
B35: GDP per Capita (GMD) | C35: GDP per Capita (GMD) | M35: =M4/M34 -> 26633.6973 | N35: =N4/N34 -> 27038.97579 | O35: 29910.27163 | P35: 31869.67585 | Q35: 33666.70438 | R35: =R4/R34 -> 36608.18627
B36: GDP per Capita (USD) | C36: GDP per Capita (USD) | M36: =M35/M37 -> 685.1481957 | N36: 651.0984082 | O36: 703.6687007 | P36: 727.2814363 | Q36: 722.3529595 | R36: 742.7102103
B37: Exchange rate (1USD to GMD) annual average | C37: Exchange rate (1USD to GMD) annual average | M37: 38.8729 | N37: 41.52824742 | O37: 42.50618451 | P37: 43.82027955 | Q37: 46.607 | R37: 49.29
B39: 2018* Provisional data

Sheet Tab 1.2_2013_GDP_P_Constant
A1: Constant GDP estimates, 2013 base year
A3: ISIC Rev.4 | B3: Industry | C3: 2004 | D3: 2005 | E3: 2006 | F3: 2007 | G3: 2008 | H3: 2009 | I3: 2010 | J3: 2011 | K3: 2012 | L3: 2013 | M3: 2014 | N3: 2015 | O3: 2016 | P3: 2017 | Q3: 2018
B4: Gross Domestic Product (GDP) market price | C4: 4.140508754e+10 | D4: 4.043135189e+10 | E4: 4.020672303e+10 | F4: 4.143031389e+10 | G4: 4.402215522e+10 | H4: 4.695655069e+10 | I4: 4.973090142e+10 | J4: 4.568755819e+10 | K4: 4.808230322e+10 | L4: 4.946359658e+10 | M4: 4.876745457e+10 | N4: 5.074647389e+10 | O4: 5.173266042e+10 | P4: 5.422752551e+10 | Q4: 5.777781597e+10
A5: A | B5: Agriculture, forestry and fishing | C5: 1.326408236e+10 | D5: 1.288191511e+10 | E5: 1.073292791e+10 | F5: 1.02823003e+10 | G5: 1.346705741e+10 | H5: 1.547615259e+10 | I5: 1.730350892e+10 | J5: 1.250388703e+10 | K5: 1.331749646e+10 | L5: 1.297040491e+10 | M5: 1.136406948e+10 | N5: 1.181296762e+10 | O5: 1.178525871e+10 | P5: 1.12691639e+10 | Q5: 1.13708326e+10
B6: Crop | C6: 9198950967 | D6: 8823126559 | E6: 6502248085 | F6: 5515049554 | G6: 8558084416 | H6: 1.064612751e+10 | I6: 1.231415203e+10 | J6: 7333391019 | K6: 7954512861 | L6: 7413605987 | M6: 6374745231 | N6: 6744770200 | O6: 6566629067 | P6: 5352138357 | Q6: 5704726584
B7: Livestock | C7: 1881098312 | D7: 1898442772 | E7: 1925389217 | F7: 2159754728 | G7: 2222594377 | H7: 2119329786 | I7: 2225411659 | J7: 2300455464 | K7: 2396842811 | L7: 2475418410 | M7: 2406895849 | N7: 2015129065 | O7: 1954384914 | P7: 1741489551 | Q7: 1643581612
B8: Forestry and logging | C8: 485819316.1 | D8: 500293613.2 | E8: 515344819.4 | F8: 494731026.6 | G8: 499678336.9 | H8: 500295573.4 | I8: 515204189.8 | J8: 533081775.2 | K8: 549340769.4 | L8: 567908487.4 | M8: 544107595.1 | N8: 549995292.7 | O8: 461759890.5 | P8: 408009219.2 | Q8: 333723178.8
B9: Fishing and aquaculture | C9: 1698213766 | D9: 1660052165 | E9: 1789945784 | F9: 2112764993 | G9: 2186700279 | H9: 2210399715 | I9: 2248741040 | J9: 2336958767 | K9: 2416800021 | L9: 2513472022 | M9: 2038320802 | N9: 2503073065 | O9: 2802484838 | P9: 3767526777 | Q9: 3688801227
B10: Industry | C10: 4881885046 | D10: 4792964166 | E10: 4981573909 | F10: 5110575398 | G10: 5058539421 | H10: 5021454285 | I10: 5167035080 | J10: 5398696812 | K10: 5677500219 | L10: 5883544649 | M10: 6446782331 | N10: 7904545860 | O10: 9423800547 | P10: 9089466573 | Q10: 9318242856
A11: B | B11: Mining and quarrying | C11: 51180479.5 | D11: 75712188.39 | E11: 76653335.64 | F11: 65841762.49 | G11: 85464711.08 | H11: 95798360.43 | I11: 109389266.2 | J11: 117735667.3 | K11: 128288315.1 | L11: 137781650.4 | M11: 272314728.3 | N11: 252464448.2 | O11: 231923996.7 | P11: 243235875.2 | Q11: 295694512.6
A12: C | B12: Manufacturing | C12: 2253501915 | D12: 2648704217 | E12: 2757778117 | F12: 2865089593 | G12: 2627868439 | H12: 2515788944 | I12: 2526283811 | J12: 2625269586 | K12: 2690001533 | L12: 2775502629 | M12: 2865917846 | N12: 2941519749 | O12: 2734259469 | P12: 2519157817 | Q12: 2526253675
A13: D | B13: Electricity, gas, steam and air conditioning supply | C13: 253432339.4 | D13: 302389652 | E13: 313370871.8 | F13: 418499509.8 | G13: 440313738.7 | H13: 450198175.9 | I13: 484772811.5 | J13: 465997920.6 | K13: 447095117.1 | L13: 456931209.7 | M13: 484478570 | N13: 533606586.3 | O13: 572326850.5 | P13: 529873560.7 | Q13: 600148303.6
A14: E | B14: Water supply, sewerage, waste management and remediation activities | C14: 180681678.2 | D14: 215585232.4 | E14: 223414167.1 | F14: 298364423.1 | G14: 313916627.4 | H14: 320963623.4 | I14: 345613213.2 | J14: 332227870.1 | K14: 318751333.3 | L14: 325763862.6 | M14: 384209542.3 | N14: 401450867.8 | O14: 435170133.6 | P14: 424851756.3 | Q14: 426351531.1
A15: F | B15: Construction | C15: 2143088633 | D15: 1550572877 | E15: 1610357417 | F15: 1462780110 | G15: 1590975904 | H15: 1638705182 | I15: 1700975978 | J15: 1857465769 | K15: 2093363921 | L15: 2187565298 | M15: 2439861644 | N15: 3775504209 | O15: 5450120097 | P15: 5372347563 | Q15: 5469794833
B16: Services | C16: 2.072881919e+10 | D16: 2.02499989e+10 | E16: 2.195757224e+10 | F16: 2.341075546e+10 | G16: 2.271924481e+10 | H16: 2.350250196e+10 | I16: 2.411101859e+10 | J16: 2.47719599e+10 | K16: 2.589766223e+10 | L16: 2.726744916e+10 | M16: 2.763804339e+10 | N16: 2.757082642e+10 | O16: 2.699733548e+10 | P16: 3.01649044e+10 | Q16: 3.315117398e+10
A17: G | B17: Wholesale and retail trade; repair of motors and motocycles | C17: 1.312330505e+10 | D17: 1.230171812e+10 | E17: 1.349863116e+10 | F17: 1.499290347e+10 | G17: 1.405044753e+10 | H17: 1.402985777e+10 | I17: 1.442878416e+10 | J17: 1.457708858e+10 | K17: 1.524175018e+10 | L17: 1.558250912e+10 | M17: 1.579593276e+10 | N17: 1.584649801e+10 | O17: 1.49845783e+10 | P17: 1.753351948e+10 | Q17: 1.920721346e+10
A18: H | B18: Transport and storage | C18: 1261266669 | D18: 1321255571 | E18: 1356249098 | F18: 1425986197 | G18: 1457230417 | H18: 1518968995 | I18: 1568709793 | J18: 1591705539 | K18: 1643945875 | L18: 1731429690 | M18: 1892287524 | N18: 1589452970 | O18: 1798031207 | P18: 1957388169 | Q18: 2342948673
A19: I | B19: Accommodation and food service activities | C19: 676908140.7 | D19: 810684987.6 | E19: 937624985.7 | F19: 1071552093 | G19: 1102603408 | H19: 1063610830 | I19: 684428674.4 | J19: 799332813.3 | K19: 830992682.6 | L19: 905782024.1 | M19: 837149491.7 | N19: 729252281.5 | O19: 880731450.8 | P19: 870969905.1 | Q19: 1029566545
A20: J | B20: Information and Communication | C20: 808199253.7 | D20: 846684932.5 | E20: 923656290 | F20: 1019870487 | G20: 958524314.9 | H20: 1051293651 | I20: 1205714796 | J20: 1290291665 | K20: 1436440592 | L20: 1765095128 | M20: 1702702314 | N20: 1864438596 | O20: 1814468391 | P20: 2321439742 | Q20: 2687225093
A21: K | B21: Financial and insurance activities | C21: 568950473 | D21: 587102690.1 | E21: 646725641 | F21: 608947828.4 | G21: 738614176.1 | H21: 943858776.8 | I21: 949621185.2 | J21: 1078863461 | K21: 1124992334 | L21: 1193253259 | M21: 1248971527 | N21: 1279264823 | O21: 1184649839 | P21: 1197948775 | Q21: 1320545161
A22: L | B22: Real estate activities | C22: 842775601.1 | D22: 865888078.3 | E22: 889634145.6 | F22: 914031888.5 | G22: 939098789.4 | H22: 964852933.7 | I22: 991313009.6 | J22: 1018498911 | K22: 1046430532 | L22: 1119592412 | M22: 1238844387 | N22: 1251167305 | O22: 1253129684 | P22: 1286269765 | Q22: 1317936305
A23: M | B23: Professional, scientific and technical activities | C23: 79066209.85 | D23: 81234540.27 | E23: 83462311.86 | F23: 85751221.34 | G23: 88102908.84 | H23: 90519071.07 | I23: 93001461.29 | J23: 95551945.88 | K23: 98172391.2 | L23: 105036178.7 | M23: 108194367.6 | N23: 106535211.1 | O23: 118173872.7 | P23: 99902543.49 | Q23: 92113566.69
A24: N | B24: Administrative and support service activities | C24: 447451575.7 | D24: 459722593.5 | E24: 472330000.8 | F24: 485283399.6 | G24: 498592071.9 | H24: 512265619.7 | I24: 526313965 | J24: 540747670 | K24: 555577296.8 | L24: 594420849.9 | M24: 654511188 | N24: 674567269.2 | O24: 660970981.9 | P24: 657738327 | Q24: 608378456
A25: O | B25: Public administration and defence; compulsory social security | C25: 1390690048 | D25: 1400643161 | E25: 1444574139 | F25: 1043703958 | G25: 1028945895 | H25: 1342983751 | I25: 1528315509 | J25: 1564995081 | K25: 1614433471 | L25: 1727435505 | M25: 1503488002 | N25: 1531318074 | O25: 1360723521 | P25: 1292970362 | Q25: 1600367327
A26: P | B26: Education | C26: 583547759.7 | D26: 605640044.8 | E26: 668413277.7 | F26: 707731705.8 | G26: 779945254.5 | H26: 821891399.3 | I26: 908189996.2 | J26: 950549992.6 | K26: 1017160306 | L26: 1156209336 | M26: 1111075654 | N26: 1168251141 | O26: 1343685732 | P26: 1485977023 | Q26: 1462791389
A27: Q | B27: Human health and social work activities | C27: 250337427.6 | D27: 254007128.6 | E27: 301234584.6 | F27: 299798614.7 | G27: 301234584.6 | H27: 365215023.4 | I27: 407579966.2 | J27: 422826541.7 | K27: 423181113.2 | L27: 461652123.5 | M27: 360774061.8 | N27: 328826495.8 | O27: 370037627.1 | P27: 337974701.5 | Q27: 380988121.9
A28: R | B28: Arts, entertainment and recreation | C28: 160421768.1 | D28: 164821212.6 | E28: 169341260.5 | F28: 173985354.4 | G28: 178756822.1 | H28: 183659106.2 | I28: 188695763.8 | J28: 193870581.8 | K28: 199187347 | L28: 213113661.7 | M28: 278120846.2 | N28: 343825151.1 | O28: 357792379.5 | P28: 366059388.3 | Q28: 360137359.9
A29: S | B29: Other service activities | C29: 535899212.6 | D29: 550595839.2 | E29: 565695349.4 | F29: 581209243.2 | G29: 597148637.4 | H29: 613525031.8 | I29: 630350309.8 | J29: 647637121.5 | K29: 665398116.9 | L29: 711919865 | M29: 905991264.1 | N29: 857429097.5 | O29: 870362486.2 | P29: 756746212.6 | Q29: 740962526.6
B30: GDP basic price (Gross Value Added) | C30: 3.887478659e+10 | D30: 3.792487818e+10 | E30: 3.767207406e+10 | F30: 3.880363116e+10 | G30: 4.124484164e+10 | H30: 4.400010883e+10 | I30: 4.658156259e+10 | J30: 4.267454374e+10 | K30: 4.489265891e+10 | L30: 4.612139871e+10 | M30: 4.54488952e+10 | N30: 4.728833991e+10 | O30: 4.820639473e+10 | P30: 5.052353487e+10 | Q30: 5.384024944e+10
B31: Taxes less subsidies on products (+) | C31: 2530300951 | D31: 2506473710 | E31: 2534648972 | F31: 2626682730 | G31: 2777313581 | H31: 2956441859 | I31: 3149338832 | J31: 3013014449 | K31: 3189644301 | L31: 3342197869 | M31: 3318559371 | N31: 3458133985 | O31: 3526265690 | P31: 3703990634 | Q31: 3937566535
B32: Items
B33: Growth rate
B34: GDP growth rate | D34: =D4/C4-1 -> -0.02351729492 | E34: -0.0055558088 | F34: 0.03043249415 | G34: 0.06255905613 | H34: 0.06665724237 | I34: 0.05908335867 | J34: -0.08130444281 | K34: 0.05241569304 | L34: 0.02872768717 | M34: -0.0140738252 | N34: 0.04058073854 | O34: 0.01943359718 | P34: 0.04822611213 | Q34: =Q4/P4-1 -> 0.06547026505
B35: Agriculture | D35: =D5/C5-1 -> -0.02881218921 | E35: -0.1668220281 | F35: -0.04198552417 | G35: 0.309731968 | H35: 0.1491859073 | I35: 0.1180756214 | J35: -0.2773785317 | K35: 0.06506852121 | L35: -0.02606282327 | M35: -0.1238462054 | N35: 0.03950153127 | O35: -0.002345635182 | P35: -0.04379155505 | Q35: =Q5/P5-1 -> 0.009021849199
B36: Industry | D36: =D10/C10-1 -> -0.01821445578 | E36: 0.03935137755 | F36: 0.02589572917 | G36: -0.01018201925 | H36: -0.007331194278 | I36: 0.02899175953 | J36: 0.0448345576 | K36: 0.05164272351 | L36: 0.03629139969 | M36: 0.09573101171 | N36: 0.2261226539 | O36: 0.192200123 | P36: -0.0354776157 | Q36: =Q10/P10-1 -> 0.02516938493
B37: Services | D37: =D16/C16-1 -> -0.0230992552 | E37: 0.08432461394 | F37: 0.06618141585 | G37: -0.02953816036 | H37: 0.03447549224 | I37: 0.0258915679 | J37: 0.0274124179 | K37: 0.04544260258 | L37: 0.05289230015 | M37: 0.01359108556 | N37: -0.002432045025 | O37: -0.02080064409 | P37: 0.1173289461 | Q37: =Q16/P16-1 -> 0.09899814525
B39: 2018* Provisional data

Sheet Tab1.3_2013_Contribution to GDP
A1: Contribution to GDP estimates, 2013 base year: market price
A3: ISIC Rev.4 | B3: Industy | C3: 2004 | D3: 2005 | E3: 2006 | F3: 2007 | G3: 2008 | H3: 2009 | I3: 2010 | J3: 2011 | K3: 2012 | L3: 2013 | M3: 2014 | N3: 2015 | O3: 2016 | P3: 2017 | Q3: 2018*
B4: Gross Domestic Product (GDP) market price | C4: =Tab1.1_2013_GDP_P_Current!D4/Tab1.1_2013_GDP_P_Current!D$4*100 -> 100 | D4: =Tab1.1_2013_GDP_P_Current!E4/Tab1.1_2013_GDP_P_Current!E$4*100 -> 100 | E4: =Tab1.1_2013_GDP_P_Current!F4/Tab1.1_2013_GDP_P_Current!F$4*100 -> 100 | F4: =Tab1.1_2013_GDP_P_Current!G4/Tab1.1_2013_GDP_P_Current!G$4*100 -> 100 | G4: =Tab1.1_2013_GDP_P_Current!H4/Tab1.1_2013_GDP_P_Current!H$4*100 -> 100 | H4: =Tab1.1_2013_GDP_P_Current!I4/Tab1.1_2013_GDP_P_Current!I$4*100 -> 100 | I4: =Tab1.1_2013_GDP_P_Current!J4/Tab1.1_2013_GDP_P_Current!J$4*100 -> 100 | J4: =Tab1.1_2013_GDP_P_Current!K4/Tab1.1_2013_GDP_P_Current!K$4*100 -> 100 | K4: =Tab1.1_2013_GDP_P_Current!L4/Tab1.1_2013_GDP_P_Current!L$4*100 -> 100 | L4: =Tab1.1_2013_GDP_P_Current!M4/Tab1.1_2013_GDP_P_Current!M$4*100 -> 100 | M4: =Tab1.1_2013_GDP_P_Current!N4/Tab1.1_2013_GDP_P_Current!N$4*100 -> 100 | N4: =Tab1.1_2013_GDP_P_Current!O4/Tab1.1_2013_GDP_P_Current!O$4*100 -> 100 | O4: =Tab1.1_2013_GDP_P_Current!P4/Tab1.1_2013_GDP_P_Current!P$4*100 -> 100 | P4: =Tab1.1_2013_GDP_P_Current!Q4/Tab1.1_2013_GDP_P_Current!Q$4*100 -> 100 | Q4: =Tab1.1_2013_GDP_P_Current!R4/Tab1.1_2013_GDP_P_Current!R$4*100 -> 100
A5: A | B5: Agriculture, forestry and fishing | C5: =Tab1.1_2013_GDP_P_Current!D5/Tab1.1_2013_GDP_P_Current!D$4*100 -> 31.50261845 | D5: =Tab1.1_2013_GDP_P_Current!E5/Tab1.1_2013_GDP_P_Current!E$4*100 -> 32.09063299 | E5: =Tab1.1_2013_GDP_P_Current!F5/Tab1.1_2013_GDP_P_Current!F$4*100 -> 25.60022592 | F5: =Tab1.1_2013_GDP_P_Current!G5/Tab1.1_2013_GDP_P_Current!G$4*100 -> 23.56619688 | G5: =Tab1.1_2013_GDP_P_Current!H5/Tab1.1_2013_GDP_P_Current!H$4*100 -> 29.7757114 | H5: =Tab1.1_2013_GDP_P_Current!I5/Tab1.1_2013_GDP_P_Current!I$4*100 -> 31.73422592 | I5: =Tab1.1_2013_GDP_P_Current!J5/Tab1.1_2013_GDP_P_Current!J$4*100 -> 35.19324353 | J5: =Tab1.1_2013_GDP_P_Current!K5/Tab1.1_2013_GDP_P_Current!K$4*100 -> 27.20242063 | K5: =Tab1.1_2013_GDP_P_Current!L5/Tab1.1_2013_GDP_P_Current!L$4*100 -> 27.39357152 | L5: =Tab1.1_2013_GDP_P_Current!M5/Tab1.1_2013_GDP_P_Current!M$4*100 -> 26.22212254 | M5: =Tab1.1_2013_GDP_P_Current!N5/Tab1.1_2013_GDP_P_Current!N$4*100 -> 22.45883922 | N5: =Tab1.1_2013_GDP_P_Current!O5/Tab1.1_2013_GDP_P_Current!O$4*100 -> 22.20888608 | O5: =Tab1.1_2013_GDP_P_Current!P5/Tab1.1_2013_GDP_P_Current!P$4*100 -> 21.8613793 | P5: =Tab1.1_2013_GDP_P_Current!Q5/Tab1.1_2013_GDP_P_Current!Q$4*100 -> 21.0018947 | Q5: =Tab1.1_2013_GDP_P_Current!R5/Tab1.1_2013_GDP_P_Current!R$4*100 -> 19.86609554
B6: Crop | C6: =Tab1.1_2013_GDP_P_Current!D6/Tab1.1_2013_GDP_P_Current!D$4*100 -> 21.1300806 | D6: =Tab1.1_2013_GDP_P_Current!E6/Tab1.1_2013_GDP_P_Current!E$4*100 -> 21.75436294 | E6: =Tab1.1_2013_GDP_P_Current!F6/Tab1.1_2013_GDP_P_Current!F$4*100 -> 14.66028472 | F6: =Tab1.1_2013_GDP_P_Current!G6/Tab1.1_2013_GDP_P_Current!G$4*100 -> 11.58111223 | G6: =Tab1.1_2013_GDP_P_Current!H6/Tab1.1_2013_GDP_P_Current!H$4*100 -> 18.13496542 | H6: =Tab1.1_2013_GDP_P_Current!I6/Tab1.1_2013_GDP_P_Current!I$4*100 -> 21.03085832 | I6: =Tab1.1_2013_GDP_P_Current!J6/Tab1.1_2013_GDP_P_Current!J$4*100 -> 25.02999615 | J6: =Tab1.1_2013_GDP_P_Current!K6/Tab1.1_2013_GDP_P_Current!K$4*100 -> 15.82084895 | K6: =Tab1.1_2013_GDP_P_Current!L6/Tab1.1_2013_GDP_P_Current!L$4*100 -> 16.37416986 | L6: =Tab1.1_2013_GDP_P_Current!M6/Tab1.1_2013_GDP_P_Current!M$4*100 -> 14.98800431 | M6: =Tab1.1_2013_GDP_P_Current!N6/Tab1.1_2013_GDP_P_Current!N$4*100 -> 12.14886568 | N6: =Tab1.1_2013_GDP_P_Current!O6/Tab1.1_2013_GDP_P_Current!O$4*100 -> 11.91211906 | O6: =Tab1.1_2013_GDP_P_Current!P6/Tab1.1_2013_GDP_P_Current!P$4*100 -> 11.0736506 | P6: =Tab1.1_2013_GDP_P_Current!Q6/Tab1.1_2013_GDP_P_Current!Q$4*100 -> 9.303522327 | Q6: =Tab1.1_2013_GDP_P_Current!R6/Tab1.1_2013_GDP_P_Current!R$4*100 -> 9.139347126
B7: Livestock | C7: =Tab1.1_2013_GDP_P_Current!D7/Tab1.1_2013_GDP_P_Current!D$4*100 -> 4.429924225 | D7: =Tab1.1_2013_GDP_P_Current!E7/Tab1.1_2013_GDP_P_Current!E$4*100 -> 4.433274878 | E7: =Tab1.1_2013_GDP_P_Current!F7/Tab1.1_2013_GDP_P_Current!F$4*100 -> 4.719980927 | F7: =Tab1.1_2013_GDP_P_Current!G7/Tab1.1_2013_GDP_P_Current!G$4*100 -> 5.162781829 | G7: =Tab1.1_2013_GDP_P_Current!H7/Tab1.1_2013_GDP_P_Current!H$4*100 -> 5.008083914 | H7: =Tab1.1_2013_GDP_P_Current!I7/Tab1.1_2013_GDP_P_Current!I$4*100 -> 4.540765644 | I7: =Tab1.1_2013_GDP_P_Current!J7/Tab1.1_2013_GDP_P_Current!J$4*100 -> 4.374600573 | J7: =Tab1.1_2013_GDP_P_Current!K7/Tab1.1_2013_GDP_P_Current!K$4*100 -> 4.844424391 | K7: =Tab1.1_2013_GDP_P_Current!L7/Tab1.1_2013_GDP_P_Current!L$4*100 -> 4.751793645 | L7: =Tab1.1_2013_GDP_P_Current!M7/Tab1.1_2013_GDP_P_Current!M$4*100 -> 5.004525714 | M7: =Tab1.1_2013_GDP_P_Current!N7/Tab1.1_2013_GDP_P_Current!N$4*100 -> 5.242724792 | N7: =Tab1.1_2013_GDP_P_Current!O7/Tab1.1_2013_GDP_P_Current!O$4*100 -> 4.601603179 | O7: =Tab1.1_2013_GDP_P_Current!P7/Tab1.1_2013_GDP_P_Current!P$4*100 -> 4.592957645 | P7: =Tab1.1_2013_GDP_P_Current!Q7/Tab1.1_2013_GDP_P_Current!Q$4*100 -> 4.187005109 | Q7: =Tab1.1_2013_GDP_P_Current!R7/Tab1.1_2013_GDP_P_Current!R$4*100 -> 3.789290155
B8: Forestry and logging | C8: =Tab1.1_2013_GDP_P_Current!D8/Tab1.1_2013_GDP_P_Current!D$4*100 -> 1.506347891 | D8: =Tab1.1_2013_GDP_P_Current!E8/Tab1.1_2013_GDP_P_Current!E$4*100 -> 1.553685067 | E8: =Tab1.1_2013_GDP_P_Current!F8/Tab1.1_2013_GDP_P_Current!F$4*100 -> 1.571982941 | F8: =Tab1.1_2013_GDP_P_Current!G8/Tab1.1_2013_GDP_P_Current!G$4*100 -> 1.474529502 | G8: =Tab1.1_2013_GDP_P_Current!H8/Tab1.1_2013_GDP_P_Current!H$4*100 -> 1.373284117 | H8: =Tab1.1_2013_GDP_P_Current!I8/Tab1.1_2013_GDP_P_Current!I$4*100 -> 1.214630621 | I8: =Tab1.1_2013_GDP_P_Current!J8/Tab1.1_2013_GDP_P_Current!J$4*100 -> 1.167729439 | J8: =Tab1.1_2013_GDP_P_Current!K8/Tab1.1_2013_GDP_P_Current!K$4*100 -> 1.257677047 | K8: =Tab1.1_2013_GDP_P_Current!L8/Tab1.1_2013_GDP_P_Current!L$4*100 -> 1.185887672 | L8: =Tab1.1_2013_GDP_P_Current!M8/Tab1.1_2013_GDP_P_Current!M$4*100 -> 1.148134237 | M8: =Tab1.1_2013_GDP_P_Current!N8/Tab1.1_2013_GDP_P_Current!N$4*100 -> 1.115487973 | N8: =Tab1.1_2013_GDP_P_Current!O8/Tab1.1_2013_GDP_P_Current!O$4*100 -> 0.9845924863 | O8: =Tab1.1_2013_GDP_P_Current!P8/Tab1.1_2013_GDP_P_Current!P$4*100 -> 0.9027144203 | P8: =Tab1.1_2013_GDP_P_Current!Q8/Tab1.1_2013_GDP_P_Current!Q$4*100 -> 0.8351100799 | Q8: =Tab1.1_2013_GDP_P_Current!R8/Tab1.1_2013_GDP_P_Current!R$4*100 -> 0.7508107778
B9: Fishing and aquaculture | C9: =Tab1.1_2013_GDP_P_Current!D9/Tab1.1_2013_GDP_P_Current!D$4*100 -> 4.436265736 | D9: =Tab1.1_2013_GDP_P_Current!E9/Tab1.1_2013_GDP_P_Current!E$4*100 -> 4.349310098 | E9: =Tab1.1_2013_GDP_P_Current!F9/Tab1.1_2013_GDP_P_Current!F$4*100 -> 4.647977331 | F9: =Tab1.1_2013_GDP_P_Current!G9/Tab1.1_2013_GDP_P_Current!G$4*100 -> 5.347773317 | G9: =Tab1.1_2013_GDP_P_Current!H9/Tab1.1_2013_GDP_P_Current!H$4*100 -> 5.259377952 | H9: =Tab1.1_2013_GDP_P_Current!I9/Tab1.1_2013_GDP_P_Current!I$4*100 -> 4.94797134 | I9: =Tab1.1_2013_GDP_P_Current!J9/Tab1.1_2013_GDP_P_Current!J$4*100 -> 4.620917365 | J9: =Tab1.1_2013_GDP_P_Current!K9/Tab1.1_2013_GDP_P_Current!K$4*100 -> 5.279470235 | K9: =Tab1.1_2013_GDP_P_Current!L9/Tab1.1_2013_GDP_P_Current!L$4*100 -> 5.081720344 | L9: =Tab1.1_2013_GDP_P_Current!M9/Tab1.1_2013_GDP_P_Current!M$4*100 -> 5.081458276 | M9: =Tab1.1_2013_GDP_P_Current!N9/Tab1.1_2013_GDP_P_Current!N$4*100 -> 3.951760772 | N9: =Tab1.1_2013_GDP_P_Current!O9/Tab1.1_2013_GDP_P_Current!O$4*100 -> 4.710571362 | O9: =Tab1.1_2013_GDP_P_Current!P9/Tab1.1_2013_GDP_P_Current!P$4*100 -> 5.292056632 | P9: =Tab1.1_2013_GDP_P_Current!Q9/Tab1.1_2013_GDP_P_Current!Q$4*100 -> 6.67625718 | Q9: =Tab1.1_2013_GDP_P_Current!R9/Tab1.1_2013_GDP_P_Current!R$4*100 -> 6.186647484
B10: Industry | C10: =Tab1.1_2013_GDP_P_Current!D10/Tab1.1_2013_GDP_P_Current!D$4*100 -> 11.45166456 | D10: =Tab1.1_2013_GDP_P_Current!E10/Tab1.1_2013_GDP_P_Current!E$4*100 -> 11.4940796 | E10: =Tab1.1_2013_GDP_P_Current!F10/Tab1.1_2013_GDP_P_Current!F$4*100 -> 12.12389245 | F10: =Tab1.1_2013_GDP_P_Current!G10/Tab1.1_2013_GDP_P_Current!G$4*100 -> 11.87953985 | G10: =Tab1.1_2013_GDP_P_Current!H10/Tab1.1_2013_GDP_P_Current!H$4*100 -> 11.16205072 | H10: =Tab1.1_2013_GDP_P_Current!I10/Tab1.1_2013_GDP_P_Current!I$4*100 -> 10.21100763 | I10: =Tab1.1_2013_GDP_P_Current!J10/Tab1.1_2013_GDP_P_Current!J$4*100 -> 9.828166321 | J10: =Tab1.1_2013_GDP_P_Current!K10/Tab1.1_2013_GDP_P_Current!K$4*100 -> 11.51266043 | K10: =Tab1.1_2013_GDP_P_Current!L10/Tab1.1_2013_GDP_P_Current!L$4*100 -> 11.95836876 | L10: =Tab1.1_2013_GDP_P_Current!M10/Tab1.1_2013_GDP_P_Current!M$4*100 -> 11.89469641 | M10: =Tab1.1_2013_GDP_P_Current!N10/Tab1.1_2013_GDP_P_Current!N$4*100 -> 13.21483425 | N10: =Tab1.1_2013_GDP_P_Current!O10/Tab1.1_2013_GDP_P_Current!O$4*100 -> 17.14345299 | O10: =Tab1.1_2013_GDP_P_Current!P10/Tab1.1_2013_GDP_P_Current!P$4*100 -> 20.93559297 | P10: =Tab1.1_2013_GDP_P_Current!Q10/Tab1.1_2013_GDP_P_Current!Q$4*100 -> 17.89275501 | Q10: =Tab1.1_2013_GDP_P_Current!R10/Tab1.1_2013_GDP_P_Current!R$4*100 -> 15.56668134
A11: B | B11: Mining and quarrying | C11: =Tab1.1_2013_GDP_P_Current!D11/Tab1.1_2013_GDP_P_Current!D$4*100 -> 0.1255783479 | D11: =Tab1.1_2013_GDP_P_Current!E11/Tab1.1_2013_GDP_P_Current!E$4*100 -> 0.1934759208 | E11: =Tab1.1_2013_GDP_P_Current!F11/Tab1.1_2013_GDP_P_Current!F$4*100 -> 0.2052436272 | F11: =Tab1.1_2013_GDP_P_Current!G11/Tab1.1_2013_GDP_P_Current!G$4*100 -> 0.1681664552 | G11: =Tab1.1_2013_GDP_P_Current!H11/Tab1.1_2013_GDP_P_Current!H$4*100 -> 0.2056106221 | H11: =Tab1.1_2013_GDP_P_Current!I11/Tab1.1_2013_GDP_P_Current!I$4*100 -> 0.211906457 | I11: =Tab1.1_2013_GDP_P_Current!J11/Tab1.1_2013_GDP_P_Current!J$4*100 -> 0.2215388597 | J11: =Tab1.1_2013_GDP_P_Current!K11/Tab1.1_2013_GDP_P_Current!K$4*100 -> 0.2591171819 | K11: =Tab1.1_2013_GDP_P_Current!L11/Tab1.1_2013_GDP_P_Current!L$4*100 -> 0.26841407 | L11: =Tab1.1_2013_GDP_P_Current!M11/Tab1.1_2013_GDP_P_Current!M$4*100 -> 0.2785516217 | M11: =Tab1.1_2013_GDP_P_Current!N11/Tab1.1_2013_GDP_P_Current!N$4*100 -> 0.5106246573 | N11: =Tab1.1_2013_GDP_P_Current!O11/Tab1.1_2013_GDP_P_Current!O$4*100 -> 0.4194751906 | O11: =Tab1.1_2013_GDP_P_Current!P11/Tab1.1_2013_GDP_P_Current!P$4*100 -> 0.370998954 | P11: =Tab1.1_2013_GDP_P_Current!Q11/Tab1.1_2013_GDP_P_Current!Q$4*100 -> 0.4620889025 | Q11: =Tab1.1_2013_GDP_P_Current!R11/Tab1.1_2013_GDP_P_Current!R$4*100 -> 0.4155324703
A12: C | B12: Manufacturing | C12: =Tab1.1_2013_GDP_P_Current!D12/Tab1.1_2013_GDP_P_Current!D$4*100 -> 5.262075851 | D12: =Tab1.1_2013_GDP_P_Current!E12/Tab1.1_2013_GDP_P_Current!E$4*100 -> 6.302017024 | E12: =Tab1.1_2013_GDP_P_Current!F12/Tab1.1_2013_GDP_P_Current!F$4*100 -> 6.645413275 | F12: =Tab1.1_2013_GDP_P_Current!G12/Tab1.1_2013_GDP_P_Current!G$4*100 -> 6.509075503 | G12: =Tab1.1_2013_GDP_P_Current!H12/Tab1.1_2013_GDP_P_Current!H$4*100 -> 5.591328939 | H12: =Tab1.1_2013_GDP_P_Current!I12/Tab1.1_2013_GDP_P_Current!I$4*100 -> 4.829974748 | I12: =Tab1.1_2013_GDP_P_Current!J12/Tab1.1_2013_GDP_P_Current!J$4*100 -> 4.550839628 | J12: =Tab1.1_2013_GDP_P_Current!K12/Tab1.1_2013_GDP_P_Current!K$4*100 -> 5.488714278 | K12: =Tab1.1_2013_GDP_P_Current!L12/Tab1.1_2013_GDP_P_Current!L$4*100 -> 5.748159896 | L12: =Tab1.1_2013_GDP_P_Current!M12/Tab1.1_2013_GDP_P_Current!M$4*100 -> 5.611202623 | M12: =Tab1.1_2013_GDP_P_Current!N12/Tab1.1_2013_GDP_P_Current!N$4*100 -> 6.511781031 | N12: =Tab1.1_2013_GDP_P_Current!O12/Tab1.1_2013_GDP_P_Current!O$4*100 -> 6.349254331 | O12: =Tab1.1_2013_GDP_P_Current!P12/Tab1.1_2013_GDP_P_Current!P$4*100 -> 5.586256946 | P12: =Tab1.1_2013_GDP_P_Current!Q12/Tab1.1_2013_GDP_P_Current!Q$4*100 -> 4.46929217 | Q12: =Tab1.1_2013_GDP_P_Current!R12/Tab1.1_2013_GDP_P_Current!R$4*100 -> 4.416320195
A13: D | B13: Electricity, gas, steam and air conditioning supply | C13: =Tab1.1_2013_GDP_P_Current!D13/Tab1.1_2013_GDP_P_Current!D$4*100 -> 0.581452267 | D13: =Tab1.1_2013_GDP_P_Current!E13/Tab1.1_2013_GDP_P_Current!E$4*100 -> 0.7460400009 | E13: =Tab1.1_2013_GDP_P_Current!F13/Tab1.1_2013_GDP_P_Current!F$4*100 -> 0.7931742209 | F13: =Tab1.1_2013_GDP_P_Current!G13/Tab1.1_2013_GDP_P_Current!G$4*100 -> 1.003576665 | G13: =Tab1.1_2013_GDP_P_Current!H13/Tab1.1_2013_GDP_P_Current!H$4*100 -> 1.011233275 | H13: =Tab1.1_2013_GDP_P_Current!I13/Tab1.1_2013_GDP_P_Current!I$4*100 -> 0.9680071359 | I13: =Tab1.1_2013_GDP_P_Current!J13/Tab1.1_2013_GDP_P_Current!J$4*100 -> 0.9548967647 | J13: =Tab1.1_2013_GDP_P_Current!K13/Tab1.1_2013_GDP_P_Current!K$4*100 -> 0.9960873202 | K13: =Tab1.1_2013_GDP_P_Current!L13/Tab1.1_2013_GDP_P_Current!L$4*100 -> 0.9214846792 | L13: =Tab1.1_2013_GDP_P_Current!M13/Tab1.1_2013_GDP_P_Current!M$4*100 -> 0.9237727162 | M13: =Tab1.1_2013_GDP_P_Current!N13/Tab1.1_2013_GDP_P_Current!N$4*100 -> 0.9412066243 | N13: =Tab1.1_2013_GDP_P_Current!O13/Tab1.1_2013_GDP_P_Current!O$4*100 -> 1.016220791 | O13: =Tab1.1_2013_GDP_P_Current!P13/Tab1.1_2013_GDP_P_Current!P$4*100 -> 0.9920235004 | P13: =Tab1.1_2013_GDP_P_Current!Q13/Tab1.1_2013_GDP_P_Current!Q$4*100 -> 0.83344226 | Q13: =Tab1.1_2013_GDP_P_Current!R13/Tab1.1_2013_GDP_P_Current!R$4*100 -> 1.492182992
A14: E | B14: Water supply, sewerage, waste management and remediation activities | C14: =Tab1.1_2013_GDP_P_Current!D14/Tab1.1_2013_GDP_P_Current!D$4*100 -> 0.4145397215 | D14: =Tab1.1_2013_GDP_P_Current!E14/Tab1.1_2013_GDP_P_Current!E$4*100 -> 0.5318806577 | E14: =Tab1.1_2013_GDP_P_Current!F14/Tab1.1_2013_GDP_P_Current!F$4*100 -> 0.565484459 | F14: =Tab1.1_2013_GDP_P_Current!G14/Tab1.1_2013_GDP_P_Current!G$4*100 -> 0.7154884671 | G14: =Tab1.1_2013_GDP_P_Current!H14/Tab1.1_2013_GDP_P_Current!H$4*100 -> 0.7209471591 | H14: =Tab1.1_2013_GDP_P_Current!I14/Tab1.1_2013_GDP_P_Current!I$4*100 -> 0.6901295796 | I14: =Tab1.1_2013_GDP_P_Current!J14/Tab1.1_2013_GDP_P_Current!J$4*100 -> 0.6807826908 | J14: =Tab1.1_2013_GDP_P_Current!K14/Tab1.1_2013_GDP_P_Current!K$4*100 -> 0.7101490247 | K14: =Tab1.1_2013_GDP_P_Current!L14/Tab1.1_2013_GDP_P_Current!L$4*100 -> 0.6569619279 | L14: =Tab1.1_2013_GDP_P_Current!M14/Tab1.1_2013_GDP_P_Current!M$4*100 -> 0.6585931576 | M14: =Tab1.1_2013_GDP_P_Current!N14/Tab1.1_2013_GDP_P_Current!N$4*100 -> 0.7488139472 | N14: =Tab1.1_2013_GDP_P_Current!O14/Tab1.1_2013_GDP_P_Current!O$4*100 -> 0.7541686311 | O14: =Tab1.1_2013_GDP_P_Current!P14/Tab1.1_2013_GDP_P_Current!P$4*100 -> 0.7437626528 | P14: =Tab1.1_2013_GDP_P_Current!Q14/Tab1.1_2013_GDP_P_Current!Q$4*100 -> 0.6665786638 | Q14: =Tab1.1_2013_GDP_P_Current!R14/Tab1.1_2013_GDP_P_Current!R$4*100 -> 0.5967795728
A15: F | B15: Construction | C15: =Tab1.1_2013_GDP_P_Current!D15/Tab1.1_2013_GDP_P_Current!D$4*100 -> 5.06801837 | D15: =Tab1.1_2013_GDP_P_Current!E15/Tab1.1_2013_GDP_P_Current!E$4*100 -> 3.720666 | E15: =Tab1.1_2013_GDP_P_Current!F15/Tab1.1_2013_GDP_P_Current!F$4*100 -> 3.914576869 | F15: =Tab1.1_2013_GDP_P_Current!G15/Tab1.1_2013_GDP_P_Current!G$4*100 -> 3.483232759 | G15: =Tab1.1_2013_GDP_P_Current!H15/Tab1.1_2013_GDP_P_Current!H$4*100 -> 3.632930728 | H15: =Tab1.1_2013_GDP_P_Current!I15/Tab1.1_2013_GDP_P_Current!I$4*100 -> 3.510989709 | I15: =Tab1.1_2013_GDP_P_Current!J15/Tab1.1_2013_GDP_P_Current!J$4*100 -> 3.420108377 | J15: =Tab1.1_2013_GDP_P_Current!K15/Tab1.1_2013_GDP_P_Current!K$4*100 -> 4.058592627 | K15: =Tab1.1_2013_GDP_P_Current!L15/Tab1.1_2013_GDP_P_Current!L$4*100 -> 4.363348183 | L15: =Tab1.1_2013_GDP_P_Current!M15/Tab1.1_2013_GDP_P_Current!M$4*100 -> 4.422576296 | M15: =Tab1.1_2013_GDP_P_Current!N15/Tab1.1_2013_GDP_P_Current!N$4*100 -> 4.502407993 | N15: =Tab1.1_2013_GDP_P_Current!O15/Tab1.1_2013_GDP_P_Current!O$4*100 -> 8.604334051 | O15: =Tab1.1_2013_GDP_P_Current!P15/Tab1.1_2013_GDP_P_Current!P$4*100 -> 13.24255092 | P15: =Tab1.1_2013_GDP_P_Current!Q15/Tab1.1_2013_GDP_P_Current!Q$4*100 -> 11.46135301 | Q15: =Tab1.1_2013_GDP_P_Current!R15/Tab1.1_2013_GDP_P_Current!R$4*100 -> 8.645866107
B16: Services | C16: =Tab1.1_2013_GDP_P_Current!D16/Tab1.1_2013_GDP_P_Current!D$4*100 -> 51.05830673 | D16: =Tab1.1_2013_GDP_P_Current!E16/Tab1.1_2013_GDP_P_Current!E$4*100 -> 50.74070691 | E16: =Tab1.1_2013_GDP_P_Current!F16/Tab1.1_2013_GDP_P_Current!F$4*100 -> 55.60417192 | F16: =Tab1.1_2013_GDP_P_Current!G16/Tab1.1_2013_GDP_P_Current!G$4*100 -> 57.35735542 | G16: =Tab1.1_2013_GDP_P_Current!H16/Tab1.1_2013_GDP_P_Current!H$4*100 -> 52.98860681 | H16: =Tab1.1_2013_GDP_P_Current!I16/Tab1.1_2013_GDP_P_Current!I$4*100 -> 51.10041584 | I16: =Tab1.1_2013_GDP_P_Current!J16/Tab1.1_2013_GDP_P_Current!J$4*100 -> 49.20053724 | J16: =Tab1.1_2013_GDP_P_Current!K16/Tab1.1_2013_GDP_P_Current!K$4*100 -> 54.90020107 | K16: =Tab1.1_2013_GDP_P_Current!L16/Tab1.1_2013_GDP_P_Current!L$4*100 -> 54.45121626 | L16: =Tab1.1_2013_GDP_P_Current!M16/Tab1.1_2013_GDP_P_Current!M$4*100 -> 55.126297 | M16: =Tab1.1_2013_GDP_P_Current!N16/Tab1.1_2013_GDP_P_Current!N$4*100 -> 56.43873188 | N16: =Tab1.1_2013_GDP_P_Current!O16/Tab1.1_2013_GDP_P_Current!O$4*100 -> 51.88978743 | O16: =Tab1.1_2013_GDP_P_Current!P16/Tab1.1_2013_GDP_P_Current!P$4*100 -> 48.79803439 | P16: =Tab1.1_2013_GDP_P_Current!Q16/Tab1.1_2013_GDP_P_Current!Q$4*100 -> 53.42535708 | Q16: =Tab1.1_2013_GDP_P_Current!R16/Tab1.1_2013_GDP_P_Current!R$4*100 -> 56.50980259
A17: G | B17: Wholesale and retail trade; repair of motors and motocycles | C17: =Tab1.1_2013_GDP_P_Current!D17/Tab1.1_2013_GDP_P_Current!D$4*100 -> 31.46664549 | D17: =Tab1.1_2013_GDP_P_Current!E17/Tab1.1_2013_GDP_P_Current!E$4*100 -> 29.82257855 | E17: =Tab1.1_2013_GDP_P_Current!F17/Tab1.1_2013_GDP_P_Current!F$4*100 -> 33.15173324 | F17: =Tab1.1_2013_GDP_P_Current!G17/Tab1.1_2013_GDP_P_Current!G$4*100 -> 36.06068362 | G17: =Tab1.1_2013_GDP_P_Current!H17/Tab1.1_2013_GDP_P_Current!H$4*100 -> 32.41498624 | H17: =Tab1.1_2013_GDP_P_Current!I17/Tab1.1_2013_GDP_P_Current!I$4*100 -> 30.35878008 | I17: =Tab1.1_2013_GDP_P_Current!J17/Tab1.1_2013_GDP_P_Current!J$4*100 -> 29.3883143 | J17: =Tab1.1_2013_GDP_P_Current!K17/Tab1.1_2013_GDP_P_Current!K$4*100 -> 32.26477845 | K17: =Tab1.1_2013_GDP_P_Current!L17/Tab1.1_2013_GDP_P_Current!L$4*100 -> 32.07263963 | L17: =Tab1.1_2013_GDP_P_Current!M17/Tab1.1_2013_GDP_P_Current!M$4*100 -> 31.50298442 | M17: =Tab1.1_2013_GDP_P_Current!N17/Tab1.1_2013_GDP_P_Current!N$4*100 -> 32.47776448 | N17: =Tab1.1_2013_GDP_P_Current!O17/Tab1.1_2013_GDP_P_Current!O$4*100 -> 30.50825947 | O17: =Tab1.1_2013_GDP_P_Current!P17/Tab1.1_2013_GDP_P_Current!P$4*100 -> 28.21745321 | P17: =Tab1.1_2013_GDP_P_Current!Q17/Tab1.1_2013_GDP_P_Current!Q$4*100 -> 32.65146602 | Q17: =Tab1.1_2013_GDP_P_Current!R17/Tab1.1_2013_GDP_P_Current!R$4*100 -> 33.87377099
A18: H | B18: Transport and storage | C18: =Tab1.1_2013_GDP_P_Current!D18/Tab1.1_2013_GDP_P_Current!D$4*100 -> 2.325289371 | D18: =Tab1.1_2013_GDP_P_Current!E18/Tab1.1_2013_GDP_P_Current!E$4*100 -> 2.744368125 | E18: =Tab1.1_2013_GDP_P_Current!F18/Tab1.1_2013_GDP_P_Current!F$4*100 -> 2.785034919 | F18: =Tab1.1_2013_GDP_P_Current!G18/Tab1.1_2013_GDP_P_Current!G$4*100 -> 2.733976491 | G18: =Tab1.1_2013_GDP_P_Current!H18/Tab1.1_2013_GDP_P_Current!H$4*100 -> 2.642201731 | H18: =Tab1.1_2013_GDP_P_Current!I18/Tab1.1_2013_GDP_P_Current!I$4*100 -> 2.519624663 | I18: =Tab1.1_2013_GDP_P_Current!J18/Tab1.1_2013_GDP_P_Current!J$4*100 -> 2.635263271 | J18: =Tab1.1_2013_GDP_P_Current!K18/Tab1.1_2013_GDP_P_Current!K$4*100 -> 3.134670464 | K18: =Tab1.1_2013_GDP_P_Current!L18/Tab1.1_2013_GDP_P_Current!L$4*100 -> 3.211625705 | L18: =Tab1.1_2013_GDP_P_Current!M18/Tab1.1_2013_GDP_P_Current!M$4*100 -> 3.500412041 | M18: =Tab1.1_2013_GDP_P_Current!N18/Tab1.1_2013_GDP_P_Current!N$4*100 -> 4.069989852 | N18: =Tab1.1_2013_GDP_P_Current!O18/Tab1.1_2013_GDP_P_Current!O$4*100 -> 3.153468435 | O18: =Tab1.1_2013_GDP_P_Current!P18/Tab1.1_2013_GDP_P_Current!P$4*100 -> 3.220256868 | P18: =Tab1.1_2013_GDP_P_Current!Q18/Tab1.1_2013_GDP_P_Current!Q$4*100 -> 3.272606819 | Q18: =Tab1.1_2013_GDP_P_Current!R18/Tab1.1_2013_GDP_P_Current!R$4*100 -> 3.576807669
A19: I | B19: Accommodation and food service activities | C19: =Tab1.1_2013_GDP_P_Current!D19/Tab1.1_2013_GDP_P_Current!D$4*100 -> 1.549356906 | D19: =Tab1.1_2013_GDP_P_Current!E19/Tab1.1_2013_GDP_P_Current!E$4*100 -> 1.914749137 | E19: =Tab1.1_2013_GDP_P_Current!F19/Tab1.1_2013_GDP_P_Current!F$4*100 -> 2.176345638 | F19: =Tab1.1_2013_GDP_P_Current!G19/Tab1.1_2013_GDP_P_Current!G$4*100 -> 2.372545087 | G19: =Tab1.1_2013_GDP_P_Current!H19/Tab1.1_2013_GDP_P_Current!H$4*100 -> 2.348859665 | H19: =Tab1.1_2013_GDP_P_Current!I19/Tab1.1_2013_GDP_P_Current!I$4*100 -> 2.130874927 | I19: =Tab1.1_2013_GDP_P_Current!J19/Tab1.1_2013_GDP_P_Current!J$4*100 -> 1.304644648 | J19: =Tab1.1_2013_GDP_P_Current!K19/Tab1.1_2013_GDP_P_Current!K$4*100 -> 1.710173438 | K19: =Tab1.1_2013_GDP_P_Current!L19/Tab1.1_2013_GDP_P_Current!L$4*100 -> 1.713628581 | L19: =Tab1.1_2013_GDP_P_Current!M19/Tab1.1_2013_GDP_P_Current!M$4*100 -> 1.831209388 | M19: =Tab1.1_2013_GDP_P_Current!N19/Tab1.1_2013_GDP_P_Current!N$4*100 -> 1.707994611 | N19: =Tab1.1_2013_GDP_P_Current!O19/Tab1.1_2013_GDP_P_Current!O$4*100 -> 1.402953688 | O19: =Tab1.1_2013_GDP_P_Current!P19/Tab1.1_2013_GDP_P_Current!P$4*100 -> 1.668850379 | P19: =Tab1.1_2013_GDP_P_Current!Q19/Tab1.1_2013_GDP_P_Current!Q$4*100 -> 1.645645951 | Q19: =Tab1.1_2013_GDP_P_Current!R19/Tab1.1_2013_GDP_P_Current!R$4*100 -> 2.172007818
A20: J | B20: Information and Communication | C20: =Tab1.1_2013_GDP_P_Current!D20/Tab1.1_2013_GDP_P_Current!D$4*100 -> 2.414292793 | D20: =Tab1.1_2013_GDP_P_Current!E20/Tab1.1_2013_GDP_P_Current!E$4*100 -> 2.500162074 | E20: =Tab1.1_2013_GDP_P_Current!F20/Tab1.1_2013_GDP_P_Current!F$4*100 -> 2.696684534 | F20: =Tab1.1_2013_GDP_P_Current!G20/Tab1.1_2013_GDP_P_Current!G$4*100 -> 2.790156548 | G20: =Tab1.1_2013_GDP_P_Current!H20/Tab1.1_2013_GDP_P_Current!H$4*100 -> 2.422851623 | H20: =Tab1.1_2013_GDP_P_Current!I20/Tab1.1_2013_GDP_P_Current!I$4*100 -> 2.433040685 | I20: =Tab1.1_2013_GDP_P_Current!J20/Tab1.1_2013_GDP_P_Current!J$4*100 -> 2.557096219 | J20: =Tab1.1_2013_GDP_P_Current!K20/Tab1.1_2013_GDP_P_Current!K$4*100 -> 2.922098792 | K20: =Tab1.1_2013_GDP_P_Current!L20/Tab1.1_2013_GDP_P_Current!L$4*100 -> 3.063506124 | L20: =Tab1.1_2013_GDP_P_Current!M20/Tab1.1_2013_GDP_P_Current!M$4*100 -> 3.568473079 | M20: =Tab1.1_2013_GDP_P_Current!N20/Tab1.1_2013_GDP_P_Current!N$4*100 -> 3.280387296 | N20: =Tab1.1_2013_GDP_P_Current!O20/Tab1.1_2013_GDP_P_Current!O$4*100 -> 3.17326329 | O20: =Tab1.1_2013_GDP_P_Current!P20/Tab1.1_2013_GDP_P_Current!P$4*100 -> 2.828936368 | P20: =Tab1.1_2013_GDP_P_Current!Q20/Tab1.1_2013_GDP_P_Current!Q$4*100 -> 3.308080806 | Q20: =Tab1.1_2013_GDP_P_Current!R20/Tab1.1_2013_GDP_P_Current!R$4*100 -> 3.388762089
A21: K | B21: Financial and insurance activities | C21: =Tab1.1_2013_GDP_P_Current!D21/Tab1.1_2013_GDP_P_Current!D$4*100 -> 1.340207209 | D21: =Tab1.1_2013_GDP_P_Current!E21/Tab1.1_2013_GDP_P_Current!E$4*100 -> 1.403272494 | E21: =Tab1.1_2013_GDP_P_Current!F21/Tab1.1_2013_GDP_P_Current!F$4*100 -> 1.565976033 | F21: =Tab1.1_2013_GDP_P_Current!G21/Tab1.1_2013_GDP_P_Current!G$4*100 -> 1.444032007 | G21: =Tab1.1_2013_GDP_P_Current!H21/Tab1.1_2013_GDP_P_Current!H$4*100 -> 1.680048601 | H21: =Tab1.1_2013_GDP_P_Current!I21/Tab1.1_2013_GDP_P_Current!I$4*100 -> 2.013662067 | I21: =Tab1.1_2013_GDP_P_Current!J21/Tab1.1_2013_GDP_P_Current!J$4*100 -> 1.902159621 | J21: =Tab1.1_2013_GDP_P_Current!K21/Tab1.1_2013_GDP_P_Current!K$4*100 -> 2.357334043 | K21: =Tab1.1_2013_GDP_P_Current!L21/Tab1.1_2013_GDP_P_Current!L$4*100 -> 2.344902006 | L21: =Tab1.1_2013_GDP_P_Current!M21/Tab1.1_2013_GDP_P_Current!M$4*100 -> 2.412386768 | M21: =Tab1.1_2013_GDP_P_Current!N21/Tab1.1_2013_GDP_P_Current!N$4*100 -> 2.624797337 | N21: =Tab1.1_2013_GDP_P_Current!O21/Tab1.1_2013_GDP_P_Current!O$4*100 -> 2.167529381 | O21: =Tab1.1_2013_GDP_P_Current!P21/Tab1.1_2013_GDP_P_Current!P$4*100 -> 1.808404208 | P21: =Tab1.1_2013_GDP_P_Current!Q21/Tab1.1_2013_GDP_P_Current!Q$4*100 -> 2.020274613 | Q21: =Tab1.1_2013_GDP_P_Current!R21/Tab1.1_2013_GDP_P_Current!R$4*100 -> 3.270339897
A22: L | B22: Real estate activities | C22: =Tab1.1_2013_GDP_P_Current!D22/Tab1.1_2013_GDP_P_Current!D$4*100 -> 2.361172217 | D22: =Tab1.1_2013_GDP_P_Current!E22/Tab1.1_2013_GDP_P_Current!E$4*100 -> 2.46380642 | E22: =Tab1.1_2013_GDP_P_Current!F22/Tab1.1_2013_GDP_P_Current!F$4*100 -> 2.676969159 | F22: =Tab1.1_2013_GDP_P_Current!G22/Tab1.1_2013_GDP_P_Current!G$4*100 -> 2.636938069 | G22: =Tab1.1_2013_GDP_P_Current!H22/Tab1.1_2013_GDP_P_Current!H$4*100 -> 2.521253562 | H22: =Tab1.1_2013_GDP_P_Current!I22/Tab1.1_2013_GDP_P_Current!I$4*100 -> 2.40225914 | I22: =Tab1.1_2013_GDP_P_Current!J22/Tab1.1_2013_GDP_P_Current!J$4*100 -> 2.23331462 | J22: =Tab1.1_2013_GDP_P_Current!K22/Tab1.1_2013_GDP_P_Current!K$4*100 -> 2.401697602 | K22: =Tab1.1_2013_GDP_P_Current!L22/Tab1.1_2013_GDP_P_Current!L$4*100 -> 2.258085587 | L22: =Tab1.1_2013_GDP_P_Current!M22/Tab1.1_2013_GDP_P_Current!M$4*100 -> 2.263467458 | M22: =Tab1.1_2013_GDP_P_Current!N22/Tab1.1_2013_GDP_P_Current!N$4*100 -> 2.240135653 | N22: =Tab1.1_2013_GDP_P_Current!O22/Tab1.1_2013_GDP_P_Current!O$4*100 -> 2.192944738 | O22: =Tab1.1_2013_GDP_P_Current!P22/Tab1.1_2013_GDP_P_Current!P$4*100 -> 2.076693515 | P22: =Tab1.1_2013_GDP_P_Current!Q22/Tab1.1_2013_GDP_P_Current!Q$4*100 -> 2.031107537 | Q22: =Tab1.1_2013_GDP_P_Current!R22/Tab1.1_2013_GDP_P_Current!R$4*100 -> 1.907605203
A23: M | B23: Professional, scientific and technical activities | C23: =Tab1.1_2013_GDP_P_Current!D23/Tab1.1_2013_GDP_P_Current!D$4*100 -> 0.2215167807 | D23: =Tab1.1_2013_GDP_P_Current!E23/Tab1.1_2013_GDP_P_Current!E$4*100 -> 0.2311455566 | E23: =Tab1.1_2013_GDP_P_Current!F23/Tab1.1_2013_GDP_P_Current!F$4*100 -> 0.2511437268 | F23: =Tab1.1_2013_GDP_P_Current!G23/Tab1.1_2013_GDP_P_Current!G$4*100 -> 0.2473881522 | G23: =Tab1.1_2013_GDP_P_Current!H23/Tab1.1_2013_GDP_P_Current!H$4*100 -> 0.2365350432 | H23: =Tab1.1_2013_GDP_P_Current!I23/Tab1.1_2013_GDP_P_Current!I$4*100 -> 0.2253714097 | I23: =Tab1.1_2013_GDP_P_Current!J23/Tab1.1_2013_GDP_P_Current!J$4*100 -> 0.2095216356 | J23: =Tab1.1_2013_GDP_P_Current!K23/Tab1.1_2013_GDP_P_Current!K$4*100 -> 0.2253187282 | K23: =Tab1.1_2013_GDP_P_Current!L23/Tab1.1_2013_GDP_P_Current!L$4*100 -> 0.2118455597 | L23: =Tab1.1_2013_GDP_P_Current!M23/Tab1.1_2013_GDP_P_Current!M$4*100 -> 0.2123504677 | M23: =Tab1.1_2013_GDP_P_Current!N23/Tab1.1_2013_GDP_P_Current!N$4*100 -> 0.2189970761 | N23: =Tab1.1_2013_GDP_P_Current!O23/Tab1.1_2013_GDP_P_Current!O$4*100 -> 0.1975692516 | O23: =Tab1.1_2013_GDP_P_Current!P23/Tab1.1_2013_GDP_P_Current!P$4*100 -> 0.2110278503 | P23: =Tab1.1_2013_GDP_P_Current!Q23/Tab1.1_2013_GDP_P_Current!Q$4*100 -> 0.1741265131 | Q23: =Tab1.1_2013_GDP_P_Current!R23/Tab1.1_2013_GDP_P_Current!R$4*100 -> 0.1517507762
A24: N | B24: Administrative and support service activities | C24: =Tab1.1_2013_GDP_P_Current!D24/Tab1.1_2013_GDP_P_Current!D$4*100 -> 1.253607992 | D24: =Tab1.1_2013_GDP_P_Current!E24/Tab1.1_2013_GDP_P_Current!E$4*100 -> 1.308099171 | E24: =Tab1.1_2013_GDP_P_Current!F24/Tab1.1_2013_GDP_P_Current!F$4*100 -> 1.421272836 | F24: =Tab1.1_2013_GDP_P_Current!G24/Tab1.1_2013_GDP_P_Current!G$4*100 -> 1.400019284 | G24: =Tab1.1_2013_GDP_P_Current!H24/Tab1.1_2013_GDP_P_Current!H$4*100 -> 1.338599359 | H24: =Tab1.1_2013_GDP_P_Current!I24/Tab1.1_2013_GDP_P_Current!I$4*100 -> 1.275422113 | I24: =Tab1.1_2013_GDP_P_Current!J24/Tab1.1_2013_GDP_P_Current!J$4*100 -> 1.185725055 | J24: =Tab1.1_2013_GDP_P_Current!K24/Tab1.1_2013_GDP_P_Current!K$4*100 -> 1.275123977 | K24: =Tab1.1_2013_GDP_P_Current!L24/Tab1.1_2013_GDP_P_Current!L$4*100 -> 1.198876608 | L24: =Tab1.1_2013_GDP_P_Current!M24/Tab1.1_2013_GDP_P_Current!M$4*100 -> 1.201733984 | M24: =Tab1.1_2013_GDP_P_Current!N24/Tab1.1_2013_GDP_P_Current!N$4*100 -> 1.311591531 | N24: =Tab1.1_2013_GDP_P_Current!O24/Tab1.1_2013_GDP_P_Current!O$4*100 -> 1.209969388 | O24: =Tab1.1_2013_GDP_P_Current!P24/Tab1.1_2013_GDP_P_Current!P$4*100 -> 1.173109487 | P24: =Tab1.1_2013_GDP_P_Current!Q24/Tab1.1_2013_GDP_P_Current!Q$4*100 -> 1.203734929 | Q24: =Tab1.1_2013_GDP_P_Current!R24/Tab1.1_2013_GDP_P_Current!R$4*100 -> 1.005950762
A25: O | B25: Public administration and defence; compulsory social security | C25: =Tab1.1_2013_GDP_P_Current!D25/Tab1.1_2013_GDP_P_Current!D$4*100 -> 3.275878863 | D25: =Tab1.1_2013_GDP_P_Current!E25/Tab1.1_2013_GDP_P_Current!E$4*100 -> 3.34776872 | E25: =Tab1.1_2013_GDP_P_Current!F25/Tab1.1_2013_GDP_P_Current!F$4*100 -> 3.497879683 | F25: =Tab1.1_2013_GDP_P_Current!G25/Tab1.1_2013_GDP_P_Current!G$4*100 -> 2.474993506 | G25: =Tab1.1_2013_GDP_P_Current!H25/Tab1.1_2013_GDP_P_Current!H$4*100 -> 2.340435868 | H25: =Tab1.1_2013_GDP_P_Current!I25/Tab1.1_2013_GDP_P_Current!I$4*100 -> 2.865249353 | I25: =Tab1.1_2013_GDP_P_Current!J25/Tab1.1_2013_GDP_P_Current!J$4*100 -> 3.061326026 | J25: =Tab1.1_2013_GDP_P_Current!K25/Tab1.1_2013_GDP_P_Current!K$4*100 -> 3.419539463 | K25: =Tab1.1_2013_GDP_P_Current!L25/Tab1.1_2013_GDP_P_Current!L$4*100 -> 3.365079182 | L25: =Tab1.1_2013_GDP_P_Current!M25/Tab1.1_2013_GDP_P_Current!M$4*100 -> 3.49233704 | M25: =Tab1.1_2013_GDP_P_Current!N25/Tab1.1_2013_GDP_P_Current!N$4*100 -> 3.104548902 | N25: =Tab1.1_2013_GDP_P_Current!O25/Tab1.1_2013_GDP_P_Current!O$4*100 -> 2.958057174 | O25: =Tab1.1_2013_GDP_P_Current!P25/Tab1.1_2013_GDP_P_Current!P$4*100 -> 2.564257802 | P25: =Tab1.1_2013_GDP_P_Current!Q25/Tab1.1_2013_GDP_P_Current!Q$4*100 -> 2.416463767 | Q25: =Tab1.1_2013_GDP_P_Current!R25/Tab1.1_2013_GDP_P_Current!R$4*100 -> 2.842357046
A26: P | B26: Education | C26: =Tab1.1_2013_GDP_P_Current!D26/Tab1.1_2013_GDP_P_Current!D$4*100 -> 1.884815064 | D26: =Tab1.1_2013_GDP_P_Current!E26/Tab1.1_2013_GDP_P_Current!E$4*100 -> 1.984472208 | E26: =Tab1.1_2013_GDP_P_Current!F26/Tab1.1_2013_GDP_P_Current!F$4*100 -> 2.143919902 | F26: =Tab1.1_2013_GDP_P_Current!G26/Tab1.1_2013_GDP_P_Current!G$4*100 -> 2.110816101 | G26: =Tab1.1_2013_GDP_P_Current!H26/Tab1.1_2013_GDP_P_Current!H$4*100 -> 2.139152865 | H26: =Tab1.1_2013_GDP_P_Current!I26/Tab1.1_2013_GDP_P_Current!I$4*100 -> 2.034937353 | I26: =Tab1.1_2013_GDP_P_Current!J26/Tab1.1_2013_GDP_P_Current!J$4*100 -> 2.018257857 | J26: =Tab1.1_2013_GDP_P_Current!K26/Tab1.1_2013_GDP_P_Current!K$4*100 -> 2.257603326 | K26: =Tab1.1_2013_GDP_P_Current!L26/Tab1.1_2013_GDP_P_Current!L$4*100 -> 2.230242541 | L26: =Tab1.1_2013_GDP_P_Current!M26/Tab1.1_2013_GDP_P_Current!M$4*100 -> 2.337495484 | M26: =Tab1.1_2013_GDP_P_Current!N26/Tab1.1_2013_GDP_P_Current!N$4*100 -> 2.162576317 | N26: =Tab1.1_2013_GDP_P_Current!O26/Tab1.1_2013_GDP_P_Current!O$4*100 -> 2.008893722 | O26: =Tab1.1_2013_GDP_P_Current!P26/Tab1.1_2013_GDP_P_Current!P$4*100 -> 2.119234762 | P26: =Tab1.1_2013_GDP_P_Current!Q26/Tab1.1_2013_GDP_P_Current!Q$4*100 -> 2.149074417 | Q26: =Tab1.1_2013_GDP_P_Current!R26/Tab1.1_2013_GDP_P_Current!R$4*100 -> 1.888994429
A27: Q | B27: Human health and social work activities | C27: =Tab1.1_2013_GDP_P_Current!D27/Tab1.1_2013_GDP_P_Current!D$4*100 -> 0.843873201 | D27: =Tab1.1_2013_GDP_P_Current!E27/Tab1.1_2013_GDP_P_Current!E$4*100 -> 0.8486013092 | E27: =Tab1.1_2013_GDP_P_Current!F27/Tab1.1_2013_GDP_P_Current!F$4*100 -> 0.9964468927 | F27: =Tab1.1_2013_GDP_P_Current!G27/Tab1.1_2013_GDP_P_Current!G$4*100 -> 0.9242250069 | G27: =Tab1.1_2013_GDP_P_Current!H27/Tab1.1_2013_GDP_P_Current!H$4*100 -> 0.8553377284 | H27: =Tab1.1_2013_GDP_P_Current!I27/Tab1.1_2013_GDP_P_Current!I$4*100 -> 0.9366697351 | I27: =Tab1.1_2013_GDP_P_Current!J27/Tab1.1_2013_GDP_P_Current!J$4*100 -> 0.9351192193 | J27: =Tab1.1_2013_GDP_P_Current!K27/Tab1.1_2013_GDP_P_Current!K$4*100 -> 1.010464692 | K27: =Tab1.1_2013_GDP_P_Current!L27/Tab1.1_2013_GDP_P_Current!L$4*100 -> 0.9283578766 | L27: =Tab1.1_2013_GDP_P_Current!M27/Tab1.1_2013_GDP_P_Current!M$4*100 -> 0.9333169349 | M27: =Tab1.1_2013_GDP_P_Current!N27/Tab1.1_2013_GDP_P_Current!N$4*100 -> 0.858972984 | N27: =Tab1.1_2013_GDP_P_Current!O27/Tab1.1_2013_GDP_P_Current!O$4*100 -> 0.7201590687 | O27: =Tab1.1_2013_GDP_P_Current!P27/Tab1.1_2013_GDP_P_Current!P$4*100 -> 0.7552719008 | P27: =Tab1.1_2013_GDP_P_Current!Q27/Tab1.1_2013_GDP_P_Current!Q$4*100 -> 0.6397778934 | Q27: =Tab1.1_2013_GDP_P_Current!R27/Tab1.1_2013_GDP_P_Current!R$4*100 -> 0.6505188438
A28: R | B28: Arts, entertainment and recreation | C28: =Tab1.1_2013_GDP_P_Current!D28/Tab1.1_2013_GDP_P_Current!D$4*100 -> 0.488796101 | D28: =Tab1.1_2013_GDP_P_Current!E28/Tab1.1_2013_GDP_P_Current!E$4*100 -> 0.5003227814 | E28: =Tab1.1_2013_GDP_P_Current!F28/Tab1.1_2013_GDP_P_Current!F$4*100 -> 0.5162382742 | F28: =Tab1.1_2013_GDP_P_Current!G28/Tab1.1_2013_GDP_P_Current!G$4*100 -> 0.4979955259 | G28: =Tab1.1_2013_GDP_P_Current!H28/Tab1.1_2013_GDP_P_Current!H$4*100 -> 0.4719074373 | H28: =Tab1.1_2013_GDP_P_Current!I28/Tab1.1_2013_GDP_P_Current!I$4*100 -> 0.4387734483 | I28: =Tab1.1_2013_GDP_P_Current!J28/Tab1.1_2013_GDP_P_Current!J$4*100 -> 0.4077338096 | J28: =Tab1.1_2013_GDP_P_Current!K28/Tab1.1_2013_GDP_P_Current!K$4*100 -> 0.4426609093 | K28: =Tab1.1_2013_GDP_P_Current!L28/Tab1.1_2013_GDP_P_Current!L$4*100 -> 0.4267709889 | L28: =Tab1.1_2013_GDP_P_Current!M28/Tab1.1_2013_GDP_P_Current!M$4*100 -> 0.4308495064 | M28: =Tab1.1_2013_GDP_P_Current!N28/Tab1.1_2013_GDP_P_Current!N$4*100 -> 0.5517310768 | N28: =Tab1.1_2013_GDP_P_Current!O28/Tab1.1_2013_GDP_P_Current!O$4*100 -> 0.6100221707 | O28: =Tab1.1_2013_GDP_P_Current!P28/Tab1.1_2013_GDP_P_Current!P$4*100 -> 0.6019682853 | P28: =Tab1.1_2013_GDP_P_Current!Q28/Tab1.1_2013_GDP_P_Current!Q$4*100 -> 0.5988406734 | Q28: =Tab1.1_2013_GDP_P_Current!R28/Tab1.1_2013_GDP_P_Current!R$4*100 -> 0.5683297777
A29: S | B29: Other service activities | C29: =Tab1.1_2013_GDP_P_Current!D29/Tab1.1_2013_GDP_P_Current!D$4*100 -> 1.632854747 | D29: =Tab1.1_2013_GDP_P_Current!E29/Tab1.1_2013_GDP_P_Current!E$4*100 -> 1.671360363 | E29: =Tab1.1_2013_GDP_P_Current!F29/Tab1.1_2013_GDP_P_Current!F$4*100 -> 1.724527088 | F29: =Tab1.1_2013_GDP_P_Current!G29/Tab1.1_2013_GDP_P_Current!G$4*100 -> 1.663586017 | G29: =Tab1.1_2013_GDP_P_Current!H29/Tab1.1_2013_GDP_P_Current!H$4*100 -> 1.576437082 | H29: =Tab1.1_2013_GDP_P_Current!I29/Tab1.1_2013_GDP_P_Current!I$4*100 -> 1.465750865 | I29: =Tab1.1_2013_GDP_P_Current!J29/Tab1.1_2013_GDP_P_Current!J$4*100 -> 1.36206096 | J29: =Tab1.1_2013_GDP_P_Current!K29/Tab1.1_2013_GDP_P_Current!K$4*100 -> 1.478737179 | K29: =Tab1.1_2013_GDP_P_Current!L29/Tab1.1_2013_GDP_P_Current!L$4*100 -> 1.425655879 | L29: =Tab1.1_2013_GDP_P_Current!M29/Tab1.1_2013_GDP_P_Current!M$4*100 -> 1.439280429 | M29: =Tab1.1_2013_GDP_P_Current!N29/Tab1.1_2013_GDP_P_Current!N$4*100 -> 1.829244767 | N29: =Tab1.1_2013_GDP_P_Current!O29/Tab1.1_2013_GDP_P_Current!O$4*100 -> 1.586697654 | O29: =Tab1.1_2013_GDP_P_Current!P29/Tab1.1_2013_GDP_P_Current!P$4*100 -> 1.552569759 | P29: =Tab1.1_2013_GDP_P_Current!Q29/Tab1.1_2013_GDP_P_Current!Q$4*100 -> 1.31415714 | Q29: =Tab1.1_2013_GDP_P_Current!R29/Tab1.1_2013_GDP_P_Current!R$4*100 -> 1.212607288
B30: GDP basic price (Gross Value Added) | C30: =Tab1.1_2013_GDP_P_Current!D30/Tab1.1_2013_GDP_P_Current!D$4*100 -> 94.01258974 | D30: =Tab1.1_2013_GDP_P_Current!E30/Tab1.1_2013_GDP_P_Current!E$4*100 -> 94.3254195 | E30: =Tab1.1_2013_GDP_P_Current!F30/Tab1.1_2013_GDP_P_Current!F$4*100 -> 93.3282903 | F30: =Tab1.1_2013_GDP_P_Current!G30/Tab1.1_2013_GDP_P_Current!G$4*100 -> 92.80309214 | G30: =Tab1.1_2013_GDP_P_Current!H30/Tab1.1_2013_GDP_P_Current!H$4*100 -> 93.92636893 | H30: =Tab1.1_2013_GDP_P_Current!I30/Tab1.1_2013_GDP_P_Current!I$4*100 -> 93.0456494 | I30: =Tab1.1_2013_GDP_P_Current!J30/Tab1.1_2013_GDP_P_Current!J$4*100 -> 94.22194709 | J30: =Tab1.1_2013_GDP_P_Current!K30/Tab1.1_2013_GDP_P_Current!K$4*100 -> 93.61528212 | K30: =Tab1.1_2013_GDP_P_Current!L30/Tab1.1_2013_GDP_P_Current!L$4*100 -> 93.80315654 | L30: =Tab1.1_2013_GDP_P_Current!M30/Tab1.1_2013_GDP_P_Current!M$4*100 -> 93.24311595 | M30: =Tab1.1_2013_GDP_P_Current!N30/Tab1.1_2013_GDP_P_Current!N$4*100 -> 92.11240535 | N30: =Tab1.1_2013_GDP_P_Current!O30/Tab1.1_2013_GDP_P_Current!O$4*100 -> 91.24212651 | O30: =Tab1.1_2013_GDP_P_Current!P30/Tab1.1_2013_GDP_P_Current!P$4*100 -> 91.59500667 | P30: =Tab1.1_2013_GDP_P_Current!Q30/Tab1.1_2013_GDP_P_Current!Q$4*100 -> 92.32000679 | Q30: =Tab1.1_2013_GDP_P_Current!R30/Tab1.1_2013_GDP_P_Current!R$4*100 -> 91.94257947
B31: Taxes less subsidies on products (+) | C31: =Tab1.1_2013_GDP_P_Current!D31/Tab1.1_2013_GDP_P_Current!D$4*100 -> 5.98741026 | D31: =Tab1.1_2013_GDP_P_Current!E31/Tab1.1_2013_GDP_P_Current!E$4*100 -> 5.674580498 | E31: =Tab1.1_2013_GDP_P_Current!F31/Tab1.1_2013_GDP_P_Current!F$4*100 -> 6.671709703 | F31: =Tab1.1_2013_GDP_P_Current!G31/Tab1.1_2013_GDP_P_Current!G$4*100 -> 7.196907855 | G31: =Tab1.1_2013_GDP_P_Current!H31/Tab1.1_2013_GDP_P_Current!H$4*100 -> 6.073631068 | H31: =Tab1.1_2013_GDP_P_Current!I31/Tab1.1_2013_GDP_P_Current!I$4*100 -> 6.954350605 | I31: =Tab1.1_2013_GDP_P_Current!J31/Tab1.1_2013_GDP_P_Current!J$4*100 -> 5.778052907 | J31: =Tab1.1_2013_GDP_P_Current!K31/Tab1.1_2013_GDP_P_Current!K$4*100 -> 6.384717876 | K31: =Tab1.1_2013_GDP_P_Current!L31/Tab1.1_2013_GDP_P_Current!L$4*100 -> 6.196843459 | L31: =Tab1.1_2013_GDP_P_Current!M31/Tab1.1_2013_GDP_P_Current!M$4*100 -> 6.756884053 | M31: =Tab1.1_2013_GDP_P_Current!N31/Tab1.1_2013_GDP_P_Current!N$4*100 -> 7.887594651 | N31: =Tab1.1_2013_GDP_P_Current!O31/Tab1.1_2013_GDP_P_Current!O$4*100 -> 8.757873491 | O31: =Tab1.1_2013_GDP_P_Current!P31/Tab1.1_2013_GDP_P_Current!P$4*100 -> 8.404993334 | P31: =Tab1.1_2013_GDP_P_Current!Q31/Tab1.1_2013_GDP_P_Current!Q$4*100 -> 7.679993214 | Q31: =Tab1.1_2013_GDP_P_Current!R31/Tab1.1_2013_GDP_P_Current!R$4*100 -> 8.057420537
B33: 2018* Provisional data
A35: Contribution to GDP estimates, 2013 base year: basic price
A37: ISIC Rev.4 | B37: Industry | C37: 2004 | D37: 2005 | E37: 2006 | F37: 2007 | G37: 2008 | H37: 2009 | I37: 2010 | J37: 2011 | K37: 2012 | L37: 2013 | M37: 2014 | N37: 2015 | O37: 2016 | P37: 2017 | Q37: 2018*
B38: Gross Domestic Product (GDP) market price | L38: 106.2518477 | M38: 107.6885802 | N38: 108.8149496 | O38: 108.8184807 | P38: 108.0797492
A39: A | B39: Agriculture, forestry and fishing | C39: ='Tab 1.2_2013_GDP_P_Constant'!C5/'Tab 1.2_2013_GDP_P_Constant'!C$30*100 -> 34.12001331 | D39: ='Tab 1.2_2013_GDP_P_Constant'!D5/'Tab 1.2_2013_GDP_P_Constant'!D$30*100 -> 33.96692548 | E39: ='Tab 1.2_2013_GDP_P_Constant'!E5/'Tab 1.2_2013_GDP_P_Constant'!E$30*100 -> 28.49040881 | F39: ='Tab 1.2_2013_GDP_P_Constant'!F5/'Tab 1.2_2013_GDP_P_Constant'!F$30*100 -> 26.49829409 | G39: ='Tab 1.2_2013_GDP_P_Constant'!G5/'Tab 1.2_2013_GDP_P_Constant'!G$30*100 -> 32.65149501 | H39: ='Tab 1.2_2013_GDP_P_Constant'!H5/'Tab 1.2_2013_GDP_P_Constant'!H$30*100 -> 35.17298706 | I39: ='Tab 1.2_2013_GDP_P_Constant'!I5/'Tab 1.2_2013_GDP_P_Constant'!I$30*100 -> 37.14669058 | J39: ='Tab 1.2_2013_GDP_P_Constant'!J5/'Tab 1.2_2013_GDP_P_Constant'!J$30*100 -> 29.30057577 | K39: ='Tab 1.2_2013_GDP_P_Constant'!K5/'Tab 1.2_2013_GDP_P_Constant'!K$30*100 -> 29.66519869 | L39: ='Tab 1.2_2013_GDP_P_Constant'!L5/'Tab 1.2_2013_GDP_P_Constant'!L$30*100 -> 28.12231474 | M39: ='Tab 1.2_2013_GDP_P_Constant'!M5/'Tab 1.2_2013_GDP_P_Constant'!M$30*100 -> 25.00406099 | N39: ='Tab 1.2_2013_GDP_P_Constant'!N5/'Tab 1.2_2013_GDP_P_Constant'!N$30*100 -> 24.98071966 | O39: ='Tab 1.2_2013_GDP_P_Constant'!O5/'Tab 1.2_2013_GDP_P_Constant'!O$30*100 -> 24.44750074 | P39: ='Tab 1.2_2013_GDP_P_Constant'!P5/'Tab 1.2_2013_GDP_P_Constant'!P$30*100 -> 22.30478119 | Q39: ='Tab 1.2_2013_GDP_P_Constant'!Q5/'Tab 1.2_2013_GDP_P_Constant'!Q$30*100 -> 21.11957638
B40: Crop | C40: ='Tab 1.2_2013_GDP_P_Constant'!C6/'Tab 1.2_2013_GDP_P_Constant'!C$30*100 -> 23.66302628 | D40: ='Tab 1.2_2013_GDP_P_Constant'!D6/'Tab 1.2_2013_GDP_P_Constant'!D$30*100 -> 23.26474595 | E40: ='Tab 1.2_2013_GDP_P_Constant'!E6/'Tab 1.2_2013_GDP_P_Constant'!E$30*100 -> 17.26012769 | F40: ='Tab 1.2_2013_GDP_P_Constant'!F6/'Tab 1.2_2013_GDP_P_Constant'!F$30*100 -> 14.21271512 | G40: ='Tab 1.2_2013_GDP_P_Constant'!G6/'Tab 1.2_2013_GDP_P_Constant'!G$30*100 -> 20.74946606 | H40: ='Tab 1.2_2013_GDP_P_Constant'!H6/'Tab 1.2_2013_GDP_P_Constant'!H$30*100 -> 24.1956845 | I40: ='Tab 1.2_2013_GDP_P_Constant'!I6/'Tab 1.2_2013_GDP_P_Constant'!I$30*100 -> 26.4356783 | J40: ='Tab 1.2_2013_GDP_P_Constant'!J6/'Tab 1.2_2013_GDP_P_Constant'!J$30*100 -> 17.18446262 | K40: ='Tab 1.2_2013_GDP_P_Constant'!K6/'Tab 1.2_2013_GDP_P_Constant'!K$30*100 -> 17.7189613 | L40: ='Tab 1.2_2013_GDP_P_Constant'!L6/'Tab 1.2_2013_GDP_P_Constant'!L$30*100 -> 16.07411352 | M40: ='Tab 1.2_2013_GDP_P_Constant'!M6/'Tab 1.2_2013_GDP_P_Constant'!M$30*100 -> 14.02618304 | N40: ='Tab 1.2_2013_GDP_P_Constant'!N6/'Tab 1.2_2013_GDP_P_Constant'!N$30*100 -> 14.26307249 | O40: ='Tab 1.2_2013_GDP_P_Constant'!O6/'Tab 1.2_2013_GDP_P_Constant'!O$30*100 -> 13.62190453 | P40: ='Tab 1.2_2013_GDP_P_Constant'!P6/'Tab 1.2_2013_GDP_P_Constant'!P$30*100 -> 10.59335688 | Q40: ='Tab 1.2_2013_GDP_P_Constant'!Q6/'Tab 1.2_2013_GDP_P_Constant'!Q$30*100 -> 10.59565408
B41: Livestock | C41: ='Tab 1.2_2013_GDP_P_Constant'!C7/'Tab 1.2_2013_GDP_P_Constant'!C$30*100 -> 4.838864665 | D41: ='Tab 1.2_2013_GDP_P_Constant'!D7/'Tab 1.2_2013_GDP_P_Constant'!D$30*100 -> 5.005797945 | E41: ='Tab 1.2_2013_GDP_P_Constant'!E7/'Tab 1.2_2013_GDP_P_Constant'!E$30*100 -> 5.11091907 | F41: ='Tab 1.2_2013_GDP_P_Constant'!F7/'Tab 1.2_2013_GDP_P_Constant'!F$30*100 -> 5.565857274 | G41: ='Tab 1.2_2013_GDP_P_Constant'!G7/'Tab 1.2_2013_GDP_P_Constant'!G$30*100 -> 5.388781454 | H41: ='Tab 1.2_2013_GDP_P_Constant'!H7/'Tab 1.2_2013_GDP_P_Constant'!H$30*100 -> 4.816646691 | I41: ='Tab 1.2_2013_GDP_P_Constant'!I7/'Tab 1.2_2013_GDP_P_Constant'!I$30*100 -> 4.777451711 | J41: ='Tab 1.2_2013_GDP_P_Constant'!J7/'Tab 1.2_2013_GDP_P_Constant'!J$30*100 -> 5.39069727 | K41: ='Tab 1.2_2013_GDP_P_Constant'!K7/'Tab 1.2_2013_GDP_P_Constant'!K$30*100 -> 5.339052907 | L41: ='Tab 1.2_2013_GDP_P_Constant'!L7/'Tab 1.2_2013_GDP_P_Constant'!L$30*100 -> 5.367179832 | M41: ='Tab 1.2_2013_GDP_P_Constant'!M7/'Tab 1.2_2013_GDP_P_Constant'!M$30*100 -> 5.295829169 | N41: ='Tab 1.2_2013_GDP_P_Constant'!N7/'Tab 1.2_2013_GDP_P_Constant'!N$30*100 -> 4.261365632 | O41: ='Tab 1.2_2013_GDP_P_Constant'!O7/'Tab 1.2_2013_GDP_P_Constant'!O$30*100 -> 4.05420261 | P41: ='Tab 1.2_2013_GDP_P_Constant'!P7/'Tab 1.2_2013_GDP_P_Constant'!P$30*100 -> 3.446887783 | Q41: ='Tab 1.2_2013_GDP_P_Constant'!Q7/'Tab 1.2_2013_GDP_P_Constant'!Q$30*100 -> 3.052700589
B42: Forestry and logging | C42: ='Tab 1.2_2013_GDP_P_Constant'!C8/'Tab 1.2_2013_GDP_P_Constant'!C$30*100 -> 1.24970285 | D42: ='Tab 1.2_2013_GDP_P_Constant'!D8/'Tab 1.2_2013_GDP_P_Constant'!D$30*100 -> 1.319169994 | E42: ='Tab 1.2_2013_GDP_P_Constant'!E8/'Tab 1.2_2013_GDP_P_Constant'!E$30*100 -> 1.367975702 | F42: ='Tab 1.2_2013_GDP_P_Constant'!F8/'Tab 1.2_2013_GDP_P_Constant'!F$30*100 -> 1.274960646 | G42: ='Tab 1.2_2013_GDP_P_Constant'!G8/'Tab 1.2_2013_GDP_P_Constant'!G$30*100 -> 1.211492921 | H42: ='Tab 1.2_2013_GDP_P_Constant'!H8/'Tab 1.2_2013_GDP_P_Constant'!H$30*100 -> 1.137032582 | I42: ='Tab 1.2_2013_GDP_P_Constant'!I8/'Tab 1.2_2013_GDP_P_Constant'!I$30*100 -> 1.106025992 | J42: ='Tab 1.2_2013_GDP_P_Constant'!J8/'Tab 1.2_2013_GDP_P_Constant'!J$30*100 -> 1.249179788 | K42: ='Tab 1.2_2013_GDP_P_Constant'!K8/'Tab 1.2_2013_GDP_P_Constant'!K$30*100 -> 1.22367617 | L42: ='Tab 1.2_2013_GDP_P_Constant'!L8/'Tab 1.2_2013_GDP_P_Constant'!L$30*100 -> 1.231334052 | M42: ='Tab 1.2_2013_GDP_P_Constant'!M8/'Tab 1.2_2013_GDP_P_Constant'!M$30*100 -> 1.197185526 | N42: ='Tab 1.2_2013_GDP_P_Constant'!N8/'Tab 1.2_2013_GDP_P_Constant'!N$30*100 -> 1.163067458 | O42: ='Tab 1.2_2013_GDP_P_Constant'!O8/'Tab 1.2_2013_GDP_P_Constant'!O$30*100 -> 0.9578809887 | P42: ='Tab 1.2_2013_GDP_P_Constant'!P8/'Tab 1.2_2013_GDP_P_Constant'!P$30*100 -> 0.8075626938 | Q42: ='Tab 1.2_2013_GDP_P_Constant'!Q8/'Tab 1.2_2013_GDP_P_Constant'!Q$30*100 -> 0.6198395853
B43: Fishing and aquaculture | C43: ='Tab 1.2_2013_GDP_P_Constant'!C9/'Tab 1.2_2013_GDP_P_Constant'!C$30*100 -> 4.368419521 | D43: ='Tab 1.2_2013_GDP_P_Constant'!D9/'Tab 1.2_2013_GDP_P_Constant'!D$30*100 -> 4.377211596 | E43: ='Tab 1.2_2013_GDP_P_Constant'!E9/'Tab 1.2_2013_GDP_P_Constant'!E$30*100 -> 4.751386349 | F43: ='Tab 1.2_2013_GDP_P_Constant'!F9/'Tab 1.2_2013_GDP_P_Constant'!F$30*100 -> 5.444761045 | G43: ='Tab 1.2_2013_GDP_P_Constant'!G9/'Tab 1.2_2013_GDP_P_Constant'!G$30*100 -> 5.301754576 | H43: ='Tab 1.2_2013_GDP_P_Constant'!H9/'Tab 1.2_2013_GDP_P_Constant'!H$30*100 -> 5.023623289 | I43: ='Tab 1.2_2013_GDP_P_Constant'!I9/'Tab 1.2_2013_GDP_P_Constant'!I$30*100 -> 4.827534576 | J43: ='Tab 1.2_2013_GDP_P_Constant'!J9/'Tab 1.2_2013_GDP_P_Constant'!J$30*100 -> 5.476236093 | K43: ='Tab 1.2_2013_GDP_P_Constant'!K9/'Tab 1.2_2013_GDP_P_Constant'!K$30*100 -> 5.383508306 | L43: ='Tab 1.2_2013_GDP_P_Constant'!L9/'Tab 1.2_2013_GDP_P_Constant'!L$30*100 -> 5.44968733 | M43: ='Tab 1.2_2013_GDP_P_Constant'!M9/'Tab 1.2_2013_GDP_P_Constant'!M$30*100 -> 4.484863257 | N43: ='Tab 1.2_2013_GDP_P_Constant'!N9/'Tab 1.2_2013_GDP_P_Constant'!N$30*100 -> 5.293214078 | O43: ='Tab 1.2_2013_GDP_P_Constant'!O9/'Tab 1.2_2013_GDP_P_Constant'!O$30*100 -> 5.813512614 | P43: ='Tab 1.2_2013_GDP_P_Constant'!P9/'Tab 1.2_2013_GDP_P_Constant'!P$30*100 -> 7.456973837 | Q43: ='Tab 1.2_2013_GDP_P_Constant'!Q9/'Tab 1.2_2013_GDP_P_Constant'!Q$30*100 -> 6.851382126
B44: Industry | C44: ='Tab 1.2_2013_GDP_P_Constant'!C10/'Tab 1.2_2013_GDP_P_Constant'!C$30*100 -> 12.55797259 | D44: ='Tab 1.2_2013_GDP_P_Constant'!D10/'Tab 1.2_2013_GDP_P_Constant'!D$30*100 -> 12.63804763 | E44: ='Tab 1.2_2013_GDP_P_Constant'!E10/'Tab 1.2_2013_GDP_P_Constant'!E$30*100 -> 13.2235191 | F44: ='Tab 1.2_2013_GDP_P_Constant'!F10/'Tab 1.2_2013_GDP_P_Constant'!F$30*100 -> 13.17035351 | G44: ='Tab 1.2_2013_GDP_P_Constant'!G10/'Tab 1.2_2013_GDP_P_Constant'!G$30*100 -> 12.26465958 | H44: ='Tab 1.2_2013_GDP_P_Constant'!H10/'Tab 1.2_2013_GDP_P_Constant'!H$30*100 -> 11.41236787 | I44: ='Tab 1.2_2013_GDP_P_Constant'!I10/'Tab 1.2_2013_GDP_P_Constant'!I$30*100 -> 11.09244687 | J44: ='Tab 1.2_2013_GDP_P_Constant'!J10/'Tab 1.2_2013_GDP_P_Constant'!J$30*100 -> 12.65086007 | K44: ='Tab 1.2_2013_GDP_P_Constant'!K10/'Tab 1.2_2013_GDP_P_Constant'!K$30*100 -> 12.64683437 | L44: ='Tab 1.2_2013_GDP_P_Constant'!L10/'Tab 1.2_2013_GDP_P_Constant'!L$30*100 -> 12.75664835 | M44: ='Tab 1.2_2013_GDP_P_Constant'!M10/'Tab 1.2_2013_GDP_P_Constant'!M$30*100 -> 14.18468436 | N44: ='Tab 1.2_2013_GDP_P_Constant'!N10/'Tab 1.2_2013_GDP_P_Constant'!N$30*100 -> 16.71563408 | O44: ='Tab 1.2_2013_GDP_P_Constant'!O10/'Tab 1.2_2013_GDP_P_Constant'!O$30*100 -> 19.54885985 | P44: ='Tab 1.2_2013_GDP_P_Constant'!P10/'Tab 1.2_2013_GDP_P_Constant'!P$30*100 -> 17.99055944 | Q44: ='Tab 1.2_2013_GDP_P_Constant'!Q10/'Tab 1.2_2013_GDP_P_Constant'!Q$30*100 -> 17.30720595
A45: B | B45: Mining and quarrying | C45: ='Tab 1.2_2013_GDP_P_Constant'!C11/'Tab 1.2_2013_GDP_P_Constant'!C$30*100 -> 0.1316546893 | D45: ='Tab 1.2_2013_GDP_P_Constant'!D11/'Tab 1.2_2013_GDP_P_Constant'!D$30*100 -> 0.1996372619 | E45: ='Tab 1.2_2013_GDP_P_Constant'!E11/'Tab 1.2_2013_GDP_P_Constant'!E$30*100 -> 0.2034752202 | F45: ='Tab 1.2_2013_GDP_P_Constant'!F11/'Tab 1.2_2013_GDP_P_Constant'!F$30*100 -> 0.1696793844 | G45: ='Tab 1.2_2013_GDP_P_Constant'!G11/'Tab 1.2_2013_GDP_P_Constant'!G$30*100 -> 0.2072130906 | H45: ='Tab 1.2_2013_GDP_P_Constant'!H11/'Tab 1.2_2013_GDP_P_Constant'!H$30*100 -> 0.2177230079 | I45: ='Tab 1.2_2013_GDP_P_Constant'!I11/'Tab 1.2_2013_GDP_P_Constant'!I$30*100 -> 0.2348338273 | J45: ='Tab 1.2_2013_GDP_P_Constant'!J11/'Tab 1.2_2013_GDP_P_Constant'!J$30*100 -> 0.2758920352 | K45: ='Tab 1.2_2013_GDP_P_Constant'!K11/'Tab 1.2_2013_GDP_P_Constant'!K$30*100 -> 0.2857668007 | L45: ='Tab 1.2_2013_GDP_P_Constant'!L11/'Tab 1.2_2013_GDP_P_Constant'!L$30*100 -> 0.2987369297 | M45: ='Tab 1.2_2013_GDP_P_Constant'!M11/'Tab 1.2_2013_GDP_P_Constant'!M$30*100 -> 0.599166882 | N45: ='Tab 1.2_2013_GDP_P_Constant'!N11/'Tab 1.2_2013_GDP_P_Constant'!N$30*100 -> 0.5338830855 | O45: ='Tab 1.2_2013_GDP_P_Constant'!O11/'Tab 1.2_2013_GDP_P_Constant'!O$30*100 -> 0.4811062889 | P45: ='Tab 1.2_2013_GDP_P_Constant'!P11/'Tab 1.2_2013_GDP_P_Constant'!P$30*100 -> 0.4814308338 | Q45: ='Tab 1.2_2013_GDP_P_Constant'!Q11/'Tab 1.2_2013_GDP_P_Constant'!Q$30*100 -> 0.5492071744
A46: C | B46: Manufacturing | C46: ='Tab 1.2_2013_GDP_P_Constant'!C12/'Tab 1.2_2013_GDP_P_Constant'!C$30*100 -> 5.796821315 | D46: ='Tab 1.2_2013_GDP_P_Constant'!D12/'Tab 1.2_2013_GDP_P_Constant'!D$30*100 -> 6.984081015 | E46: ='Tab 1.2_2013_GDP_P_Constant'!E12/'Tab 1.2_2013_GDP_P_Constant'!E$30*100 -> 7.320483902 | F46: ='Tab 1.2_2013_GDP_P_Constant'!F12/'Tab 1.2_2013_GDP_P_Constant'!F$30*100 -> 7.383560525 | G46: ='Tab 1.2_2013_GDP_P_Constant'!G12/'Tab 1.2_2013_GDP_P_Constant'!G$30*100 -> 6.371386904 | H46: ='Tab 1.2_2013_GDP_P_Constant'!H12/'Tab 1.2_2013_GDP_P_Constant'!H$30*100 -> 5.717688003 | I46: ='Tab 1.2_2013_GDP_P_Constant'!I12/'Tab 1.2_2013_GDP_P_Constant'!I$30*100 -> 5.42335566 | J46: ='Tab 1.2_2013_GDP_P_Constant'!J12/'Tab 1.2_2013_GDP_P_Constant'!J$30*100 -> 6.151839846 | K46: ='Tab 1.2_2013_GDP_P_Constant'!K12/'Tab 1.2_2013_GDP_P_Constant'!K$30*100 -> 5.992074423 | L46: ='Tab 1.2_2013_GDP_P_Constant'!L12/'Tab 1.2_2013_GDP_P_Constant'!L$30*100 -> 6.017819724 | M46: ='Tab 1.2_2013_GDP_P_Constant'!M12/'Tab 1.2_2013_GDP_P_Constant'!M$30*100 -> 6.305803109 | N46: ='Tab 1.2_2013_GDP_P_Constant'!N12/'Tab 1.2_2013_GDP_P_Constant'!N$30*100 -> 6.220391231 | O46: ='Tab 1.2_2013_GDP_P_Constant'!O12/'Tab 1.2_2013_GDP_P_Constant'!O$30*100 -> 5.671984982 | P46: ='Tab 1.2_2013_GDP_P_Constant'!P12/'Tab 1.2_2013_GDP_P_Constant'!P$30*100 -> 4.98610761 | Q46: ='Tab 1.2_2013_GDP_P_Constant'!Q12/'Tab 1.2_2013_GDP_P_Constant'!Q$30*100 -> 4.692128475
A47: D | B47: Electricity, gas, steam and air conditioning supply | C47: ='Tab 1.2_2013_GDP_P_Constant'!C13/'Tab 1.2_2013_GDP_P_Constant'!C$30*100 -> 0.6519195643 | D47: ='Tab 1.2_2013_GDP_P_Constant'!D13/'Tab 1.2_2013_GDP_P_Constant'!D$30*100 -> 0.7973384926 | E47: ='Tab 1.2_2013_GDP_P_Constant'!E13/'Tab 1.2_2013_GDP_P_Constant'!E$30*100 -> 0.8318386487 | F47: ='Tab 1.2_2013_GDP_P_Constant'!F13/'Tab 1.2_2013_GDP_P_Constant'!F$30*100 -> 1.07850605 | G47: ='Tab 1.2_2013_GDP_P_Constant'!G13/'Tab 1.2_2013_GDP_P_Constant'!G$30*100 -> 1.067560745 | H47: ='Tab 1.2_2013_GDP_P_Constant'!H13/'Tab 1.2_2013_GDP_P_Constant'!H$30*100 -> 1.023175142 | I47: ='Tab 1.2_2013_GDP_P_Constant'!I13/'Tab 1.2_2013_GDP_P_Constant'!I$30*100 -> 1.040696758 | J47: ='Tab 1.2_2013_GDP_P_Constant'!J13/'Tab 1.2_2013_GDP_P_Constant'!J$30*100 -> 1.091981026 | K47: ='Tab 1.2_2013_GDP_P_Constant'!K13/'Tab 1.2_2013_GDP_P_Constant'!K$30*100 -> 0.9959203307 | L47: ='Tab 1.2_2013_GDP_P_Constant'!L13/'Tab 1.2_2013_GDP_P_Constant'!L$30*100 -> 0.9907141206 | M47: ='Tab 1.2_2013_GDP_P_Constant'!M13/'Tab 1.2_2013_GDP_P_Constant'!M$30*100 -> 1.065985362 | N47: ='Tab 1.2_2013_GDP_P_Constant'!N13/'Tab 1.2_2013_GDP_P_Constant'!N$30*100 -> 1.128410486 | O47: ='Tab 1.2_2013_GDP_P_Constant'!O13/'Tab 1.2_2013_GDP_P_Constant'!O$30*100 -> 1.187242592 | P47: ='Tab 1.2_2013_GDP_P_Constant'!P13/'Tab 1.2_2013_GDP_P_Constant'!P$30*100 -> 1.048765812 | Q47: ='Tab 1.2_2013_GDP_P_Constant'!Q13/'Tab 1.2_2013_GDP_P_Constant'!Q$30*100 -> 1.114683364
A48: E | B48: Water supply, sewerage, waste management and remediation activities | C48: ='Tab 1.2_2013_GDP_P_Constant'!C14/'Tab 1.2_2013_GDP_P_Constant'!C$30*100 -> 0.4647785725 | D48: ='Tab 1.2_2013_GDP_P_Constant'!D14/'Tab 1.2_2013_GDP_P_Constant'!D$30*100 -> 0.5684533288 | E48: ='Tab 1.2_2013_GDP_P_Constant'!E14/'Tab 1.2_2013_GDP_P_Constant'!E$30*100 -> 0.5930498192 | F48: ='Tab 1.2_2013_GDP_P_Constant'!F14/'Tab 1.2_2013_GDP_P_Constant'!F$30*100 -> 0.7689085125 | G48: ='Tab 1.2_2013_GDP_P_Constant'!G14/'Tab 1.2_2013_GDP_P_Constant'!G$30*100 -> 0.7611051828 | H48: ='Tab 1.2_2013_GDP_P_Constant'!H14/'Tab 1.2_2013_GDP_P_Constant'!H$30*100 -> 0.7294609762 | I48: ='Tab 1.2_2013_GDP_P_Constant'!I14/'Tab 1.2_2013_GDP_P_Constant'!I$30*100 -> 0.7419528113 | J48: ='Tab 1.2_2013_GDP_P_Constant'!J14/'Tab 1.2_2013_GDP_P_Constant'!J$30*100 -> 0.7785153419 | K48: ='Tab 1.2_2013_GDP_P_Constant'!K14/'Tab 1.2_2013_GDP_P_Constant'!K$30*100 -> 0.7100299715 | L48: ='Tab 1.2_2013_GDP_P_Constant'!L14/'Tab 1.2_2013_GDP_P_Constant'!L$30*100 -> 0.7063182637 | M48: ='Tab 1.2_2013_GDP_P_Constant'!M14/'Tab 1.2_2013_GDP_P_Constant'!M$30*100 -> 0.8453660767 | N48: ='Tab 1.2_2013_GDP_P_Constant'!N14/'Tab 1.2_2013_GDP_P_Constant'!N$30*100 -> 0.8489426115 | O48: ='Tab 1.2_2013_GDP_P_Constant'!O14/'Tab 1.2_2013_GDP_P_Constant'!O$30*100 -> 0.9027228359 | P48: ='Tab 1.2_2013_GDP_P_Constant'!P14/'Tab 1.2_2013_GDP_P_Constant'!P$30*100 -> 0.8408987166 | Q48: ='Tab 1.2_2013_GDP_P_Constant'!Q14/'Tab 1.2_2013_GDP_P_Constant'!Q$30*100 -> 0.7918825331
A49: F | B49: Construction | C49: ='Tab 1.2_2013_GDP_P_Constant'!C15/'Tab 1.2_2013_GDP_P_Constant'!C$30*100 -> 5.512798451 | D49: ='Tab 1.2_2013_GDP_P_Constant'!D15/'Tab 1.2_2013_GDP_P_Constant'!D$30*100 -> 4.088537528 | E49: ='Tab 1.2_2013_GDP_P_Constant'!E15/'Tab 1.2_2013_GDP_P_Constant'!E$30*100 -> 4.274671511 | F49: ='Tab 1.2_2013_GDP_P_Constant'!F15/'Tab 1.2_2013_GDP_P_Constant'!F$30*100 -> 3.769699036 | G49: ='Tab 1.2_2013_GDP_P_Constant'!G15/'Tab 1.2_2013_GDP_P_Constant'!G$30*100 -> 3.857393655 | H49: ='Tab 1.2_2013_GDP_P_Constant'!H15/'Tab 1.2_2013_GDP_P_Constant'!H$30*100 -> 3.724320746 | I49: ='Tab 1.2_2013_GDP_P_Constant'!I15/'Tab 1.2_2013_GDP_P_Constant'!I$30*100 -> 3.651607812 | J49: ='Tab 1.2_2013_GDP_P_Constant'!J15/'Tab 1.2_2013_GDP_P_Constant'!J$30*100 -> 4.352631817 | K49: ='Tab 1.2_2013_GDP_P_Constant'!K15/'Tab 1.2_2013_GDP_P_Constant'!K$30*100 -> 4.663042849 | L49: ='Tab 1.2_2013_GDP_P_Constant'!L15/'Tab 1.2_2013_GDP_P_Constant'!L$30*100 -> 4.743059314 | M49: ='Tab 1.2_2013_GDP_P_Constant'!M15/'Tab 1.2_2013_GDP_P_Constant'!M$30*100 -> 5.368362934 | N49: ='Tab 1.2_2013_GDP_P_Constant'!N15/'Tab 1.2_2013_GDP_P_Constant'!N$30*100 -> 7.984006663 | O49: ='Tab 1.2_2013_GDP_P_Constant'!O15/'Tab 1.2_2013_GDP_P_Constant'!O$30*100 -> 11.30580315 | P49: ='Tab 1.2_2013_GDP_P_Constant'!P15/'Tab 1.2_2013_GDP_P_Constant'!P$30*100 -> 10.63335647 | Q49: ='Tab 1.2_2013_GDP_P_Constant'!Q15/'Tab 1.2_2013_GDP_P_Constant'!Q$30*100 -> 10.15930441
B50: Services | C50: ='Tab 1.2_2013_GDP_P_Constant'!C16/'Tab 1.2_2013_GDP_P_Constant'!C$30*100 -> 53.32201409 | D50: ='Tab 1.2_2013_GDP_P_Constant'!D16/'Tab 1.2_2013_GDP_P_Constant'!D$30*100 -> 53.39502689 | E50: ='Tab 1.2_2013_GDP_P_Constant'!E16/'Tab 1.2_2013_GDP_P_Constant'!E$30*100 -> 58.28607209 | F50: ='Tab 1.2_2013_GDP_P_Constant'!F16/'Tab 1.2_2013_GDP_P_Constant'!F$30*100 -> 60.3313524 | G50: ='Tab 1.2_2013_GDP_P_Constant'!G16/'Tab 1.2_2013_GDP_P_Constant'!G$30*100 -> 55.08384542 | H50: ='Tab 1.2_2013_GDP_P_Constant'!H16/'Tab 1.2_2013_GDP_P_Constant'!H$30*100 -> 53.41464506 | I50: ='Tab 1.2_2013_GDP_P_Constant'!I16/'Tab 1.2_2013_GDP_P_Constant'!I$30*100 -> 51.76086255 | J50: ='Tab 1.2_2013_GDP_P_Constant'!J16/'Tab 1.2_2013_GDP_P_Constant'!J$30*100 -> 58.04856416 | K50: ='Tab 1.2_2013_GDP_P_Constant'!K16/'Tab 1.2_2013_GDP_P_Constant'!K$30*100 -> 57.68796694 | L50: ='Tab 1.2_2013_GDP_P_Constant'!L16/'Tab 1.2_2013_GDP_P_Constant'!L$30*100 -> 59.12103691 | M50: ='Tab 1.2_2013_GDP_P_Constant'!M16/'Tab 1.2_2013_GDP_P_Constant'!M$30*100 -> 60.81125464 | N50: ='Tab 1.2_2013_GDP_P_Constant'!N16/'Tab 1.2_2013_GDP_P_Constant'!N$30*100 -> 58.30364627 | O50: ='Tab 1.2_2013_GDP_P_Constant'!O16/'Tab 1.2_2013_GDP_P_Constant'!O$30*100 -> 56.00363941 | P50: ='Tab 1.2_2013_GDP_P_Constant'!P16/'Tab 1.2_2013_GDP_P_Constant'!P$30*100 -> 59.70465937 | Q50: ='Tab 1.2_2013_GDP_P_Constant'!Q16/'Tab 1.2_2013_GDP_P_Constant'!Q$30*100 -> 61.57321767
A51: G | B51: Wholesale and retail trade; repair of motors and motocycles | C51: ='Tab 1.2_2013_GDP_P_Constant'!C17/'Tab 1.2_2013_GDP_P_Constant'!C$30*100 -> 33.75788319 | D51: ='Tab 1.2_2013_GDP_P_Constant'!D17/'Tab 1.2_2013_GDP_P_Constant'!D$30*100 -> 32.43706694 | E51: ='Tab 1.2_2013_GDP_P_Constant'!E17/'Tab 1.2_2013_GDP_P_Constant'!E$30*100 -> 35.83192987 | F51: ='Tab 1.2_2013_GDP_P_Constant'!F17/'Tab 1.2_2013_GDP_P_Constant'!F$30*100 -> 38.6378878 | G51: ='Tab 1.2_2013_GDP_P_Constant'!G17/'Tab 1.2_2013_GDP_P_Constant'!G$30*100 -> 34.06595098 | H51: ='Tab 1.2_2013_GDP_P_Constant'!H17/'Tab 1.2_2013_GDP_P_Constant'!H$30*100 -> 31.88596152 | I51: ='Tab 1.2_2013_GDP_P_Constant'!I17/'Tab 1.2_2013_GDP_P_Constant'!I$30*100 -> 30.97531159 | J51: ='Tab 1.2_2013_GDP_P_Constant'!J17/'Tab 1.2_2013_GDP_P_Constant'!J$30*100 -> 34.15874501 | K51: ='Tab 1.2_2013_GDP_P_Constant'!K17/'Tab 1.2_2013_GDP_P_Constant'!K$30*100 -> 33.95154251 | L51: ='Tab 1.2_2013_GDP_P_Constant'!L17/'Tab 1.2_2013_GDP_P_Constant'!L$30*100 -> 33.7858555 | M51: ='Tab 1.2_2013_GDP_P_Constant'!M17/'Tab 1.2_2013_GDP_P_Constant'!M$30*100 -> 34.75537237 | N51: ='Tab 1.2_2013_GDP_P_Constant'!N17/'Tab 1.2_2013_GDP_P_Constant'!N$30*100 -> 33.51037072 | O51: ='Tab 1.2_2013_GDP_P_Constant'!O17/'Tab 1.2_2013_GDP_P_Constant'!O$30*100 -> 31.08421276 | P51: ='Tab 1.2_2013_GDP_P_Constant'!P17/'Tab 1.2_2013_GDP_P_Constant'!P$30*100 -> 34.70366736 | Q51: ='Tab 1.2_2013_GDP_P_Constant'!Q17/'Tab 1.2_2013_GDP_P_Constant'!Q$30*100 -> 35.6744511
A52: H | B52: Transport and storage | C52: ='Tab 1.2_2013_GDP_P_Constant'!C18/'Tab 1.2_2013_GDP_P_Constant'!C$30*100 -> 3.24443368 | D52: ='Tab 1.2_2013_GDP_P_Constant'!D18/'Tab 1.2_2013_GDP_P_Constant'!D$30*100 -> 3.483875585 | E52: ='Tab 1.2_2013_GDP_P_Constant'!E18/'Tab 1.2_2013_GDP_P_Constant'!E$30*100 -> 3.600144488 | F52: ='Tab 1.2_2013_GDP_P_Constant'!F18/'Tab 1.2_2013_GDP_P_Constant'!F$30*100 -> 3.674878237 | G52: ='Tab 1.2_2013_GDP_P_Constant'!G18/'Tab 1.2_2013_GDP_P_Constant'!G$30*100 -> 3.533121618 | H52: ='Tab 1.2_2013_GDP_P_Constant'!H18/'Tab 1.2_2013_GDP_P_Constant'!H$30*100 -> 3.452193722 | I52: ='Tab 1.2_2013_GDP_P_Constant'!I18/'Tab 1.2_2013_GDP_P_Constant'!I$30*100 -> 3.367662453 | J52: ='Tab 1.2_2013_GDP_P_Constant'!J18/'Tab 1.2_2013_GDP_P_Constant'!J$30*100 -> 3.729871252 | K52: ='Tab 1.2_2013_GDP_P_Constant'!K18/'Tab 1.2_2013_GDP_P_Constant'!K$30*100 -> 3.66194811 | L52: ='Tab 1.2_2013_GDP_P_Constant'!L18/'Tab 1.2_2013_GDP_P_Constant'!L$30*100 -> 3.754070212 | M52: ='Tab 1.2_2013_GDP_P_Constant'!M18/'Tab 1.2_2013_GDP_P_Constant'!M$30*100 -> 4.163550105 | N52: ='Tab 1.2_2013_GDP_P_Constant'!N18/'Tab 1.2_2013_GDP_P_Constant'!N$30*100 -> 3.361194267 | O52: ='Tab 1.2_2013_GDP_P_Constant'!O18/'Tab 1.2_2013_GDP_P_Constant'!O$30*100 -> 3.729860358 | P52: ='Tab 1.2_2013_GDP_P_Constant'!P18/'Tab 1.2_2013_GDP_P_Constant'!P$30*100 -> 3.87421065 | Q52: ='Tab 1.2_2013_GDP_P_Constant'!Q18/'Tab 1.2_2013_GDP_P_Constant'!Q$30*100 -> 4.351667566
A53: I | B53: Accommodation and food service activities | C53: ='Tab 1.2_2013_GDP_P_Constant'!C19/'Tab 1.2_2013_GDP_P_Constant'!C$30*100 -> 1.741252364 | D53: ='Tab 1.2_2013_GDP_P_Constant'!D19/'Tab 1.2_2013_GDP_P_Constant'!D$30*100 -> 2.137607361 | E53: ='Tab 1.2_2013_GDP_P_Constant'!E19/'Tab 1.2_2013_GDP_P_Constant'!E$30*100 -> 2.488912568 | F53: ='Tab 1.2_2013_GDP_P_Constant'!F19/'Tab 1.2_2013_GDP_P_Constant'!F$30*100 -> 2.761473761 | G53: ='Tab 1.2_2013_GDP_P_Constant'!G19/'Tab 1.2_2013_GDP_P_Constant'!G$30*100 -> 2.673312259 | H53: ='Tab 1.2_2013_GDP_P_Constant'!H19/'Tab 1.2_2013_GDP_P_Constant'!H$30*100 -> 2.417291362 | I53: ='Tab 1.2_2013_GDP_P_Constant'!I19/'Tab 1.2_2013_GDP_P_Constant'!I$30*100 -> 1.469312398 | J53: ='Tab 1.2_2013_GDP_P_Constant'!J19/'Tab 1.2_2013_GDP_P_Constant'!J$30*100 -> 1.873090473 | K53: ='Tab 1.2_2013_GDP_P_Constant'!K19/'Tab 1.2_2013_GDP_P_Constant'!K$30*100 -> 1.85106586 | L53: ='Tab 1.2_2013_GDP_P_Constant'!L19/'Tab 1.2_2013_GDP_P_Constant'!L$30*100 -> 1.963908401 | M53: ='Tab 1.2_2013_GDP_P_Constant'!M19/'Tab 1.2_2013_GDP_P_Constant'!M$30*100 -> 1.841957848 | N53: ='Tab 1.2_2013_GDP_P_Constant'!N19/'Tab 1.2_2013_GDP_P_Constant'!N$30*100 -> 1.542139739 | O53: ='Tab 1.2_2013_GDP_P_Constant'!O19/'Tab 1.2_2013_GDP_P_Constant'!O$30*100 -> 1.827001284 | P53: ='Tab 1.2_2013_GDP_P_Constant'!P19/'Tab 1.2_2013_GDP_P_Constant'!P$30*100 -> 1.723889485 | Q53: ='Tab 1.2_2013_GDP_P_Constant'!Q19/'Tab 1.2_2013_GDP_P_Constant'!Q$30*100 -> 1.912261841
A54: J | B54: Information and Communication | C54: ='Tab 1.2_2013_GDP_P_Constant'!C20/'Tab 1.2_2013_GDP_P_Constant'!C$30*100 -> 2.078980554 | D54: ='Tab 1.2_2013_GDP_P_Constant'!D20/'Tab 1.2_2013_GDP_P_Constant'!D$30*100 -> 2.232531713 | E54: ='Tab 1.2_2013_GDP_P_Constant'!E20/'Tab 1.2_2013_GDP_P_Constant'!E$30*100 -> 2.451832858 | F54: ='Tab 1.2_2013_GDP_P_Constant'!F20/'Tab 1.2_2013_GDP_P_Constant'!F$30*100 -> 2.62828621 | G54: ='Tab 1.2_2013_GDP_P_Constant'!G20/'Tab 1.2_2013_GDP_P_Constant'!G$30*100 -> 2.323985926 | H54: ='Tab 1.2_2013_GDP_P_Constant'!H20/'Tab 1.2_2013_GDP_P_Constant'!H$30*100 -> 2.389297843 | I54: ='Tab 1.2_2013_GDP_P_Constant'!I20/'Tab 1.2_2013_GDP_P_Constant'!I$30*100 -> 2.588394912 | J54: ='Tab 1.2_2013_GDP_P_Constant'!J20/'Tab 1.2_2013_GDP_P_Constant'!J$30*100 -> 3.023562884 | K54: ='Tab 1.2_2013_GDP_P_Constant'!K20/'Tab 1.2_2013_GDP_P_Constant'!K$30*100 -> 3.199722686 | L54: ='Tab 1.2_2013_GDP_P_Constant'!L20/'Tab 1.2_2013_GDP_P_Constant'!L$30*100 -> 3.82706331 | M54: ='Tab 1.2_2013_GDP_P_Constant'!M20/'Tab 1.2_2013_GDP_P_Constant'!M$30*100 -> 3.746410791 | N54: ='Tab 1.2_2013_GDP_P_Constant'!N20/'Tab 1.2_2013_GDP_P_Constant'!N$30*100 -> 3.942702576 | O54: ='Tab 1.2_2013_GDP_P_Constant'!O20/'Tab 1.2_2013_GDP_P_Constant'!O$30*100 -> 3.763957875 | P54: ='Tab 1.2_2013_GDP_P_Constant'!P20/'Tab 1.2_2013_GDP_P_Constant'!P$30*100 -> 4.594769048 | Q54: ='Tab 1.2_2013_GDP_P_Constant'!Q20/'Tab 1.2_2013_GDP_P_Constant'!Q$30*100 -> 4.991108178
A55: K | B55: Financial and insurance activities | C55: ='Tab 1.2_2013_GDP_P_Constant'!C21/'Tab 1.2_2013_GDP_P_Constant'!C$30*100 -> 1.463546228 | D55: ='Tab 1.2_2013_GDP_P_Constant'!D21/'Tab 1.2_2013_GDP_P_Constant'!D$30*100 -> 1.548067438 | E55: ='Tab 1.2_2013_GDP_P_Constant'!E21/'Tab 1.2_2013_GDP_P_Constant'!E$30*100 -> 1.716724277 | F55: ='Tab 1.2_2013_GDP_P_Constant'!F21/'Tab 1.2_2013_GDP_P_Constant'!F$30*100 -> 1.5693063 | G55: ='Tab 1.2_2013_GDP_P_Constant'!G21/'Tab 1.2_2013_GDP_P_Constant'!G$30*100 -> 1.790803763 | H55: ='Tab 1.2_2013_GDP_P_Constant'!H21/'Tab 1.2_2013_GDP_P_Constant'!H$30*100 -> 2.145128278 | I55: ='Tab 1.2_2013_GDP_P_Constant'!I21/'Tab 1.2_2013_GDP_P_Constant'!I$30*100 -> 2.038620288 | J55: ='Tab 1.2_2013_GDP_P_Constant'!J21/'Tab 1.2_2013_GDP_P_Constant'!J$30*100 -> 2.528119499 | K55: ='Tab 1.2_2013_GDP_P_Constant'!K21/'Tab 1.2_2013_GDP_P_Constant'!K$30*100 -> 2.505960576 | L55: ='Tab 1.2_2013_GDP_P_Constant'!L21/'Tab 1.2_2013_GDP_P_Constant'!L$30*100 -> 2.587200936 | M55: ='Tab 1.2_2013_GDP_P_Constant'!M21/'Tab 1.2_2013_GDP_P_Constant'!M$30*100 -> 2.74807896 | N55: ='Tab 1.2_2013_GDP_P_Constant'!N21/'Tab 1.2_2013_GDP_P_Constant'!N$30*100 -> 2.705243672 | O55: ='Tab 1.2_2013_GDP_P_Constant'!O21/'Tab 1.2_2013_GDP_P_Constant'!O$30*100 -> 2.457453717 | P55: ='Tab 1.2_2013_GDP_P_Constant'!P21/'Tab 1.2_2013_GDP_P_Constant'!P$30*100 -> 2.371070784 | Q55: ='Tab 1.2_2013_GDP_P_Constant'!Q21/'Tab 1.2_2013_GDP_P_Constant'!Q$30*100 -> 2.452709961
A56: L | B56: Real estate activities | C56: ='Tab 1.2_2013_GDP_P_Constant'!C22/'Tab 1.2_2013_GDP_P_Constant'!C$30*100 -> 2.167923415 | D56: ='Tab 1.2_2013_GDP_P_Constant'!D22/'Tab 1.2_2013_GDP_P_Constant'!D$30*100 -> 2.283166407 | E56: ='Tab 1.2_2013_GDP_P_Constant'!E22/'Tab 1.2_2013_GDP_P_Constant'!E$30*100 -> 2.361521546 | F56: ='Tab 1.2_2013_GDP_P_Constant'!F22/'Tab 1.2_2013_GDP_P_Constant'!F$30*100 -> 2.355531844 | G56: ='Tab 1.2_2013_GDP_P_Constant'!G22/'Tab 1.2_2013_GDP_P_Constant'!G$30*100 -> 2.276887853 | H56: ='Tab 1.2_2013_GDP_P_Constant'!H22/'Tab 1.2_2013_GDP_P_Constant'!H$30*100 -> 2.192842153 | I56: ='Tab 1.2_2013_GDP_P_Constant'!I22/'Tab 1.2_2013_GDP_P_Constant'!I$30*100 -> 2.128123134 | J56: ='Tab 1.2_2013_GDP_P_Constant'!J22/'Tab 1.2_2013_GDP_P_Constant'!J$30*100 -> 2.386666199 | K56: ='Tab 1.2_2013_GDP_P_Constant'!K22/'Tab 1.2_2013_GDP_P_Constant'!K$30*100 -> 2.330961357 | L56: ='Tab 1.2_2013_GDP_P_Constant'!L22/'Tab 1.2_2013_GDP_P_Constant'!L$30*100 -> 2.427490153 | M56: ='Tab 1.2_2013_GDP_P_Constant'!M22/'Tab 1.2_2013_GDP_P_Constant'!M$30*100 -> 2.725796483 | N56: ='Tab 1.2_2013_GDP_P_Constant'!N22/'Tab 1.2_2013_GDP_P_Constant'!N$30*100 -> 2.645826239 | O56: ='Tab 1.2_2013_GDP_P_Constant'!O22/'Tab 1.2_2013_GDP_P_Constant'!O$30*100 -> 2.599509237 | P56: ='Tab 1.2_2013_GDP_P_Constant'!P22/'Tab 1.2_2013_GDP_P_Constant'!P$30*100 -> 2.545882365 | Q56: ='Tab 1.2_2013_GDP_P_Constant'!Q22/'Tab 1.2_2013_GDP_P_Constant'!Q$30*100 -> 2.447864411
A57: M | B57: Professional, scientific and technical activities | C57: ='Tab 1.2_2013_GDP_P_Constant'!C23/'Tab 1.2_2013_GDP_P_Constant'!C$30*100 -> 0.2033868653 | D57: ='Tab 1.2_2013_GDP_P_Constant'!D23/'Tab 1.2_2013_GDP_P_Constant'!D$30*100 -> 0.214198553 | E57: ='Tab 1.2_2013_GDP_P_Constant'!E23/'Tab 1.2_2013_GDP_P_Constant'!E$30*100 -> 0.2215495535 | F57: ='Tab 1.2_2013_GDP_P_Constant'!F23/'Tab 1.2_2013_GDP_P_Constant'!F$30*100 -> 0.2209876209 | G57: ='Tab 1.2_2013_GDP_P_Constant'!G23/'Tab 1.2_2013_GDP_P_Constant'!G$30*100 -> 0.2136095214 | H57: ='Tab 1.2_2013_GDP_P_Constant'!H23/'Tab 1.2_2013_GDP_P_Constant'!H$30*100 -> 0.2057246527 | I57: ='Tab 1.2_2013_GDP_P_Constant'!I23/'Tab 1.2_2013_GDP_P_Constant'!I$30*100 -> 0.1996529445 | J57: ='Tab 1.2_2013_GDP_P_Constant'!J23/'Tab 1.2_2013_GDP_P_Constant'!J$30*100 -> 0.2239085354 | K57: ='Tab 1.2_2013_GDP_P_Constant'!K23/'Tab 1.2_2013_GDP_P_Constant'!K$30*100 -> 0.2186825053 | L57: ='Tab 1.2_2013_GDP_P_Constant'!L23/'Tab 1.2_2013_GDP_P_Constant'!L$30*100 -> 0.2277384936 | M57: ='Tab 1.2_2013_GDP_P_Constant'!M23/'Tab 1.2_2013_GDP_P_Constant'!M$30*100 -> 0.2380572006 | N57: ='Tab 1.2_2013_GDP_P_Constant'!N23/'Tab 1.2_2013_GDP_P_Constant'!N$30*100 -> 0.2252885412 | O57: ='Tab 1.2_2013_GDP_P_Constant'!O23/'Tab 1.2_2013_GDP_P_Constant'!O$30*100 -> 0.2451414867 | P57: ='Tab 1.2_2013_GDP_P_Constant'!P23/'Tab 1.2_2013_GDP_P_Constant'!P$30*100 -> 0.1977346671 | Q57: ='Tab 1.2_2013_GDP_P_Constant'!Q23/'Tab 1.2_2013_GDP_P_Constant'!Q$30*100 -> 0.1710868127
A58: N | B58: Administrative and support service activities | C58: ='Tab 1.2_2013_GDP_P_Constant'!C24/'Tab 1.2_2013_GDP_P_Constant'!C$30*100 -> 1.151007156 | D58: ='Tab 1.2_2013_GDP_P_Constant'!D24/'Tab 1.2_2013_GDP_P_Constant'!D$30*100 -> 1.21219267 | E58: ='Tab 1.2_2013_GDP_P_Constant'!E24/'Tab 1.2_2013_GDP_P_Constant'!E$30*100 -> 1.25379346 | F58: ='Tab 1.2_2013_GDP_P_Constant'!F24/'Tab 1.2_2013_GDP_P_Constant'!F$30*100 -> 1.250613371 | G58: ='Tab 1.2_2013_GDP_P_Constant'!G24/'Tab 1.2_2013_GDP_P_Constant'!G$30*100 -> 1.208859222 | H58: ='Tab 1.2_2013_GDP_P_Constant'!H24/'Tab 1.2_2013_GDP_P_Constant'!H$30*100 -> 1.164237165 | I58: ='Tab 1.2_2013_GDP_P_Constant'!I24/'Tab 1.2_2013_GDP_P_Constant'!I$30*100 -> 1.129876148 | J58: ='Tab 1.2_2013_GDP_P_Constant'!J24/'Tab 1.2_2013_GDP_P_Constant'!J$30*100 -> 1.267143413 | K58: ='Tab 1.2_2013_GDP_P_Constant'!K24/'Tab 1.2_2013_GDP_P_Constant'!K$30*100 -> 1.237568258 | L58: ='Tab 1.2_2013_GDP_P_Constant'!L24/'Tab 1.2_2013_GDP_P_Constant'!L$30*100 -> 1.288817916 | M58: ='Tab 1.2_2013_GDP_P_Constant'!M24/'Tab 1.2_2013_GDP_P_Constant'!M$30*100 -> 1.440103627 | N58: ='Tab 1.2_2013_GDP_P_Constant'!N24/'Tab 1.2_2013_GDP_P_Constant'!N$30*100 -> 1.426498098 | O58: ='Tab 1.2_2013_GDP_P_Constant'!O24/'Tab 1.2_2013_GDP_P_Constant'!O$30*100 -> 1.371127182 | P58: ='Tab 1.2_2013_GDP_P_Constant'!P24/'Tab 1.2_2013_GDP_P_Constant'!P$30*100 -> 1.301845425 | Q58: ='Tab 1.2_2013_GDP_P_Constant'!Q24/'Tab 1.2_2013_GDP_P_Constant'!Q$30*100 -> 1.129969609
A59: O | B59: Public administration and defence; compulsory social security | C59: ='Tab 1.2_2013_GDP_P_Constant'!C25/'Tab 1.2_2013_GDP_P_Constant'!C$30*100 -> 3.577357383 | D59: ='Tab 1.2_2013_GDP_P_Constant'!D25/'Tab 1.2_2013_GDP_P_Constant'!D$30*100 -> 3.693204113 | E59: ='Tab 1.2_2013_GDP_P_Constant'!E25/'Tab 1.2_2013_GDP_P_Constant'!E$30*100 -> 3.834602091 | F59: ='Tab 1.2_2013_GDP_P_Constant'!F25/'Tab 1.2_2013_GDP_P_Constant'!F$30*100 -> 2.689706933 | G59: ='Tab 1.2_2013_GDP_P_Constant'!G25/'Tab 1.2_2013_GDP_P_Constant'!G$30*100 -> 2.494726258 | H59: ='Tab 1.2_2013_GDP_P_Constant'!H25/'Tab 1.2_2013_GDP_P_Constant'!H$30*100 -> 3.052228248 | I59: ='Tab 1.2_2013_GDP_P_Constant'!I25/'Tab 1.2_2013_GDP_P_Constant'!I$30*100 -> 3.280945128 | J59: ='Tab 1.2_2013_GDP_P_Constant'!J25/'Tab 1.2_2013_GDP_P_Constant'!J$30*100 -> 3.667280171 | K59: ='Tab 1.2_2013_GDP_P_Constant'!K25/'Tab 1.2_2013_GDP_P_Constant'!K$30*100 -> 3.596208177 | L59: ='Tab 1.2_2013_GDP_P_Constant'!L25/'Tab 1.2_2013_GDP_P_Constant'!L$30*100 -> 3.745410054 | M59: ='Tab 1.2_2013_GDP_P_Constant'!M25/'Tab 1.2_2013_GDP_P_Constant'!M$30*100 -> 3.308084819 | N59: ='Tab 1.2_2013_GDP_P_Constant'!N25/'Tab 1.2_2013_GDP_P_Constant'!N$30*100 -> 3.238257206 | O59: ='Tab 1.2_2013_GDP_P_Constant'!O25/'Tab 1.2_2013_GDP_P_Constant'!O$30*100 -> 2.822703353 | P59: ='Tab 1.2_2013_GDP_P_Constant'!P25/'Tab 1.2_2013_GDP_P_Constant'!P$30*100 -> 2.559144693 | Q59: ='Tab 1.2_2013_GDP_P_Constant'!Q25/'Tab 1.2_2013_GDP_P_Constant'!Q$30*100 -> 2.972436688
A60: P | B60: Education | C60: ='Tab 1.2_2013_GDP_P_Constant'!C26/'Tab 1.2_2013_GDP_P_Constant'!C$30*100 -> 1.501095725 | D60: ='Tab 1.2_2013_GDP_P_Constant'!D26/'Tab 1.2_2013_GDP_P_Constant'!D$30*100 -> 1.596946579 | E60: ='Tab 1.2_2013_GDP_P_Constant'!E26/'Tab 1.2_2013_GDP_P_Constant'!E$30*100 -> 1.774293809 | F60: ='Tab 1.2_2013_GDP_P_Constant'!F26/'Tab 1.2_2013_GDP_P_Constant'!F$30*100 -> 1.823880097 | G60: ='Tab 1.2_2013_GDP_P_Constant'!G26/'Tab 1.2_2013_GDP_P_Constant'!G$30*100 -> 1.891012848 | H60: ='Tab 1.2_2013_GDP_P_Constant'!H26/'Tab 1.2_2013_GDP_P_Constant'!H$30*100 -> 1.867930378 | I60: ='Tab 1.2_2013_GDP_P_Constant'!I26/'Tab 1.2_2013_GDP_P_Constant'!I$30*100 -> 1.949676966 | J60: ='Tab 1.2_2013_GDP_P_Constant'!J26/'Tab 1.2_2013_GDP_P_Constant'!J$30*100 -> 2.227440318 | K60: ='Tab 1.2_2013_GDP_P_Constant'!K26/'Tab 1.2_2013_GDP_P_Constant'!K$30*100 -> 2.265760886 | L60: ='Tab 1.2_2013_GDP_P_Constant'!L26/'Tab 1.2_2013_GDP_P_Constant'!L$30*100 -> 2.506882637 | M60: ='Tab 1.2_2013_GDP_P_Constant'!M26/'Tab 1.2_2013_GDP_P_Constant'!M$30*100 -> 2.444670326 | N60: ='Tab 1.2_2013_GDP_P_Constant'!N26/'Tab 1.2_2013_GDP_P_Constant'!N$30*100 -> 2.47048457 | O60: ='Tab 1.2_2013_GDP_P_Constant'!O26/'Tab 1.2_2013_GDP_P_Constant'!O$30*100 -> 2.787359934 | P60: ='Tab 1.2_2013_GDP_P_Constant'!P26/'Tab 1.2_2013_GDP_P_Constant'!P$30*100 -> 2.94115807 | Q60: ='Tab 1.2_2013_GDP_P_Constant'!Q26/'Tab 1.2_2013_GDP_P_Constant'!Q$30*100 -> 2.716910497
A61: Q | B61: Human health and social work activities | C61: ='Tab 1.2_2013_GDP_P_Constant'!C27/'Tab 1.2_2013_GDP_P_Constant'!C$30*100 -> 0.6439583327 | D61: ='Tab 1.2_2013_GDP_P_Constant'!D27/'Tab 1.2_2013_GDP_P_Constant'!D$30*100 -> 0.6697638616 | E61: ='Tab 1.2_2013_GDP_P_Constant'!E27/'Tab 1.2_2013_GDP_P_Constant'!E$30*100 -> 0.7996230422 | F61: ='Tab 1.2_2013_GDP_P_Constant'!F27/'Tab 1.2_2013_GDP_P_Constant'!F$30*100 -> 0.7726045366 | G61: ='Tab 1.2_2013_GDP_P_Constant'!G27/'Tab 1.2_2013_GDP_P_Constant'!G$30*100 -> 0.7303569917 | H61: ='Tab 1.2_2013_GDP_P_Constant'!H27/'Tab 1.2_2013_GDP_P_Constant'!H$30*100 -> 0.8300320911 | I61: ='Tab 1.2_2013_GDP_P_Constant'!I27/'Tab 1.2_2013_GDP_P_Constant'!I$30*100 -> 0.8749813091 | J61: ='Tab 1.2_2013_GDP_P_Constant'!J27/'Tab 1.2_2013_GDP_P_Constant'!J$30*100 -> 0.9908167835 | K61: ='Tab 1.2_2013_GDP_P_Constant'!K27/'Tab 1.2_2013_GDP_P_Constant'!K$30*100 -> 0.9426510334 | L61: ='Tab 1.2_2013_GDP_P_Constant'!L27/'Tab 1.2_2013_GDP_P_Constant'!L$30*100 -> 1.000949963 | M61: ='Tab 1.2_2013_GDP_P_Constant'!M27/'Tab 1.2_2013_GDP_P_Constant'!M$30*100 -> 0.79380161 | N61: ='Tab 1.2_2013_GDP_P_Constant'!N27/'Tab 1.2_2013_GDP_P_Constant'!N$30*100 -> 0.695364854 | O61: ='Tab 1.2_2013_GDP_P_Constant'!O27/'Tab 1.2_2013_GDP_P_Constant'!O$30*100 -> 0.7676110797 | P61: ='Tab 1.2_2013_GDP_P_Constant'!P27/'Tab 1.2_2013_GDP_P_Constant'!P$30*100 -> 0.6689450814 | Q61: ='Tab 1.2_2013_GDP_P_Constant'!Q27/'Tab 1.2_2013_GDP_P_Constant'!Q$30*100 -> 0.7076269629
A62: R | B62: Arts, entertainment and recreation | C62: ='Tab 1.2_2013_GDP_P_Constant'!C28/'Tab 1.2_2013_GDP_P_Constant'!C$30*100 -> 0.4126627621 | D62: ='Tab 1.2_2013_GDP_P_Constant'!D28/'Tab 1.2_2013_GDP_P_Constant'!D$30*100 -> 0.4345991879 | E62: ='Tab 1.2_2013_GDP_P_Constant'!E28/'Tab 1.2_2013_GDP_P_Constant'!E$30*100 -> 0.4495140359 | F62: ='Tab 1.2_2013_GDP_P_Constant'!F28/'Tab 1.2_2013_GDP_P_Constant'!F$30*100 -> 0.4483739002 | G62: ='Tab 1.2_2013_GDP_P_Constant'!G28/'Tab 1.2_2013_GDP_P_Constant'!G$30*100 -> 0.4334040695 | H62: ='Tab 1.2_2013_GDP_P_Constant'!H28/'Tab 1.2_2013_GDP_P_Constant'!H$30*100 -> 0.417406027 | I62: ='Tab 1.2_2013_GDP_P_Constant'!I28/'Tab 1.2_2013_GDP_P_Constant'!I$30*100 -> 0.4050868054 | J62: ='Tab 1.2_2013_GDP_P_Constant'!J28/'Tab 1.2_2013_GDP_P_Constant'!J$30*100 -> 0.4543003037 | K62: ='Tab 1.2_2013_GDP_P_Constant'!K28/'Tab 1.2_2013_GDP_P_Constant'!K$30*100 -> 0.4436969246 | L62: ='Tab 1.2_2013_GDP_P_Constant'!L28/'Tab 1.2_2013_GDP_P_Constant'!L$30*100 -> 0.4620711159 | M62: ='Tab 1.2_2013_GDP_P_Constant'!M28/'Tab 1.2_2013_GDP_P_Constant'!M$30*100 -> 0.6119419296 | N62: ='Tab 1.2_2013_GDP_P_Constant'!N28/'Tab 1.2_2013_GDP_P_Constant'!N$30*100 -> 0.7270823035 | O62: ='Tab 1.2_2013_GDP_P_Constant'!O28/'Tab 1.2_2013_GDP_P_Constant'!O$30*100 -> 0.7422093717 | P62: ='Tab 1.2_2013_GDP_P_Constant'!P28/'Tab 1.2_2013_GDP_P_Constant'!P$30*100 -> 0.7245324169 | Q62: ='Tab 1.2_2013_GDP_P_Constant'!Q28/'Tab 1.2_2013_GDP_P_Constant'!Q$30*100 -> 0.6688998725
A63: S | B63: Other service activities | C63: ='Tab 1.2_2013_GDP_P_Constant'!C29/'Tab 1.2_2013_GDP_P_Constant'!C$30*100 -> 1.378526442 | D63: ='Tab 1.2_2013_GDP_P_Constant'!D29/'Tab 1.2_2013_GDP_P_Constant'!D$30*100 -> 1.451806481 | E63: ='Tab 1.2_2013_GDP_P_Constant'!E29/'Tab 1.2_2013_GDP_P_Constant'!E$30*100 -> 1.501630488 | F63: ='Tab 1.2_2013_GDP_P_Constant'!F29/'Tab 1.2_2013_GDP_P_Constant'!F$30*100 -> 1.497821791 | G63: ='Tab 1.2_2013_GDP_P_Constant'!G29/'Tab 1.2_2013_GDP_P_Constant'!G$30*100 -> 1.447814111 | H63: ='Tab 1.2_2013_GDP_P_Constant'!H29/'Tab 1.2_2013_GDP_P_Constant'!H$30*100 -> 1.394371623 | I63: ='Tab 1.2_2013_GDP_P_Constant'!I29/'Tab 1.2_2013_GDP_P_Constant'!I$30*100 -> 1.353218473 | J63: ='Tab 1.2_2013_GDP_P_Constant'!J29/'Tab 1.2_2013_GDP_P_Constant'!J$30*100 -> 1.517619322 | K63: ='Tab 1.2_2013_GDP_P_Constant'!K29/'Tab 1.2_2013_GDP_P_Constant'!K$30*100 -> 1.482198054 | L63: ='Tab 1.2_2013_GDP_P_Constant'!L29/'Tab 1.2_2013_GDP_P_Constant'!L$30*100 -> 1.543578219 | M63: ='Tab 1.2_2013_GDP_P_Constant'!M29/'Tab 1.2_2013_GDP_P_Constant'!M$30*100 -> 1.993428576 | N63: ='Tab 1.2_2013_GDP_P_Constant'!N29/'Tab 1.2_2013_GDP_P_Constant'!N$30*100 -> 1.813193483 | O63: ='Tab 1.2_2013_GDP_P_Constant'!O29/'Tab 1.2_2013_GDP_P_Constant'!O$30*100 -> 1.805491763 | P63: ='Tab 1.2_2013_GDP_P_Constant'!P29/'Tab 1.2_2013_GDP_P_Constant'!P$30*100 -> 1.497809317 | Q63: ='Tab 1.2_2013_GDP_P_Constant'!Q29/'Tab 1.2_2013_GDP_P_Constant'!Q$30*100 -> 1.376224171
B64: GDP basic price (Gross Value Added) | C64: ='Tab 1.2_2013_GDP_P_Constant'!C30/'Tab 1.2_2013_GDP_P_Constant'!C$30*100 -> 100 | D64: ='Tab 1.2_2013_GDP_P_Constant'!D30/'Tab 1.2_2013_GDP_P_Constant'!D$30*100 -> 100 | E64: ='Tab 1.2_2013_GDP_P_Constant'!E30/'Tab 1.2_2013_GDP_P_Constant'!E$30*100 -> 100 | F64: ='Tab 1.2_2013_GDP_P_Constant'!F30/'Tab 1.2_2013_GDP_P_Constant'!F$30*100 -> 100 | G64: ='Tab 1.2_2013_GDP_P_Constant'!G30/'Tab 1.2_2013_GDP_P_Constant'!G$30*100 -> 100 | H64: ='Tab 1.2_2013_GDP_P_Constant'!H30/'Tab 1.2_2013_GDP_P_Constant'!H$30*100 -> 100 | I64: ='Tab 1.2_2013_GDP_P_Constant'!I30/'Tab 1.2_2013_GDP_P_Constant'!I$30*100 -> 100 | J64: ='Tab 1.2_2013_GDP_P_Constant'!J30/'Tab 1.2_2013_GDP_P_Constant'!J$30*100 -> 100 | K64: ='Tab 1.2_2013_GDP_P_Constant'!K30/'Tab 1.2_2013_GDP_P_Constant'!K$30*100 -> 100 | L64: ='Tab 1.2_2013_GDP_P_Constant'!L30/'Tab 1.2_2013_GDP_P_Constant'!L$30*100 -> 100 | M64: ='Tab 1.2_2013_GDP_P_Constant'!M30/'Tab 1.2_2013_GDP_P_Constant'!M$30*100 -> 100 | N64: ='Tab 1.2_2013_GDP_P_Constant'!N30/'Tab 1.2_2013_GDP_P_Constant'!N$30*100 -> 100 | O64: ='Tab 1.2_2013_GDP_P_Constant'!O30/'Tab 1.2_2013_GDP_P_Constant'!O$30*100 -> 100 | P64: ='Tab 1.2_2013_GDP_P_Constant'!P30/'Tab 1.2_2013_GDP_P_Constant'!P$30*100 -> 100 | Q64: ='Tab 1.2_2013_GDP_P_Constant'!Q30/'Tab 1.2_2013_GDP_P_Constant'!Q$30*100 -> 100
B65: Taxes less subsidies on products (+) | L65: 6.251847666 | M65: 7.688580221 | N65: 8.814949553 | O65: 8.818480679 | P65: 8.079749227
B68: 2018* Provisional data

Sheet Tab 1.4_2013_GDP Growth
A1: GDP Growth, 2013 base year
A3: ISIC Rev.4 | B3: Industry | C3: 2004 | D3: 2005 | E3: 2006 | F3: 2007 | G3: 2008 | H3: 2009 | I3: 2010 | J3: 2011 | K3: 2012 | L3: 2013 | M3: 2014 | N3: 2015 | O3: 2016 | P3: 2017 | Q3: 2018 *
B4: Gross Domestic Product (GDP) market price | D4: ='Tab 1.2_2013_GDP_P_Constant'!D4/'Tab 1.2_2013_GDP_P_Constant'!C4-1 -> -0.02351729492 | E4: ='Tab 1.2_2013_GDP_P_Constant'!E4/'Tab 1.2_2013_GDP_P_Constant'!D4-1 -> -0.0055558088 | F4: ='Tab 1.2_2013_GDP_P_Constant'!F4/'Tab 1.2_2013_GDP_P_Constant'!E4-1 -> 0.03043249415 | G4: ='Tab 1.2_2013_GDP_P_Constant'!G4/'Tab 1.2_2013_GDP_P_Constant'!F4-1 -> 0.06255905613 | H4: ='Tab 1.2_2013_GDP_P_Constant'!H4/'Tab 1.2_2013_GDP_P_Constant'!G4-1 -> 0.06665724237 | I4: ='Tab 1.2_2013_GDP_P_Constant'!I4/'Tab 1.2_2013_GDP_P_Constant'!H4-1 -> 0.05908335867 | J4: ='Tab 1.2_2013_GDP_P_Constant'!J4/'Tab 1.2_2013_GDP_P_Constant'!I4-1 -> -0.08130444281 | K4: ='Tab 1.2_2013_GDP_P_Constant'!K4/'Tab 1.2_2013_GDP_P_Constant'!J4-1 -> 0.05241569304 | L4: ='Tab 1.2_2013_GDP_P_Constant'!L4/'Tab 1.2_2013_GDP_P_Constant'!K4-1 -> 0.02872768717 | M4: ='Tab 1.2_2013_GDP_P_Constant'!M4/'Tab 1.2_2013_GDP_P_Constant'!L4-1 -> -0.0140738252 | N4: ='Tab 1.2_2013_GDP_P_Constant'!N4/'Tab 1.2_2013_GDP_P_Constant'!M4-1 -> 0.04058073854 | O4: ='Tab 1.2_2013_GDP_P_Constant'!O4/'Tab 1.2_2013_GDP_P_Constant'!N4-1 -> 0.01943359718 | P4: ='Tab 1.2_2013_GDP_P_Constant'!P4/'Tab 1.2_2013_GDP_P_Constant'!O4-1 -> 0.04822611213 | Q4: ='Tab 1.2_2013_GDP_P_Constant'!Q4/'Tab 1.2_2013_GDP_P_Constant'!P4-1 -> 0.06547026505
A5: A | B5: Agriculture, forestry and fishing | D5: ='Tab 1.2_2013_GDP_P_Constant'!D5/'Tab 1.2_2013_GDP_P_Constant'!C5-1 -> -0.02881218921 | E5: ='Tab 1.2_2013_GDP_P_Constant'!E5/'Tab 1.2_2013_GDP_P_Constant'!D5-1 -> -0.1668220281 | F5: ='Tab 1.2_2013_GDP_P_Constant'!F5/'Tab 1.2_2013_GDP_P_Constant'!E5-1 -> -0.04198552417 | G5: ='Tab 1.2_2013_GDP_P_Constant'!G5/'Tab 1.2_2013_GDP_P_Constant'!F5-1 -> 0.309731968 | H5: ='Tab 1.2_2013_GDP_P_Constant'!H5/'Tab 1.2_2013_GDP_P_Constant'!G5-1 -> 0.1491859073 | I5: ='Tab 1.2_2013_GDP_P_Constant'!I5/'Tab 1.2_2013_GDP_P_Constant'!H5-1 -> 0.1180756214 | J5: ='Tab 1.2_2013_GDP_P_Constant'!J5/'Tab 1.2_2013_GDP_P_Constant'!I5-1 -> -0.2773785317 | K5: ='Tab 1.2_2013_GDP_P_Constant'!K5/'Tab 1.2_2013_GDP_P_Constant'!J5-1 -> 0.06506852121 | L5: ='Tab 1.2_2013_GDP_P_Constant'!L5/'Tab 1.2_2013_GDP_P_Constant'!K5-1 -> -0.02606282327 | M5: ='Tab 1.2_2013_GDP_P_Constant'!M5/'Tab 1.2_2013_GDP_P_Constant'!L5-1 -> -0.1238462054 | N5: ='Tab 1.2_2013_GDP_P_Constant'!N5/'Tab 1.2_2013_GDP_P_Constant'!M5-1 -> 0.03950153127 | O5: ='Tab 1.2_2013_GDP_P_Constant'!O5/'Tab 1.2_2013_GDP_P_Constant'!N5-1 -> -0.002345635182 | P5: ='Tab 1.2_2013_GDP_P_Constant'!P5/'Tab 1.2_2013_GDP_P_Constant'!O5-1 -> -0.04379155505 | Q5: ='Tab 1.2_2013_GDP_P_Constant'!Q5/'Tab 1.2_2013_GDP_P_Constant'!P5-1 -> 0.009021849199
B6: Crop | D6: ='Tab 1.2_2013_GDP_P_Constant'!D6/'Tab 1.2_2013_GDP_P_Constant'!C6-1 -> -0.04085513758 | E6: ='Tab 1.2_2013_GDP_P_Constant'!E6/'Tab 1.2_2013_GDP_P_Constant'!D6-1 -> -0.2630449034 | F6: ='Tab 1.2_2013_GDP_P_Constant'!F6/'Tab 1.2_2013_GDP_P_Constant'!E6-1 -> -0.1518241873 | G6: ='Tab 1.2_2013_GDP_P_Constant'!G6/'Tab 1.2_2013_GDP_P_Constant'!F6-1 -> 0.5517692692 | H6: ='Tab 1.2_2013_GDP_P_Constant'!H6/'Tab 1.2_2013_GDP_P_Constant'!G6-1 -> 0.2439848681 | I6: ='Tab 1.2_2013_GDP_P_Constant'!I6/'Tab 1.2_2013_GDP_P_Constant'!H6-1 -> 0.1566789912 | J6: ='Tab 1.2_2013_GDP_P_Constant'!J6/'Tab 1.2_2013_GDP_P_Constant'!I6-1 -> -0.4044745429 | K6: ='Tab 1.2_2013_GDP_P_Constant'!K6/'Tab 1.2_2013_GDP_P_Constant'!J6-1 -> 0.08469776685 | L6: ='Tab 1.2_2013_GDP_P_Constant'!L6/'Tab 1.2_2013_GDP_P_Constant'!K6-1 -> -0.068 | M6: ='Tab 1.2_2013_GDP_P_Constant'!M6/'Tab 1.2_2013_GDP_P_Constant'!L6-1 -> -0.140128941 | N6: ='Tab 1.2_2013_GDP_P_Constant'!N6/'Tab 1.2_2013_GDP_P_Constant'!M6-1 -> 0.05804545206 | O6: ='Tab 1.2_2013_GDP_P_Constant'!O6/'Tab 1.2_2013_GDP_P_Constant'!N6-1 -> -0.02641174231 | P6: ='Tab 1.2_2013_GDP_P_Constant'!P6/'Tab 1.2_2013_GDP_P_Constant'!O6-1 -> -0.1849488829 | Q6: ='Tab 1.2_2013_GDP_P_Constant'!Q6/'Tab 1.2_2013_GDP_P_Constant'!P6-1 -> 0.0658780106
B7: Livestock | D7: ='Tab 1.2_2013_GDP_P_Constant'!D7/'Tab 1.2_2013_GDP_P_Constant'!C7-1 -> 0.00922039017 | E7: ='Tab 1.2_2013_GDP_P_Constant'!E7/'Tab 1.2_2013_GDP_P_Constant'!D7-1 -> 0.01419397253 | F7: ='Tab 1.2_2013_GDP_P_Constant'!F7/'Tab 1.2_2013_GDP_P_Constant'!E7-1 -> 0.1217237058 | G7: ='Tab 1.2_2013_GDP_P_Constant'!G7/'Tab 1.2_2013_GDP_P_Constant'!F7-1 -> 0.02909573419 | H7: ='Tab 1.2_2013_GDP_P_Constant'!H7/'Tab 1.2_2013_GDP_P_Constant'!G7-1 -> -0.046461285 | I7: ='Tab 1.2_2013_GDP_P_Constant'!I7/'Tab 1.2_2013_GDP_P_Constant'!H7-1 -> 0.05005444321 | J7: ='Tab 1.2_2013_GDP_P_Constant'!J7/'Tab 1.2_2013_GDP_P_Constant'!I7-1 -> 0.03372131416 | K7: ='Tab 1.2_2013_GDP_P_Constant'!K7/'Tab 1.2_2013_GDP_P_Constant'!J7-1 -> 0.04189924475 | L7: ='Tab 1.2_2013_GDP_P_Constant'!L7/'Tab 1.2_2013_GDP_P_Constant'!K7-1 -> 0.03278295875 | M7: ='Tab 1.2_2013_GDP_P_Constant'!M7/'Tab 1.2_2013_GDP_P_Constant'!L7-1 -> -0.02768120369 | N7: ='Tab 1.2_2013_GDP_P_Constant'!N7/'Tab 1.2_2013_GDP_P_Constant'!M7-1 -> -0.1627684822 | O7: ='Tab 1.2_2013_GDP_P_Constant'!O7/'Tab 1.2_2013_GDP_P_Constant'!N7-1 -> -0.0301440499 | P7: ='Tab 1.2_2013_GDP_P_Constant'!P7/'Tab 1.2_2013_GDP_P_Constant'!O7-1 -> -0.108932156 | Q7: ='Tab 1.2_2013_GDP_P_Constant'!Q7/'Tab 1.2_2013_GDP_P_Constant'!P7-1 -> -0.05622080215
B8: Forestry and logging | D8: ='Tab 1.2_2013_GDP_P_Constant'!D8/'Tab 1.2_2013_GDP_P_Constant'!C8-1 -> 0.02979358103 | E8: ='Tab 1.2_2013_GDP_P_Constant'!E8/'Tab 1.2_2013_GDP_P_Constant'!D8-1 -> 0.03008474576 | F8: ='Tab 1.2_2013_GDP_P_Constant'!F8/'Tab 1.2_2013_GDP_P_Constant'!E8-1 -> -0.04 | G8: ='Tab 1.2_2013_GDP_P_Constant'!G8/'Tab 1.2_2013_GDP_P_Constant'!F8-1 -> 0.01 | H8: ='Tab 1.2_2013_GDP_P_Constant'!H8/'Tab 1.2_2013_GDP_P_Constant'!G8-1 -> 0.001235267745 | I8: ='Tab 1.2_2013_GDP_P_Constant'!I8/'Tab 1.2_2013_GDP_P_Constant'!H8-1 -> 0.02979961691 | J8: ='Tab 1.2_2013_GDP_P_Constant'!J8/'Tab 1.2_2013_GDP_P_Constant'!I8-1 -> 0.0347 | K8: ='Tab 1.2_2013_GDP_P_Constant'!K8/'Tab 1.2_2013_GDP_P_Constant'!J8-1 -> 0.0305 | L8: ='Tab 1.2_2013_GDP_P_Constant'!L8/'Tab 1.2_2013_GDP_P_Constant'!K8-1 -> 0.0338 | M8: ='Tab 1.2_2013_GDP_P_Constant'!M8/'Tab 1.2_2013_GDP_P_Constant'!L8-1 -> -0.04190973163 | N8: ='Tab 1.2_2013_GDP_P_Constant'!N8/'Tab 1.2_2013_GDP_P_Constant'!M8-1 -> 0.01082083336 | O8: ='Tab 1.2_2013_GDP_P_Constant'!O8/'Tab 1.2_2013_GDP_P_Constant'!N8-1 -> -0.1604293771 | P8: ='Tab 1.2_2013_GDP_P_Constant'!P8/'Tab 1.2_2013_GDP_P_Constant'!O8-1 -> -0.1164039415 | Q8: ='Tab 1.2_2013_GDP_P_Constant'!Q8/'Tab 1.2_2013_GDP_P_Constant'!P8-1 -> -0.1820695143
B9: Fishing and aquaculture | D9: ='Tab 1.2_2013_GDP_P_Constant'!D9/'Tab 1.2_2013_GDP_P_Constant'!C9-1 -> -0.02247161201 | E9: ='Tab 1.2_2013_GDP_P_Constant'!E9/'Tab 1.2_2013_GDP_P_Constant'!D9-1 -> 0.07824670919 | F9: ='Tab 1.2_2013_GDP_P_Constant'!F9/'Tab 1.2_2013_GDP_P_Constant'!E9-1 -> 0.1803513894 | G9: ='Tab 1.2_2013_GDP_P_Constant'!G9/'Tab 1.2_2013_GDP_P_Constant'!F9-1 -> 0.03499456209 | H9: ='Tab 1.2_2013_GDP_P_Constant'!H9/'Tab 1.2_2013_GDP_P_Constant'!G9-1 -> 0.01083798986 | I9: ='Tab 1.2_2013_GDP_P_Constant'!I9/'Tab 1.2_2013_GDP_P_Constant'!H9-1 -> 0.0173458787 | J9: ='Tab 1.2_2013_GDP_P_Constant'!J9/'Tab 1.2_2013_GDP_P_Constant'!I9-1 -> 0.0392298291 | K9: ='Tab 1.2_2013_GDP_P_Constant'!K9/'Tab 1.2_2013_GDP_P_Constant'!J9-1 -> 0.0341645971 | L9: ='Tab 1.2_2013_GDP_P_Constant'!L9/'Tab 1.2_2013_GDP_P_Constant'!K9-1 -> 0.04 | M9: ='Tab 1.2_2013_GDP_P_Constant'!M9/'Tab 1.2_2013_GDP_P_Constant'!L9-1 -> -0.1890417783 | N9: ='Tab 1.2_2013_GDP_P_Constant'!N9/'Tab 1.2_2013_GDP_P_Constant'!M9-1 -> 0.2280074183 | O9: ='Tab 1.2_2013_GDP_P_Constant'!O9/'Tab 1.2_2013_GDP_P_Constant'!N9-1 -> 0.1196176721 | P9: ='Tab 1.2_2013_GDP_P_Constant'!P9/'Tab 1.2_2013_GDP_P_Constant'!O9-1 -> 0.3443522425 | Q9: ='Tab 1.2_2013_GDP_P_Constant'!Q9/'Tab 1.2_2013_GDP_P_Constant'!P9-1 -> -0.02089581703
B10: Industry | D10: ='Tab 1.2_2013_GDP_P_Constant'!D10/'Tab 1.2_2013_GDP_P_Constant'!C10-1 -> -0.01821445578 | E10: ='Tab 1.2_2013_GDP_P_Constant'!E10/'Tab 1.2_2013_GDP_P_Constant'!D10-1 -> 0.03935137755 | F10: ='Tab 1.2_2013_GDP_P_Constant'!F10/'Tab 1.2_2013_GDP_P_Constant'!E10-1 -> 0.02589572917 | G10: ='Tab 1.2_2013_GDP_P_Constant'!G10/'Tab 1.2_2013_GDP_P_Constant'!F10-1 -> -0.01018201925 | H10: ='Tab 1.2_2013_GDP_P_Constant'!H10/'Tab 1.2_2013_GDP_P_Constant'!G10-1 -> -0.007331194278 | I10: ='Tab 1.2_2013_GDP_P_Constant'!I10/'Tab 1.2_2013_GDP_P_Constant'!H10-1 -> 0.02899175953 | J10: ='Tab 1.2_2013_GDP_P_Constant'!J10/'Tab 1.2_2013_GDP_P_Constant'!I10-1 -> 0.0448345576 | K10: ='Tab 1.2_2013_GDP_P_Constant'!K10/'Tab 1.2_2013_GDP_P_Constant'!J10-1 -> 0.05164272351 | L10: ='Tab 1.2_2013_GDP_P_Constant'!L10/'Tab 1.2_2013_GDP_P_Constant'!K10-1 -> 0.03629139969 | M10: ='Tab 1.2_2013_GDP_P_Constant'!M10/'Tab 1.2_2013_GDP_P_Constant'!L10-1 -> 0.09573101171 | N10: ='Tab 1.2_2013_GDP_P_Constant'!N10/'Tab 1.2_2013_GDP_P_Constant'!M10-1 -> 0.2261226539 | O10: ='Tab 1.2_2013_GDP_P_Constant'!O10/'Tab 1.2_2013_GDP_P_Constant'!N10-1 -> 0.192200123 | P10: ='Tab 1.2_2013_GDP_P_Constant'!P10/'Tab 1.2_2013_GDP_P_Constant'!O10-1 -> -0.0354776157 | Q10: ='Tab 1.2_2013_GDP_P_Constant'!Q10/'Tab 1.2_2013_GDP_P_Constant'!P10-1 -> 0.02516938493
A11: B | B11: Mining and quarrying | D11: ='Tab 1.2_2013_GDP_P_Constant'!D11/'Tab 1.2_2013_GDP_P_Constant'!C11-1 -> 0.4793176838 | E11: ='Tab 1.2_2013_GDP_P_Constant'!E11/'Tab 1.2_2013_GDP_P_Constant'!D11-1 -> 0.01243059108 | F11: ='Tab 1.2_2013_GDP_P_Constant'!F11/'Tab 1.2_2013_GDP_P_Constant'!E11-1 -> -0.1410450447 | G11: ='Tab 1.2_2013_GDP_P_Constant'!G11/'Tab 1.2_2013_GDP_P_Constant'!F11-1 -> 0.2980319457 | H11: ='Tab 1.2_2013_GDP_P_Constant'!H11/'Tab 1.2_2013_GDP_P_Constant'!G11-1 -> 0.1209113003 | I11: ='Tab 1.2_2013_GDP_P_Constant'!I11/'Tab 1.2_2013_GDP_P_Constant'!H11-1 -> 0.1418699209 | J11: ='Tab 1.2_2013_GDP_P_Constant'!J11/'Tab 1.2_2013_GDP_P_Constant'!I11-1 -> 0.0763 | K11: ='Tab 1.2_2013_GDP_P_Constant'!K11/'Tab 1.2_2013_GDP_P_Constant'!J11-1 -> 0.08963 | L11: ='Tab 1.2_2013_GDP_P_Constant'!L11/'Tab 1.2_2013_GDP_P_Constant'!K11-1 -> 0.074 | M11: ='Tab 1.2_2013_GDP_P_Constant'!M11/'Tab 1.2_2013_GDP_P_Constant'!L11-1 -> 0.9764223132 | N11: ='Tab 1.2_2013_GDP_P_Constant'!N11/'Tab 1.2_2013_GDP_P_Constant'!M11-1 -> -0.07289462527 | O11: ='Tab 1.2_2013_GDP_P_Constant'!O11/'Tab 1.2_2013_GDP_P_Constant'!N11-1 -> -0.08135977803 | P11: ='Tab 1.2_2013_GDP_P_Constant'!P11/'Tab 1.2_2013_GDP_P_Constant'!O11-1 -> 0.04877407518 | Q11: ='Tab 1.2_2013_GDP_P_Constant'!Q11/'Tab 1.2_2013_GDP_P_Constant'!P11-1 -> 0.2156698201
A12: C | B12: Manufacturing | D12: ='Tab 1.2_2013_GDP_P_Constant'!D12/'Tab 1.2_2013_GDP_P_Constant'!C12-1 -> 0.1753725164 | E12: ='Tab 1.2_2013_GDP_P_Constant'!E12/'Tab 1.2_2013_GDP_P_Constant'!D12-1 -> 0.0411800983 | F12: ='Tab 1.2_2013_GDP_P_Constant'!F12/'Tab 1.2_2013_GDP_P_Constant'!E12-1 -> 0.03891229502 | G12: ='Tab 1.2_2013_GDP_P_Constant'!G12/'Tab 1.2_2013_GDP_P_Constant'!F12-1 -> -0.08279711541 | H12: ='Tab 1.2_2013_GDP_P_Constant'!H12/'Tab 1.2_2013_GDP_P_Constant'!G12-1 -> -0.04265034479 | I12: ='Tab 1.2_2013_GDP_P_Constant'!I12/'Tab 1.2_2013_GDP_P_Constant'!H12-1 -> 0.004171600755 | J12: ='Tab 1.2_2013_GDP_P_Constant'!J12/'Tab 1.2_2013_GDP_P_Constant'!I12-1 -> 0.0391823652 | K12: ='Tab 1.2_2013_GDP_P_Constant'!K12/'Tab 1.2_2013_GDP_P_Constant'!J12-1 -> 0.02465725692 | L12: ='Tab 1.2_2013_GDP_P_Constant'!L12/'Tab 1.2_2013_GDP_P_Constant'!K12-1 -> 0.03178477597 | M12: ='Tab 1.2_2013_GDP_P_Constant'!M12/'Tab 1.2_2013_GDP_P_Constant'!L12-1 -> 0.03257616001 | N12: ='Tab 1.2_2013_GDP_P_Constant'!N12/'Tab 1.2_2013_GDP_P_Constant'!M12-1 -> 0.02637964752 | O12: ='Tab 1.2_2013_GDP_P_Constant'!O12/'Tab 1.2_2013_GDP_P_Constant'!N12-1 -> -0.07046027129 | P12: ='Tab 1.2_2013_GDP_P_Constant'!P12/'Tab 1.2_2013_GDP_P_Constant'!O12-1 -> -0.07866907105 | Q12: ='Tab 1.2_2013_GDP_P_Constant'!Q12/'Tab 1.2_2013_GDP_P_Constant'!P12-1 -> 0.002816758037
A13: D | B13: Electricity, gas, steam and air conditioning supply | D13: ='Tab 1.2_2013_GDP_P_Constant'!D13/'Tab 1.2_2013_GDP_P_Constant'!C13-1 -> 0.1931770536 | E13: ='Tab 1.2_2013_GDP_P_Constant'!E13/'Tab 1.2_2013_GDP_P_Constant'!D13-1 -> 0.0363148002 | F13: ='Tab 1.2_2013_GDP_P_Constant'!F13/'Tab 1.2_2013_GDP_P_Constant'!E13-1 -> 0.3354767384 | G13: ='Tab 1.2_2013_GDP_P_Constant'!G13/'Tab 1.2_2013_GDP_P_Constant'!F13-1 -> 0.05212486147 | H13: ='Tab 1.2_2013_GDP_P_Constant'!H13/'Tab 1.2_2013_GDP_P_Constant'!G13-1 -> 0.02244862313 | I13: ='Tab 1.2_2013_GDP_P_Constant'!I13/'Tab 1.2_2013_GDP_P_Constant'!H13-1 -> 0.07679870218 | J13: ='Tab 1.2_2013_GDP_P_Constant'!J13/'Tab 1.2_2013_GDP_P_Constant'!I13-1 -> -0.03872925727 | K13: ='Tab 1.2_2013_GDP_P_Constant'!K13/'Tab 1.2_2013_GDP_P_Constant'!J13-1 -> -0.04056413698 | L13: ='Tab 1.2_2013_GDP_P_Constant'!L13/'Tab 1.2_2013_GDP_P_Constant'!K13-1 -> 0.02199999993 | M13: ='Tab 1.2_2013_GDP_P_Constant'!M13/'Tab 1.2_2013_GDP_P_Constant'!L13-1 -> 0.0602877627 | N13: ='Tab 1.2_2013_GDP_P_Constant'!N13/'Tab 1.2_2013_GDP_P_Constant'!M13-1 -> 0.1014038997 | O13: ='Tab 1.2_2013_GDP_P_Constant'!O13/'Tab 1.2_2013_GDP_P_Constant'!N13-1 -> 0.07256331754 | P13: ='Tab 1.2_2013_GDP_P_Constant'!P13/'Tab 1.2_2013_GDP_P_Constant'!O13-1 -> -0.07417665221 | Q13: ='Tab 1.2_2013_GDP_P_Constant'!Q13/'Tab 1.2_2013_GDP_P_Constant'!P13-1 -> 0.1326254942
A14: E | B14: Water supply, sewerage, waste management and remediation activities | D14: ='Tab 1.2_2013_GDP_P_Constant'!D14/'Tab 1.2_2013_GDP_P_Constant'!C14-1 -> 0.1931770536 | E14: ='Tab 1.2_2013_GDP_P_Constant'!E14/'Tab 1.2_2013_GDP_P_Constant'!D14-1 -> 0.0363148002 | F14: ='Tab 1.2_2013_GDP_P_Constant'!F14/'Tab 1.2_2013_GDP_P_Constant'!E14-1 -> 0.3354767384 | G14: ='Tab 1.2_2013_GDP_P_Constant'!G14/'Tab 1.2_2013_GDP_P_Constant'!F14-1 -> 0.05212486147 | H14: ='Tab 1.2_2013_GDP_P_Constant'!H14/'Tab 1.2_2013_GDP_P_Constant'!G14-1 -> 0.02244862313 | I14: ='Tab 1.2_2013_GDP_P_Constant'!I14/'Tab 1.2_2013_GDP_P_Constant'!H14-1 -> 0.07679870218 | J14: ='Tab 1.2_2013_GDP_P_Constant'!J14/'Tab 1.2_2013_GDP_P_Constant'!I14-1 -> -0.03872925727 | K14: ='Tab 1.2_2013_GDP_P_Constant'!K14/'Tab 1.2_2013_GDP_P_Constant'!J14-1 -> -0.04056413698 | L14: ='Tab 1.2_2013_GDP_P_Constant'!L14/'Tab 1.2_2013_GDP_P_Constant'!K14-1 -> 0.02199999993 | M14: ='Tab 1.2_2013_GDP_P_Constant'!M14/'Tab 1.2_2013_GDP_P_Constant'!L14-1 -> 0.1794111821 | N14: ='Tab 1.2_2013_GDP_P_Constant'!N14/'Tab 1.2_2013_GDP_P_Constant'!M14-1 -> 0.04487479772 | O14: ='Tab 1.2_2013_GDP_P_Constant'!O14/'Tab 1.2_2013_GDP_P_Constant'!N14-1 -> 0.08399350599 | P14: ='Tab 1.2_2013_GDP_P_Constant'!P14/'Tab 1.2_2013_GDP_P_Constant'!O14-1 -> -0.02371113382 | Q14: ='Tab 1.2_2013_GDP_P_Constant'!Q14/'Tab 1.2_2013_GDP_P_Constant'!P14-1 -> 0.003530113076
A15: F | B15: Construction | D15: ='Tab 1.2_2013_GDP_P_Constant'!D15/'Tab 1.2_2013_GDP_P_Constant'!C15-1 -> -0.2764774856 | E15: ='Tab 1.2_2013_GDP_P_Constant'!E15/'Tab 1.2_2013_GDP_P_Constant'!D15-1 -> 0.0385564211 | F15: ='Tab 1.2_2013_GDP_P_Constant'!F15/'Tab 1.2_2013_GDP_P_Constant'!E15-1 -> -0.09164257957 | G15: ='Tab 1.2_2013_GDP_P_Constant'!G15/'Tab 1.2_2013_GDP_P_Constant'!F15-1 -> 0.0876384591 | H15: ='Tab 1.2_2013_GDP_P_Constant'!H15/'Tab 1.2_2013_GDP_P_Constant'!G15-1 -> 0.03 | I15: ='Tab 1.2_2013_GDP_P_Constant'!I15/'Tab 1.2_2013_GDP_P_Constant'!H15-1 -> 0.038 | J15: ='Tab 1.2_2013_GDP_P_Constant'!J15/'Tab 1.2_2013_GDP_P_Constant'!I15-1 -> 0.092 | K15: ='Tab 1.2_2013_GDP_P_Constant'!K15/'Tab 1.2_2013_GDP_P_Constant'!J15-1 -> 0.127 | L15: ='Tab 1.2_2013_GDP_P_Constant'!L15/'Tab 1.2_2013_GDP_P_Constant'!K15-1 -> 0.045 | M15: ='Tab 1.2_2013_GDP_P_Constant'!M15/'Tab 1.2_2013_GDP_P_Constant'!L15-1 -> 0.1153320298 | N15: ='Tab 1.2_2013_GDP_P_Constant'!N15/'Tab 1.2_2013_GDP_P_Constant'!M15-1 -> 0.5474255348 | O15: ='Tab 1.2_2013_GDP_P_Constant'!O15/'Tab 1.2_2013_GDP_P_Constant'!N15-1 -> 0.4435476151 | P15: ='Tab 1.2_2013_GDP_P_Constant'!P15/'Tab 1.2_2013_GDP_P_Constant'!O15-1 -> -0.01426987512 | Q15: ='Tab 1.2_2013_GDP_P_Constant'!Q15/'Tab 1.2_2013_GDP_P_Constant'!P15-1 -> 0.01813867564
B16: Services | D16: ='Tab 1.2_2013_GDP_P_Constant'!D16/'Tab 1.2_2013_GDP_P_Constant'!C16-1 -> -0.0230992552 | E16: ='Tab 1.2_2013_GDP_P_Constant'!E16/'Tab 1.2_2013_GDP_P_Constant'!D16-1 -> 0.08432461394 | F16: ='Tab 1.2_2013_GDP_P_Constant'!F16/'Tab 1.2_2013_GDP_P_Constant'!E16-1 -> 0.06618141585 | G16: ='Tab 1.2_2013_GDP_P_Constant'!G16/'Tab 1.2_2013_GDP_P_Constant'!F16-1 -> -0.02953816036 | H16: ='Tab 1.2_2013_GDP_P_Constant'!H16/'Tab 1.2_2013_GDP_P_Constant'!G16-1 -> 0.03447549224 | I16: ='Tab 1.2_2013_GDP_P_Constant'!I16/'Tab 1.2_2013_GDP_P_Constant'!H16-1 -> 0.0258915679 | J16: ='Tab 1.2_2013_GDP_P_Constant'!J16/'Tab 1.2_2013_GDP_P_Constant'!I16-1 -> 0.0274124179 | K16: ='Tab 1.2_2013_GDP_P_Constant'!K16/'Tab 1.2_2013_GDP_P_Constant'!J16-1 -> 0.04544260258 | L16: ='Tab 1.2_2013_GDP_P_Constant'!L16/'Tab 1.2_2013_GDP_P_Constant'!K16-1 -> 0.05289230015 | M16: ='Tab 1.2_2013_GDP_P_Constant'!M16/'Tab 1.2_2013_GDP_P_Constant'!L16-1 -> 0.01359108556 | N16: ='Tab 1.2_2013_GDP_P_Constant'!N16/'Tab 1.2_2013_GDP_P_Constant'!M16-1 -> -0.002432045025 | O16: ='Tab 1.2_2013_GDP_P_Constant'!O16/'Tab 1.2_2013_GDP_P_Constant'!N16-1 -> -0.02080064409 | P16: ='Tab 1.2_2013_GDP_P_Constant'!P16/'Tab 1.2_2013_GDP_P_Constant'!O16-1 -> 0.1173289461 | Q16: ='Tab 1.2_2013_GDP_P_Constant'!Q16/'Tab 1.2_2013_GDP_P_Constant'!P16-1 -> 0.09899814525
A17: G | B17: Wholesale and retail trade; repair of motors and motocycles | D17: ='Tab 1.2_2013_GDP_P_Constant'!D17/'Tab 1.2_2013_GDP_P_Constant'!C17-1 -> -0.06260518378 | E17: ='Tab 1.2_2013_GDP_P_Constant'!E17/'Tab 1.2_2013_GDP_P_Constant'!D17-1 -> 0.09729641198 | F17: ='Tab 1.2_2013_GDP_P_Constant'!F17/'Tab 1.2_2013_GDP_P_Constant'!E17-1 -> 0.1106980624 | G17: ='Tab 1.2_2013_GDP_P_Constant'!G17/'Tab 1.2_2013_GDP_P_Constant'!F17-1 -> -0.06286013507 | H17: ='Tab 1.2_2013_GDP_P_Constant'!H17/'Tab 1.2_2013_GDP_P_Constant'!G17-1 -> -0.001465416854 | I17: ='Tab 1.2_2013_GDP_P_Constant'!I17/'Tab 1.2_2013_GDP_P_Constant'!H17-1 -> 0.02843410049 | J17: ='Tab 1.2_2013_GDP_P_Constant'!J17/'Tab 1.2_2013_GDP_P_Constant'!I17-1 -> 0.01027837278 | K17: ='Tab 1.2_2013_GDP_P_Constant'!K17/'Tab 1.2_2013_GDP_P_Constant'!J17-1 -> 0.04559632006 | L17: ='Tab 1.2_2013_GDP_P_Constant'!L17/'Tab 1.2_2013_GDP_P_Constant'!K17-1 -> 0.0223569435 | M17: ='Tab 1.2_2013_GDP_P_Constant'!M17/'Tab 1.2_2013_GDP_P_Constant'!L17-1 -> 0.0136963591 | N17: ='Tab 1.2_2013_GDP_P_Constant'!N17/'Tab 1.2_2013_GDP_P_Constant'!M17-1 -> 0.003201156043 | O17: ='Tab 1.2_2013_GDP_P_Constant'!O17/'Tab 1.2_2013_GDP_P_Constant'!N17-1 -> -0.05439180971 | P17: ='Tab 1.2_2013_GDP_P_Constant'!P17/'Tab 1.2_2013_GDP_P_Constant'!O17-1 -> 0.1701042983 | Q17: ='Tab 1.2_2013_GDP_P_Constant'!Q17/'Tab 1.2_2013_GDP_P_Constant'!P17-1 -> 0.09545681788
A18: H | B18: Transport and storage | D18: ='Tab 1.2_2013_GDP_P_Constant'!D18/'Tab 1.2_2013_GDP_P_Constant'!C18-1 -> 0.04756242568 | E18: ='Tab 1.2_2013_GDP_P_Constant'!E18/'Tab 1.2_2013_GDP_P_Constant'!D18-1 -> 0.02648505486 | F18: ='Tab 1.2_2013_GDP_P_Constant'!F18/'Tab 1.2_2013_GDP_P_Constant'!E18-1 -> 0.05141909325 | G18: ='Tab 1.2_2013_GDP_P_Constant'!G18/'Tab 1.2_2013_GDP_P_Constant'!F18-1 -> 0.02191060473 | H18: ='Tab 1.2_2013_GDP_P_Constant'!H18/'Tab 1.2_2013_GDP_P_Constant'!G18-1 -> 0.0423670669 | I18: ='Tab 1.2_2013_GDP_P_Constant'!I18/'Tab 1.2_2013_GDP_P_Constant'!H18-1 -> 0.03274642093 | J18: ='Tab 1.2_2013_GDP_P_Constant'!J18/'Tab 1.2_2013_GDP_P_Constant'!I18-1 -> 0.01465901848 | K18: ='Tab 1.2_2013_GDP_P_Constant'!K18/'Tab 1.2_2013_GDP_P_Constant'!J18-1 -> 0.03282035176 | L18: ='Tab 1.2_2013_GDP_P_Constant'!L18/'Tab 1.2_2013_GDP_P_Constant'!K18-1 -> 0.05321575186 | M18: ='Tab 1.2_2013_GDP_P_Constant'!M18/'Tab 1.2_2013_GDP_P_Constant'!L18-1 -> 0.09290462913 | N18: ='Tab 1.2_2013_GDP_P_Constant'!N18/'Tab 1.2_2013_GDP_P_Constant'!M18-1 -> -0.160036226 | O18: ='Tab 1.2_2013_GDP_P_Constant'!O18/'Tab 1.2_2013_GDP_P_Constant'!N18-1 -> 0.1312264288 | P18: ='Tab 1.2_2013_GDP_P_Constant'!P18/'Tab 1.2_2013_GDP_P_Constant'!O18-1 -> 0.08862858498 | Q18: ='Tab 1.2_2013_GDP_P_Constant'!Q18/'Tab 1.2_2013_GDP_P_Constant'!P18-1 -> 0.1969770279
A19: I | B19: Accommodation and food service activities | D19: ='Tab 1.2_2013_GDP_P_Constant'!D19/'Tab 1.2_2013_GDP_P_Constant'!C19-1 -> 0.1976292482 | E19: ='Tab 1.2_2013_GDP_P_Constant'!E19/'Tab 1.2_2013_GDP_P_Constant'!D19-1 -> 0.1565836299 | F19: ='Tab 1.2_2013_GDP_P_Constant'!F19/'Tab 1.2_2013_GDP_P_Constant'!E19-1 -> 0.1428365385 | G19: ='Tab 1.2_2013_GDP_P_Constant'!G19/'Tab 1.2_2013_GDP_P_Constant'!F19-1 -> 0.02897788622 | H19: ='Tab 1.2_2013_GDP_P_Constant'!H19/'Tab 1.2_2013_GDP_P_Constant'!G19-1 -> -0.03536410033 | I19: ='Tab 1.2_2013_GDP_P_Constant'!I19/'Tab 1.2_2013_GDP_P_Constant'!H19-1 -> -0.356504602 | J19: ='Tab 1.2_2013_GDP_P_Constant'!J19/'Tab 1.2_2013_GDP_P_Constant'!I19-1 -> 0.1678832918 | K19: ='Tab 1.2_2013_GDP_P_Constant'!K19/'Tab 1.2_2013_GDP_P_Constant'!J19-1 -> 0.03960786894 | L19: ='Tab 1.2_2013_GDP_P_Constant'!L19/'Tab 1.2_2013_GDP_P_Constant'!K19-1 -> 0.09 | M19: ='Tab 1.2_2013_GDP_P_Constant'!M19/'Tab 1.2_2013_GDP_P_Constant'!L19-1 -> -0.07577157694 | N19: ='Tab 1.2_2013_GDP_P_Constant'!N19/'Tab 1.2_2013_GDP_P_Constant'!M19-1 -> -0.128886431 | O19: ='Tab 1.2_2013_GDP_P_Constant'!O19/'Tab 1.2_2013_GDP_P_Constant'!N19-1 -> 0.2077184714 | P19: ='Tab 1.2_2013_GDP_P_Constant'!P19/'Tab 1.2_2013_GDP_P_Constant'!O19-1 -> -0.01108345299 | Q19: ='Tab 1.2_2013_GDP_P_Constant'!Q19/'Tab 1.2_2013_GDP_P_Constant'!P19-1 -> 0.1820919864
A20: J | B20: Information and Communication | D20: ='Tab 1.2_2013_GDP_P_Constant'!D20/'Tab 1.2_2013_GDP_P_Constant'!C20-1 -> 0.04761904762 | E20: ='Tab 1.2_2013_GDP_P_Constant'!E20/'Tab 1.2_2013_GDP_P_Constant'!D20-1 -> 0.09090909091 | F20: ='Tab 1.2_2013_GDP_P_Constant'!F20/'Tab 1.2_2013_GDP_P_Constant'!E20-1 -> 0.1041666667 | G20: ='Tab 1.2_2013_GDP_P_Constant'!G20/'Tab 1.2_2013_GDP_P_Constant'!F20-1 -> -0.0601509434 | H20: ='Tab 1.2_2013_GDP_P_Constant'!H20/'Tab 1.2_2013_GDP_P_Constant'!G20-1 -> 0.09678349823 | I20: ='Tab 1.2_2013_GDP_P_Constant'!I20/'Tab 1.2_2013_GDP_P_Constant'!H20-1 -> 0.1468867849 | J20: ='Tab 1.2_2013_GDP_P_Constant'!J20/'Tab 1.2_2013_GDP_P_Constant'!I20-1 -> 0.0701466632 | K20: ='Tab 1.2_2013_GDP_P_Constant'!K20/'Tab 1.2_2013_GDP_P_Constant'!J20-1 -> 0.1132681317 | L20: ='Tab 1.2_2013_GDP_P_Constant'!L20/'Tab 1.2_2013_GDP_P_Constant'!K20-1 -> 0.2287978619 | M20: ='Tab 1.2_2013_GDP_P_Constant'!M20/'Tab 1.2_2013_GDP_P_Constant'!L20-1 -> -0.03534813114 | N20: ='Tab 1.2_2013_GDP_P_Constant'!N20/'Tab 1.2_2013_GDP_P_Constant'!M20-1 -> 0.09498799681 | O20: ='Tab 1.2_2013_GDP_P_Constant'!O20/'Tab 1.2_2013_GDP_P_Constant'!N20-1 -> -0.02680174345 | P20: ='Tab 1.2_2013_GDP_P_Constant'!P20/'Tab 1.2_2013_GDP_P_Constant'!O20-1 -> 0.2794048957 | Q20: ='Tab 1.2_2013_GDP_P_Constant'!Q20/'Tab 1.2_2013_GDP_P_Constant'!P20-1 -> 0.1575683158
A21: K | B21: Financial and insurance activities | D21: ='Tab 1.2_2013_GDP_P_Constant'!D21/'Tab 1.2_2013_GDP_P_Constant'!C21-1 -> 0.03190474028 | E21: ='Tab 1.2_2013_GDP_P_Constant'!E21/'Tab 1.2_2013_GDP_P_Constant'!D21-1 -> 0.1015545525 | F21: ='Tab 1.2_2013_GDP_P_Constant'!F21/'Tab 1.2_2013_GDP_P_Constant'!E21-1 -> -0.05841397068 | G21: ='Tab 1.2_2013_GDP_P_Constant'!G21/'Tab 1.2_2013_GDP_P_Constant'!F21-1 -> 0.2129350688 | H21: ='Tab 1.2_2013_GDP_P_Constant'!H21/'Tab 1.2_2013_GDP_P_Constant'!G21-1 -> 0.2778779603 | I21: ='Tab 1.2_2013_GDP_P_Constant'!I21/'Tab 1.2_2013_GDP_P_Constant'!H21-1 -> 0.006105159515 | J21: ='Tab 1.2_2013_GDP_P_Constant'!J21/'Tab 1.2_2013_GDP_P_Constant'!I21-1 -> 0.1360987709 | K21: ='Tab 1.2_2013_GDP_P_Constant'!K21/'Tab 1.2_2013_GDP_P_Constant'!J21-1 -> 0.04275691445 | L21: ='Tab 1.2_2013_GDP_P_Constant'!L21/'Tab 1.2_2013_GDP_P_Constant'!K21-1 -> 0.06067679121 | M21: ='Tab 1.2_2013_GDP_P_Constant'!M21/'Tab 1.2_2013_GDP_P_Constant'!L21-1 -> 0.04669441891 | N21: ='Tab 1.2_2013_GDP_P_Constant'!N21/'Tab 1.2_2013_GDP_P_Constant'!M21-1 -> 0.02425459343 | O21: ='Tab 1.2_2013_GDP_P_Constant'!O21/'Tab 1.2_2013_GDP_P_Constant'!N21-1 -> -0.07396043583 | P21: ='Tab 1.2_2013_GDP_P_Constant'!P21/'Tab 1.2_2013_GDP_P_Constant'!O21-1 -> 0.01122604742 | Q21: ='Tab 1.2_2013_GDP_P_Constant'!Q21/'Tab 1.2_2013_GDP_P_Constant'!P21-1 -> 0.1023385883
A22: L | B22: Real estate activities | D22: ='Tab 1.2_2013_GDP_P_Constant'!D22/'Tab 1.2_2013_GDP_P_Constant'!C22-1 -> 0.02742423625 | E22: ='Tab 1.2_2013_GDP_P_Constant'!E22/'Tab 1.2_2013_GDP_P_Constant'!D22-1 -> 0.02742394537 | F22: ='Tab 1.2_2013_GDP_P_Constant'!F22/'Tab 1.2_2013_GDP_P_Constant'!E22-1 -> 0.02742446769 | G22: ='Tab 1.2_2013_GDP_P_Constant'!G22/'Tab 1.2_2013_GDP_P_Constant'!F22-1 -> 0.02742453652 | H22: ='Tab 1.2_2013_GDP_P_Constant'!H22/'Tab 1.2_2013_GDP_P_Constant'!G22-1 -> 0.02742431848 | I22: ='Tab 1.2_2013_GDP_P_Constant'!I22/'Tab 1.2_2013_GDP_P_Constant'!H22-1 -> 0.02742394716 | J22: ='Tab 1.2_2013_GDP_P_Constant'!J22/'Tab 1.2_2013_GDP_P_Constant'!I22-1 -> 0.02742413453 | K22: ='Tab 1.2_2013_GDP_P_Constant'!K22/'Tab 1.2_2013_GDP_P_Constant'!J22-1 -> 0.02742430099 | L22: ='Tab 1.2_2013_GDP_P_Constant'!L22/'Tab 1.2_2013_GDP_P_Constant'!K22-1 -> 0.06991565946 | M22: ='Tab 1.2_2013_GDP_P_Constant'!M22/'Tab 1.2_2013_GDP_P_Constant'!L22-1 -> 0.1065137393 | N22: ='Tab 1.2_2013_GDP_P_Constant'!N22/'Tab 1.2_2013_GDP_P_Constant'!M22-1 -> 0.009947107724 | O22: ='Tab 1.2_2013_GDP_P_Constant'!O22/'Tab 1.2_2013_GDP_P_Constant'!N22-1 -> 0.001568438248 | P22: ='Tab 1.2_2013_GDP_P_Constant'!P22/'Tab 1.2_2013_GDP_P_Constant'!O22-1 -> 0.02644585085 | Q22: ='Tab 1.2_2013_GDP_P_Constant'!Q22/'Tab 1.2_2013_GDP_P_Constant'!P22-1 -> 0.02461889506
A23: M | B23: Professional, scientific and technical activities | D23: ='Tab 1.2_2013_GDP_P_Constant'!D23/'Tab 1.2_2013_GDP_P_Constant'!C23-1 -> 0.02742423625 | E23: ='Tab 1.2_2013_GDP_P_Constant'!E23/'Tab 1.2_2013_GDP_P_Constant'!D23-1 -> 0.02742394537 | F23: ='Tab 1.2_2013_GDP_P_Constant'!F23/'Tab 1.2_2013_GDP_P_Constant'!E23-1 -> 0.02742446769 | G23: ='Tab 1.2_2013_GDP_P_Constant'!G23/'Tab 1.2_2013_GDP_P_Constant'!F23-1 -> 0.02742453652 | H23: ='Tab 1.2_2013_GDP_P_Constant'!H23/'Tab 1.2_2013_GDP_P_Constant'!G23-1 -> 0.02742431848 | I23: ='Tab 1.2_2013_GDP_P_Constant'!I23/'Tab 1.2_2013_GDP_P_Constant'!H23-1 -> 0.02742394716 | J23: ='Tab 1.2_2013_GDP_P_Constant'!J23/'Tab 1.2_2013_GDP_P_Constant'!I23-1 -> 0.02742413453 | K23: ='Tab 1.2_2013_GDP_P_Constant'!K23/'Tab 1.2_2013_GDP_P_Constant'!J23-1 -> 0.02742430099 | L23: ='Tab 1.2_2013_GDP_P_Constant'!L23/'Tab 1.2_2013_GDP_P_Constant'!K23-1 -> 0.06991565946 | M23: ='Tab 1.2_2013_GDP_P_Constant'!M23/'Tab 1.2_2013_GDP_P_Constant'!L23-1 -> 0.03006762996 | N23: ='Tab 1.2_2013_GDP_P_Constant'!N23/'Tab 1.2_2013_GDP_P_Constant'!M23-1 -> -0.01533496194 | O23: ='Tab 1.2_2013_GDP_P_Constant'!O23/'Tab 1.2_2013_GDP_P_Constant'!N23-1 -> 0.1092470883 | P23: ='Tab 1.2_2013_GDP_P_Constant'!P23/'Tab 1.2_2013_GDP_P_Constant'!O23-1 -> -0.1546139499 | Q23: ='Tab 1.2_2013_GDP_P_Constant'!Q23/'Tab 1.2_2013_GDP_P_Constant'!P23-1 -> -0.07796575072
A24: N | B24: Administrative and support service activities | D24: ='Tab 1.2_2013_GDP_P_Constant'!D24/'Tab 1.2_2013_GDP_P_Constant'!C24-1 -> 0.02742423625 | E24: ='Tab 1.2_2013_GDP_P_Constant'!E24/'Tab 1.2_2013_GDP_P_Constant'!D24-1 -> 0.02742394537 | F24: ='Tab 1.2_2013_GDP_P_Constant'!F24/'Tab 1.2_2013_GDP_P_Constant'!E24-1 -> 0.02742446769 | G24: ='Tab 1.2_2013_GDP_P_Constant'!G24/'Tab 1.2_2013_GDP_P_Constant'!F24-1 -> 0.02742453652 | H24: ='Tab 1.2_2013_GDP_P_Constant'!H24/'Tab 1.2_2013_GDP_P_Constant'!G24-1 -> 0.02742431848 | I24: ='Tab 1.2_2013_GDP_P_Constant'!I24/'Tab 1.2_2013_GDP_P_Constant'!H24-1 -> 0.02742394716 | J24: ='Tab 1.2_2013_GDP_P_Constant'!J24/'Tab 1.2_2013_GDP_P_Constant'!I24-1 -> 0.02742413453 | K24: ='Tab 1.2_2013_GDP_P_Constant'!K24/'Tab 1.2_2013_GDP_P_Constant'!J24-1 -> 0.02742430099 | L24: ='Tab 1.2_2013_GDP_P_Constant'!L24/'Tab 1.2_2013_GDP_P_Constant'!K24-1 -> 0.06991565946 | M24: ='Tab 1.2_2013_GDP_P_Constant'!M24/'Tab 1.2_2013_GDP_P_Constant'!L24-1 -> 0.1010905626 | N24: ='Tab 1.2_2013_GDP_P_Constant'!N24/'Tab 1.2_2013_GDP_P_Constant'!M24-1 -> 0.03064283927 | O24: ='Tab 1.2_2013_GDP_P_Constant'!O24/'Tab 1.2_2013_GDP_P_Constant'!N24-1 -> -0.02015556918 | P24: ='Tab 1.2_2013_GDP_P_Constant'!P24/'Tab 1.2_2013_GDP_P_Constant'!O24-1 -> -0.004890766688 | Q24: ='Tab 1.2_2013_GDP_P_Constant'!Q24/'Tab 1.2_2013_GDP_P_Constant'!P24-1 -> -0.07504484535
A25: O | B25: Public administration and defence; compulsory social security | D25: ='Tab 1.2_2013_GDP_P_Constant'!D25/'Tab 1.2_2013_GDP_P_Constant'!C25-1 -> 0.007156959526 | E25: ='Tab 1.2_2013_GDP_P_Constant'!E25/'Tab 1.2_2013_GDP_P_Constant'!D25-1 -> 0.03136486155 | F25: ='Tab 1.2_2013_GDP_P_Constant'!F25/'Tab 1.2_2013_GDP_P_Constant'!E25-1 -> -0.277500594 | G25: ='Tab 1.2_2013_GDP_P_Constant'!G25/'Tab 1.2_2013_GDP_P_Constant'!F25-1 -> -0.0141400855 | H25: ='Tab 1.2_2013_GDP_P_Constant'!H25/'Tab 1.2_2013_GDP_P_Constant'!G25-1 -> 0.305203469 | I25: ='Tab 1.2_2013_GDP_P_Constant'!I25/'Tab 1.2_2013_GDP_P_Constant'!H25-1 -> 0.138 | J25: ='Tab 1.2_2013_GDP_P_Constant'!J25/'Tab 1.2_2013_GDP_P_Constant'!I25-1 -> 0.024 | K25: ='Tab 1.2_2013_GDP_P_Constant'!K25/'Tab 1.2_2013_GDP_P_Constant'!J25-1 -> 0.03159012477 | L25: ='Tab 1.2_2013_GDP_P_Constant'!L25/'Tab 1.2_2013_GDP_P_Constant'!K25-1 -> 0.06999485332 | M25: ='Tab 1.2_2013_GDP_P_Constant'!M25/'Tab 1.2_2013_GDP_P_Constant'!L25-1 -> -0.1296415997 | N25: ='Tab 1.2_2013_GDP_P_Constant'!N25/'Tab 1.2_2013_GDP_P_Constant'!M25-1 -> 0.01851033868 | O25: ='Tab 1.2_2013_GDP_P_Constant'!O25/'Tab 1.2_2013_GDP_P_Constant'!N25-1 -> -0.1114037356 | P25: ='Tab 1.2_2013_GDP_P_Constant'!P25/'Tab 1.2_2013_GDP_P_Constant'!O25-1 -> -0.04979200983 | Q25: ='Tab 1.2_2013_GDP_P_Constant'!Q25/'Tab 1.2_2013_GDP_P_Constant'!P25-1 -> 0.237744789
A26: P | B26: Education | D26: ='Tab 1.2_2013_GDP_P_Constant'!D26/'Tab 1.2_2013_GDP_P_Constant'!C26-1 -> 0.03785857238 | E26: ='Tab 1.2_2013_GDP_P_Constant'!E26/'Tab 1.2_2013_GDP_P_Constant'!D26-1 -> 0.1036477583 | F26: ='Tab 1.2_2013_GDP_P_Constant'!F26/'Tab 1.2_2013_GDP_P_Constant'!E26-1 -> 0.05882352941 | G26: ='Tab 1.2_2013_GDP_P_Constant'!G26/'Tab 1.2_2013_GDP_P_Constant'!F26-1 -> 0.1020352035 | H26: ='Tab 1.2_2013_GDP_P_Constant'!H26/'Tab 1.2_2013_GDP_P_Constant'!G26-1 -> 0.05378088345 | I26: ='Tab 1.2_2013_GDP_P_Constant'!I26/'Tab 1.2_2013_GDP_P_Constant'!H26-1 -> 0.105 | J26: ='Tab 1.2_2013_GDP_P_Constant'!J26/'Tab 1.2_2013_GDP_P_Constant'!I26-1 -> 0.04664221866 | K26: ='Tab 1.2_2013_GDP_P_Constant'!K26/'Tab 1.2_2013_GDP_P_Constant'!J26-1 -> 0.0700755502 | L26: ='Tab 1.2_2013_GDP_P_Constant'!L26/'Tab 1.2_2013_GDP_P_Constant'!K26-1 -> 0.1367031618 | M26: ='Tab 1.2_2013_GDP_P_Constant'!M26/'Tab 1.2_2013_GDP_P_Constant'!L26-1 -> -0.03903590851 | N26: ='Tab 1.2_2013_GDP_P_Constant'!N26/'Tab 1.2_2013_GDP_P_Constant'!M26-1 -> 0.05145957985 | O26: ='Tab 1.2_2013_GDP_P_Constant'!O26/'Tab 1.2_2013_GDP_P_Constant'!N26-1 -> 0.1501685601 | P26: ='Tab 1.2_2013_GDP_P_Constant'!P26/'Tab 1.2_2013_GDP_P_Constant'!O26-1 -> 0.1058962578 | Q26: ='Tab 1.2_2013_GDP_P_Constant'!Q26/'Tab 1.2_2013_GDP_P_Constant'!P26-1 -> -0.0156029563
A27: Q | B27: Human health and social work activities | D27: ='Tab 1.2_2013_GDP_P_Constant'!D27/'Tab 1.2_2013_GDP_P_Constant'!C27-1 -> 0.01465901848 | E27: ='Tab 1.2_2013_GDP_P_Constant'!E27/'Tab 1.2_2013_GDP_P_Constant'!D27-1 -> 0.1859296482 | F27: ='Tab 1.2_2013_GDP_P_Constant'!F27/'Tab 1.2_2013_GDP_P_Constant'!E27-1 -> -0.004766949153 | G27: ='Tab 1.2_2013_GDP_P_Constant'!G27/'Tab 1.2_2013_GDP_P_Constant'!F27-1 -> 0.004789781799 | H27: ='Tab 1.2_2013_GDP_P_Constant'!H27/'Tab 1.2_2013_GDP_P_Constant'!G27-1 -> 0.2123940678 | I27: ='Tab 1.2_2013_GDP_P_Constant'!I27/'Tab 1.2_2013_GDP_P_Constant'!H27-1 -> 0.116 | J27: ='Tab 1.2_2013_GDP_P_Constant'!J27/'Tab 1.2_2013_GDP_P_Constant'!I27-1 -> 0.03740756851 | K27: ='Tab 1.2_2013_GDP_P_Constant'!K27/'Tab 1.2_2013_GDP_P_Constant'!J27-1 -> 0.0008385744235 | L27: ='Tab 1.2_2013_GDP_P_Constant'!L27/'Tab 1.2_2013_GDP_P_Constant'!K27-1 -> 0.09090909091 | M27: ='Tab 1.2_2013_GDP_P_Constant'!M27/'Tab 1.2_2013_GDP_P_Constant'!L27-1 -> -0.2185153204 | N27: ='Tab 1.2_2013_GDP_P_Constant'!N27/'Tab 1.2_2013_GDP_P_Constant'!M27-1 -> -0.08855283522 | O27: ='Tab 1.2_2013_GDP_P_Constant'!O27/'Tab 1.2_2013_GDP_P_Constant'!N27-1 -> 0.1253278913 | P27: ='Tab 1.2_2013_GDP_P_Constant'!P27/'Tab 1.2_2013_GDP_P_Constant'!O27-1 -> -0.08664774412 | Q27: ='Tab 1.2_2013_GDP_P_Constant'!Q27/'Tab 1.2_2013_GDP_P_Constant'!P27-1 -> 0.1272681661
A28: R | B28: Arts, entertainment and recreation | D28: ='Tab 1.2_2013_GDP_P_Constant'!D28/'Tab 1.2_2013_GDP_P_Constant'!C28-1 -> 0.02742423625 | E28: ='Tab 1.2_2013_GDP_P_Constant'!E28/'Tab 1.2_2013_GDP_P_Constant'!D28-1 -> 0.02742394537 | F28: ='Tab 1.2_2013_GDP_P_Constant'!F28/'Tab 1.2_2013_GDP_P_Constant'!E28-1 -> 0.02742446769 | G28: ='Tab 1.2_2013_GDP_P_Constant'!G28/'Tab 1.2_2013_GDP_P_Constant'!F28-1 -> 0.02742453652 | H28: ='Tab 1.2_2013_GDP_P_Constant'!H28/'Tab 1.2_2013_GDP_P_Constant'!G28-1 -> 0.02742431848 | I28: ='Tab 1.2_2013_GDP_P_Constant'!I28/'Tab 1.2_2013_GDP_P_Constant'!H28-1 -> 0.02742394716 | J28: ='Tab 1.2_2013_GDP_P_Constant'!J28/'Tab 1.2_2013_GDP_P_Constant'!I28-1 -> 0.02742413453 | K28: ='Tab 1.2_2013_GDP_P_Constant'!K28/'Tab 1.2_2013_GDP_P_Constant'!J28-1 -> 0.02742430099 | L28: ='Tab 1.2_2013_GDP_P_Constant'!L28/'Tab 1.2_2013_GDP_P_Constant'!K28-1 -> 0.06991565946 | M28: ='Tab 1.2_2013_GDP_P_Constant'!M28/'Tab 1.2_2013_GDP_P_Constant'!L28-1 -> 0.3050352756 | N28: ='Tab 1.2_2013_GDP_P_Constant'!N28/'Tab 1.2_2013_GDP_P_Constant'!M28-1 -> 0.2362437254 | O28: ='Tab 1.2_2013_GDP_P_Constant'!O28/'Tab 1.2_2013_GDP_P_Constant'!N28-1 -> 0.04062305608 | P28: ='Tab 1.2_2013_GDP_P_Constant'!P28/'Tab 1.2_2013_GDP_P_Constant'!O28-1 -> 0.02310560342 | Q28: ='Tab 1.2_2013_GDP_P_Constant'!Q28/'Tab 1.2_2013_GDP_P_Constant'!P28-1 -> -0.01617778047
A29: S | B29: Other service activities | D29: ='Tab 1.2_2013_GDP_P_Constant'!D29/'Tab 1.2_2013_GDP_P_Constant'!C29-1 -> 0.02742423625 | E29: ='Tab 1.2_2013_GDP_P_Constant'!E29/'Tab 1.2_2013_GDP_P_Constant'!D29-1 -> 0.02742394537 | F29: ='Tab 1.2_2013_GDP_P_Constant'!F29/'Tab 1.2_2013_GDP_P_Constant'!E29-1 -> 0.02742446769 | G29: ='Tab 1.2_2013_GDP_P_Constant'!G29/'Tab 1.2_2013_GDP_P_Constant'!F29-1 -> 0.02742453652 | H29: ='Tab 1.2_2013_GDP_P_Constant'!H29/'Tab 1.2_2013_GDP_P_Constant'!G29-1 -> 0.02742431848 | I29: ='Tab 1.2_2013_GDP_P_Constant'!I29/'Tab 1.2_2013_GDP_P_Constant'!H29-1 -> 0.02742394716 | J29: ='Tab 1.2_2013_GDP_P_Constant'!J29/'Tab 1.2_2013_GDP_P_Constant'!I29-1 -> 0.02742413453 | K29: ='Tab 1.2_2013_GDP_P_Constant'!K29/'Tab 1.2_2013_GDP_P_Constant'!J29-1 -> 0.02742430099 | L29: ='Tab 1.2_2013_GDP_P_Constant'!L29/'Tab 1.2_2013_GDP_P_Constant'!K29-1 -> 0.06991565946 | M29: ='Tab 1.2_2013_GDP_P_Constant'!M29/'Tab 1.2_2013_GDP_P_Constant'!L29-1 -> 0.272602871 | N29: ='Tab 1.2_2013_GDP_P_Constant'!N29/'Tab 1.2_2013_GDP_P_Constant'!M29-1 -> -0.0536011422 | O29: ='Tab 1.2_2013_GDP_P_Constant'!O29/'Tab 1.2_2013_GDP_P_Constant'!N29-1 -> 0.01508391615 | P29: ='Tab 1.2_2013_GDP_P_Constant'!P29/'Tab 1.2_2013_GDP_P_Constant'!O29-1 -> -0.1305390287 | Q29: ='Tab 1.2_2013_GDP_P_Constant'!Q29/'Tab 1.2_2013_GDP_P_Constant'!P29-1 -> -0.02085730415
B30: GDP basic price (Gross Value Added) | D30: ='Tab 1.2_2013_GDP_P_Constant'!D30/'Tab 1.2_2013_GDP_P_Constant'!C30-1 -> -0.02443507727 | E30: ='Tab 1.2_2013_GDP_P_Constant'!E30/'Tab 1.2_2013_GDP_P_Constant'!D30-1 -> -0.00666591784 | F30: ='Tab 1.2_2013_GDP_P_Constant'!F30/'Tab 1.2_2013_GDP_P_Constant'!E30-1 -> 0.03003702697 | G30: ='Tab 1.2_2013_GDP_P_Constant'!G30/'Tab 1.2_2013_GDP_P_Constant'!F30-1 -> 0.06291190821 | H30: ='Tab 1.2_2013_GDP_P_Constant'!H30/'Tab 1.2_2013_GDP_P_Constant'!G30-1 -> 0.06680270992 | I30: ='Tab 1.2_2013_GDP_P_Constant'!I30/'Tab 1.2_2013_GDP_P_Constant'!H30-1 -> 0.05866925839 | J30: ='Tab 1.2_2013_GDP_P_Constant'!J30/'Tab 1.2_2013_GDP_P_Constant'!I30-1 -> -0.08387479146 | K30: ='Tab 1.2_2013_GDP_P_Constant'!K30/'Tab 1.2_2013_GDP_P_Constant'!J30-1 -> 0.05197747836 | L30: ='Tab 1.2_2013_GDP_P_Constant'!L30/'Tab 1.2_2013_GDP_P_Constant'!K30-1 -> 0.02737061753 | M30: ='Tab 1.2_2013_GDP_P_Constant'!M30/'Tab 1.2_2013_GDP_P_Constant'!L30-1 -> -0.01458116043 | N30: ='Tab 1.2_2013_GDP_P_Constant'!N30/'Tab 1.2_2013_GDP_P_Constant'!M30-1 -> 0.04047281461 | O30: ='Tab 1.2_2013_GDP_P_Constant'!O30/'Tab 1.2_2013_GDP_P_Constant'!N30-1 -> 0.01941397876 | P30: ='Tab 1.2_2013_GDP_P_Constant'!P30/'Tab 1.2_2013_GDP_P_Constant'!O30-1 -> 0.04806706976 | Q30: ='Tab 1.2_2013_GDP_P_Constant'!Q30/'Tab 1.2_2013_GDP_P_Constant'!P30-1 -> 0.06564692228
B31: Taxes less subsidies on products (+) | D31: ='Tab 1.2_2013_GDP_P_Constant'!D31/'Tab 1.2_2013_GDP_P_Constant'!C31-1 -> -0.009416761496 | E31: ='Tab 1.2_2013_GDP_P_Constant'!E31/'Tab 1.2_2013_GDP_P_Constant'!D31-1 -> 0.01124099619 | F31: ='Tab 1.2_2013_GDP_P_Constant'!F31/'Tab 1.2_2013_GDP_P_Constant'!E31-1 -> 0.03631025832 | G31: ='Tab 1.2_2013_GDP_P_Constant'!G31/'Tab 1.2_2013_GDP_P_Constant'!F31-1 -> 0.05734641975 | H31: ='Tab 1.2_2013_GDP_P_Constant'!H31/'Tab 1.2_2013_GDP_P_Constant'!G31-1 -> 0.06449695843 | I31: ='Tab 1.2_2013_GDP_P_Constant'!I31/'Tab 1.2_2013_GDP_P_Constant'!H31-1 -> 0.06524632704 | J31: ='Tab 1.2_2013_GDP_P_Constant'!J31/'Tab 1.2_2013_GDP_P_Constant'!I31-1 -> -0.04328666747 | K31: ='Tab 1.2_2013_GDP_P_Constant'!K31/'Tab 1.2_2013_GDP_P_Constant'!J31-1 -> 0.05862230502 | L31: ='Tab 1.2_2013_GDP_P_Constant'!L31/'Tab 1.2_2013_GDP_P_Constant'!K31-1 -> 0.04782776822 | M31: ='Tab 1.2_2013_GDP_P_Constant'!M31/'Tab 1.2_2013_GDP_P_Constant'!L31-1 -> -0.007072740519 | N31: ='Tab 1.2_2013_GDP_P_Constant'!N31/'Tab 1.2_2013_GDP_P_Constant'!M31-1 -> 0.04205879665 | O31: ='Tab 1.2_2013_GDP_P_Constant'!O31/'Tab 1.2_2013_GDP_P_Constant'!N31-1 -> 0.01970186979 | P31: ='Tab 1.2_2013_GDP_P_Constant'!P31/'Tab 1.2_2013_GDP_P_Constant'!O31-1 -> 0.05040032705 | Q31: ='Tab 1.2_2013_GDP_P_Constant'!Q31/'Tab 1.2_2013_GDP_P_Constant'!P31-1 -> 0.06306060779
B34: 2018* Provisional data

Sheet Tab 1.5_2013_Deflator
A1: GDP Deflator, 2013 base year
A3: ISIC Rev.4 | B3: Industry | C3: 2004 | D3: 2005 | E3: 2006 | F3: 2007 | G3: 2008 | H3: 2009 | I3: 2010 | J3: 2011 | K3: 2012 | L3: 2013 | M3: 2014 | N3: 2015 | O3: 2016 | P3: 2017 | Q3: 2018*
B4: Gross Domestic Product (GDP) market price | C4: =Tab1.1_2013_GDP_P_Current!D4/'Tab 1.2_2013_GDP_P_Constant'!C4*100 -> 69.76426846 | D4: =Tab1.1_2013_GDP_P_Current!E4/'Tab 1.2_2013_GDP_P_Constant'!D4*100 -> 72.63423458 | E4: =Tab1.1_2013_GDP_P_Current!F4/'Tab 1.2_2013_GDP_P_Constant'!E4*100 -> 73.58080672 | F4: =Tab1.1_2013_GDP_P_Current!G4/'Tab 1.2_2013_GDP_P_Constant'!F4*100 -> 76.82927076 | G4: =Tab1.1_2013_GDP_P_Current!H4/'Tab 1.2_2013_GDP_P_Constant'!G4*100 -> 78.7314449 | H4: =Tab1.1_2013_GDP_P_Current!I4/'Tab 1.2_2013_GDP_P_Constant'!H4*100 -> 82.28483544 | I4: =Tab1.1_2013_GDP_P_Current!J4/'Tab 1.2_2013_GDP_P_Constant'!I4*100 -> 86.92926381 | J4: =Tab1.1_2013_GDP_P_Current!K4/'Tab 1.2_2013_GDP_P_Constant'!J4*100 -> 90.90377711 | K4: =Tab1.1_2013_GDP_P_Current!L4/'Tab 1.2_2013_GDP_P_Constant'!K4*100 -> 94.39917306 | L4: =Tab1.1_2013_GDP_P_Current!M4/'Tab 1.2_2013_GDP_P_Constant'!L4*100 -> 100 | M4: =Tab1.1_2013_GDP_P_Current!N4/'Tab 1.2_2013_GDP_P_Constant'!M4*100 -> 105.2117233 | N4: =Tab1.1_2013_GDP_P_Current!O4/'Tab 1.2_2013_GDP_P_Constant'!N4*100 -> 115.4386839 | O4: =Tab1.1_2013_GDP_P_Current!P4/'Tab 1.2_2013_GDP_P_Constant'!O4*100 -> 124.4667078 | P4: =Tab1.1_2013_GDP_P_Current!Q4/'Tab 1.2_2013_GDP_P_Constant'!P4*100 -> 129.347942 | Q4: =Tab1.1_2013_GDP_P_Current!R4/'Tab 1.2_2013_GDP_P_Constant'!Q4*100 -> 136.0774171
A5: A | B5: Agriculture, forestry and fishing | C5: =Tab1.1_2013_GDP_P_Current!D5/'Tab 1.2_2013_GDP_P_Constant'!C5*100 -> 68.60506737 | D5: =Tab1.1_2013_GDP_P_Current!E5/'Tab 1.2_2013_GDP_P_Constant'!D5*100 -> 73.15726787 | E5: =Tab1.1_2013_GDP_P_Current!F5/'Tab 1.2_2013_GDP_P_Constant'!E5*100 -> 70.56491277 | F5: =Tab1.1_2013_GDP_P_Current!G5/'Tab 1.2_2013_GDP_P_Constant'!F5*100 -> 72.95316745 | G5: =Tab1.1_2013_GDP_P_Current!H5/'Tab 1.2_2013_GDP_P_Constant'!G5*100 -> 76.63178778 | H5: =Tab1.1_2013_GDP_P_Current!I5/'Tab 1.2_2013_GDP_P_Constant'!H5*100 -> 79.22840235 | I5: =Tab1.1_2013_GDP_P_Current!J5/'Tab 1.2_2013_GDP_P_Constant'!I5*100 -> 87.92602635 | J5: =Tab1.1_2013_GDP_P_Current!K5/'Tab 1.2_2013_GDP_P_Constant'!J5*100 -> 90.35296043 | K5: =Tab1.1_2013_GDP_P_Current!L5/'Tab 1.2_2013_GDP_P_Constant'!K5*100 -> 93.36401529 | L5: =Tab1.1_2013_GDP_P_Current!M5/'Tab 1.2_2013_GDP_P_Constant'!L5*100 -> 100 | M5: =Tab1.1_2013_GDP_P_Current!N5/'Tab 1.2_2013_GDP_P_Constant'!M5*100 -> 101.4022631 | N5: =Tab1.1_2013_GDP_P_Current!O5/'Tab 1.2_2013_GDP_P_Constant'!N5*100 -> 110.1349098 | O5: =Tab1.1_2013_GDP_P_Current!P5/'Tab 1.2_2013_GDP_P_Constant'!O5*100 -> 119.4418315 | P5: =Tab1.1_2013_GDP_P_Current!Q5/'Tab 1.2_2013_GDP_P_Constant'!P5*100 -> 130.7212198 | Q5: =Tab1.1_2013_GDP_P_Current!R5/'Tab 1.2_2013_GDP_P_Constant'!Q5*100 -> 137.3622616
B6: Crop | C6: =Tab1.1_2013_GDP_P_Current!D6/'Tab 1.2_2013_GDP_P_Constant'!C6*100 -> 66.35132525 | D6: =Tab1.1_2013_GDP_P_Current!E6/'Tab 1.2_2013_GDP_P_Constant'!D6*100 -> 72.40748923 | E6: =Tab1.1_2013_GDP_P_Current!F6/'Tab 1.2_2013_GDP_P_Constant'!E6*100 -> 66.70249711 | F6: =Tab1.1_2013_GDP_P_Current!G6/'Tab 1.2_2013_GDP_P_Constant'!F6*100 -> 66.84143821 | G6: =Tab1.1_2013_GDP_P_Current!H6/'Tab 1.2_2013_GDP_P_Constant'!G6*100 -> 73.4445693 | H6: =Tab1.1_2013_GDP_P_Current!I6/'Tab 1.2_2013_GDP_P_Constant'!H6*100 -> 76.32755066 | I6: =Tab1.1_2013_GDP_P_Current!J6/'Tab 1.2_2013_GDP_P_Constant'!I6*100 -> 87.87161423 | J6: =Tab1.1_2013_GDP_P_Current!K6/'Tab 1.2_2013_GDP_P_Constant'!J6*100 -> 89.59934155 | K6: =Tab1.1_2013_GDP_P_Current!L6/'Tab 1.2_2013_GDP_P_Constant'!K6*100 -> 93.43275518 | L6: =Tab1.1_2013_GDP_P_Current!M6/'Tab 1.2_2013_GDP_P_Constant'!L6*100 -> 100 | M6: =Tab1.1_2013_GDP_P_Current!N6/'Tab 1.2_2013_GDP_P_Constant'!M6*100 -> 97.78384712 | N6: =Tab1.1_2013_GDP_P_Current!O6/'Tab 1.2_2013_GDP_P_Constant'!N6*100 -> 103.4615798 | O6: =Tab1.1_2013_GDP_P_Current!P6/'Tab 1.2_2013_GDP_P_Constant'!O6*100 -> 108.5841278 | P6: =Tab1.1_2013_GDP_P_Current!Q6/'Tab 1.2_2013_GDP_P_Constant'!P6*100 -> 121.9268582 | Q6: =Tab1.1_2013_GDP_P_Current!R6/'Tab 1.2_2013_GDP_P_Constant'!Q6*100 -> 125.9585107
B7: Livestock | C7: =Tab1.1_2013_GDP_P_Current!D7/'Tab 1.2_2013_GDP_P_Constant'!C7*100 -> 68.02547072 | D7: =Tab1.1_2013_GDP_P_Current!E7/'Tab 1.2_2013_GDP_P_Constant'!D7*100 -> 68.57830978 | E7: =Tab1.1_2013_GDP_P_Current!F7/'Tab 1.2_2013_GDP_P_Constant'!E7*100 -> 72.52453144 | F7: =Tab1.1_2013_GDP_P_Current!G7/'Tab 1.2_2013_GDP_P_Constant'!F7*100 -> 76.0894201 | G7: =Tab1.1_2013_GDP_P_Current!H7/'Tab 1.2_2013_GDP_P_Constant'!G7*100 -> 78.0963809 | H7: =Tab1.1_2013_GDP_P_Current!I7/'Tab 1.2_2013_GDP_P_Constant'!H7*100 -> 82.78402497 | I7: =Tab1.1_2013_GDP_P_Current!J7/'Tab 1.2_2013_GDP_P_Constant'!I7*100 -> 84.98071476 | J7: =Tab1.1_2013_GDP_P_Current!K7/'Tab 1.2_2013_GDP_P_Constant'!J7*100 -> 87.45974934 | K7: =Tab1.1_2013_GDP_P_Current!L7/'Tab 1.2_2013_GDP_P_Constant'!K7*100 -> 89.98527992 | L7: =Tab1.1_2013_GDP_P_Current!M7/'Tab 1.2_2013_GDP_P_Constant'!L7*100 -> 100 | M7: =Tab1.1_2013_GDP_P_Current!N7/'Tab 1.2_2013_GDP_P_Constant'!M7*100 -> 111.7619536 | N7: =Tab1.1_2013_GDP_P_Current!O7/'Tab 1.2_2013_GDP_P_Constant'!N7*100 -> 133.7714809 | O7: =Tab1.1_2013_GDP_P_Current!P7/'Tab 1.2_2013_GDP_P_Constant'!O7*100 -> 151.3214013 | P7: =Tab1.1_2013_GDP_P_Current!Q7/'Tab 1.2_2013_GDP_P_Constant'!P7*100 -> 168.6405183 | Q7: =Tab1.1_2013_GDP_P_Current!R7/'Tab 1.2_2013_GDP_P_Constant'!Q7*100 -> 181.2649212
B8: Forestry and logging | C8: =Tab1.1_2013_GDP_P_Current!D8/'Tab 1.2_2013_GDP_P_Constant'!C8*100 -> 89.56477874 | D8: =Tab1.1_2013_GDP_P_Current!E8/'Tab 1.2_2013_GDP_P_Constant'!D8*100 -> 91.20059254 | E8: =Tab1.1_2013_GDP_P_Current!F8/'Tab 1.2_2013_GDP_P_Constant'!E8*100 -> 90.24291959 | F8: =Tab1.1_2013_GDP_P_Current!G8/'Tab 1.2_2013_GDP_P_Constant'!F8*100 -> 94.87007704 | G8: =Tab1.1_2013_GDP_P_Current!H8/'Tab 1.2_2013_GDP_P_Constant'!G8*100 -> 95.25535463 | H8: =Tab1.1_2013_GDP_P_Current!I8/'Tab 1.2_2013_GDP_P_Constant'!H8*100 -> 93.80663502 | I8: =Tab1.1_2013_GDP_P_Current!J8/'Tab 1.2_2013_GDP_P_Constant'!I8*100 -> 97.9840025 | J8: =Tab1.1_2013_GDP_P_Current!K8/'Tab 1.2_2013_GDP_P_Constant'!J8*100 -> 97.9840025 | K8: =Tab1.1_2013_GDP_P_Current!L8/'Tab 1.2_2013_GDP_P_Constant'!K8*100 -> 97.9840025 | L8: =Tab1.1_2013_GDP_P_Current!M8/'Tab 1.2_2013_GDP_P_Constant'!L8*100 -> 100 | M8: =Tab1.1_2013_GDP_P_Current!N8/'Tab 1.2_2013_GDP_P_Constant'!M8*100 -> 105.1899687 | N8: =Tab1.1_2013_GDP_P_Current!O8/'Tab 1.2_2013_GDP_P_Constant'!N8*100 -> 104.8708486 | O8: =Tab1.1_2013_GDP_P_Current!P8/'Tab 1.2_2013_GDP_P_Constant'!O8*100 -> 125.8786826 | P8: =Tab1.1_2013_GDP_P_Current!Q8/'Tab 1.2_2013_GDP_P_Constant'!P8*100 -> 143.5664825 | Q8: =Tab1.1_2013_GDP_P_Current!R8/'Tab 1.2_2013_GDP_P_Constant'!Q8*100 -> 176.8851219
B9: Fishing and aquaculture | C9: =Tab1.1_2013_GDP_P_Current!D9/'Tab 1.2_2013_GDP_P_Constant'!C9*100 -> 75.45915674 | D9: =Tab1.1_2013_GDP_P_Current!E9/'Tab 1.2_2013_GDP_P_Constant'!D9*100 -> 76.94107767 | E9: =Tab1.1_2013_GDP_P_Current!F9/'Tab 1.2_2013_GDP_P_Constant'!E9*100 -> 76.82230747 | F9: =Tab1.1_2013_GDP_P_Current!G9/'Tab 1.2_2013_GDP_P_Constant'!F9*100 -> 80.56876976 | G9: =Tab1.1_2013_GDP_P_Current!H9/'Tab 1.2_2013_GDP_P_Constant'!G9*100 -> 83.36133164 | H9: =Tab1.1_2013_GDP_P_Current!I9/'Tab 1.2_2013_GDP_P_Constant'!H9*100 -> 86.49128545 | I9: =Tab1.1_2013_GDP_P_Current!J9/'Tab 1.2_2013_GDP_P_Constant'!I9*100 -> 88.83438278 | J9: =Tab1.1_2013_GDP_P_Current!K9/'Tab 1.2_2013_GDP_P_Constant'!J9*100 -> 93.82512943 | K9: =Tab1.1_2013_GDP_P_Current!L9/'Tab 1.2_2013_GDP_P_Constant'!K9*100 -> 95.4384765 | L9: =Tab1.1_2013_GDP_P_Current!M9/'Tab 1.2_2013_GDP_P_Constant'!L9*100 -> 100 | M9: =Tab1.1_2013_GDP_P_Current!N9/'Tab 1.2_2013_GDP_P_Constant'!M9*100 -> 99.47462973 | N9: =Tab1.1_2013_GDP_P_Current!O9/'Tab 1.2_2013_GDP_P_Constant'!N9*100 -> 110.2445929 | O9: =Tab1.1_2013_GDP_P_Current!P9/'Tab 1.2_2013_GDP_P_Constant'!O9*100 -> 121.5903831 | P9: =Tab1.1_2013_GDP_P_Current!Q9/'Tab 1.2_2013_GDP_P_Constant'!P9*100 -> 124.2956761 | Q9: =Tab1.1_2013_GDP_P_Current!R9/'Tab 1.2_2013_GDP_P_Constant'!Q9*100 -> 131.8612825
B10: Industry | C10: =Tab1.1_2013_GDP_P_Current!D10/'Tab 1.2_2013_GDP_P_Constant'!C10*100 -> 67.75913 | D10: =Tab1.1_2013_GDP_P_Current!E10/'Tab 1.2_2013_GDP_P_Constant'!D10*100 -> 70.42545243 | E10: =Tab1.1_2013_GDP_P_Current!F10/'Tab 1.2_2013_GDP_P_Constant'!E10*100 -> 72.00103184 | F10: =Tab1.1_2013_GDP_P_Current!G10/'Tab 1.2_2013_GDP_P_Constant'!F10*100 -> 73.99029408 | G10: =Tab1.1_2013_GDP_P_Current!H10/'Tab 1.2_2013_GDP_P_Constant'!G10*100 -> 76.4783264 | H10: =Tab1.1_2013_GDP_P_Current!I10/'Tab 1.2_2013_GDP_P_Constant'!H10*100 -> 78.56969723 | I10: =Tab1.1_2013_GDP_P_Current!J10/'Tab 1.2_2013_GDP_P_Constant'!I10*100 -> 82.22869924 | J10: =Tab1.1_2013_GDP_P_Current!K10/'Tab 1.2_2013_GDP_P_Constant'!J10*100 -> 88.56591892 | K10: =Tab1.1_2013_GDP_P_Current!L10/'Tab 1.2_2013_GDP_P_Constant'!K10*100 -> 95.60227665 | L10: =Tab1.1_2013_GDP_P_Current!M10/'Tab 1.2_2013_GDP_P_Constant'!L10*100 -> 100 | M10: =Tab1.1_2013_GDP_P_Current!N10/'Tab 1.2_2013_GDP_P_Constant'!M10*100 -> 105.1751004 | N10: =Tab1.1_2013_GDP_P_Current!O10/'Tab 1.2_2013_GDP_P_Constant'!N10*100 -> 127.0511543 | O10: =Tab1.1_2013_GDP_P_Current!P10/'Tab 1.2_2013_GDP_P_Constant'!O10*100 -> 143.0464868 | P10: =Tab1.1_2013_GDP_P_Current!Q10/'Tab 1.2_2013_GDP_P_Constant'!P10*100 -> 138.0759784 | Q10: =Tab1.1_2013_GDP_P_Current!R10/'Tab 1.2_2013_GDP_P_Constant'!Q10*100 -> 131.3436826
A11: B | B11: Mining and quarrying | C11: =Tab1.1_2013_GDP_P_Current!D11/'Tab 1.2_2013_GDP_P_Constant'!C11*100 -> 70.87566823 | D11: =Tab1.1_2013_GDP_P_Current!E11/'Tab 1.2_2013_GDP_P_Constant'!D11*100 -> 75.04482518 | E11: =Tab1.1_2013_GDP_P_Current!F11/'Tab 1.2_2013_GDP_P_Constant'!E11*100 -> 79.21398214 | F11: =Tab1.1_2013_GDP_P_Current!G11/'Tab 1.2_2013_GDP_P_Constant'!F11*100 -> 81.29856061 | G11: =Tab1.1_2013_GDP_P_Current!H11/'Tab 1.2_2013_GDP_P_Constant'!G11*100 -> 83.38313909 | H11: =Tab1.1_2013_GDP_P_Current!I11/'Tab 1.2_2013_GDP_P_Constant'!H11*100 -> 85.46771757 | I11: =Tab1.1_2013_GDP_P_Current!J11/'Tab 1.2_2013_GDP_P_Constant'!I11*100 -> 87.55229605 | J11: =Tab1.1_2013_GDP_P_Current!K11/'Tab 1.2_2013_GDP_P_Constant'!J11*100 -> 91.40459707 | K11: =Tab1.1_2013_GDP_P_Current!L11/'Tab 1.2_2013_GDP_P_Constant'!K11*100 -> 94.96676163 | L11: =Tab1.1_2013_GDP_P_Current!M11/'Tab 1.2_2013_GDP_P_Constant'!L11*100 -> 100 | M11: =Tab1.1_2013_GDP_P_Current!N11/'Tab 1.2_2013_GDP_P_Constant'!M11*100 -> 96.21103207 | N11: =Tab1.1_2013_GDP_P_Current!O11/'Tab 1.2_2013_GDP_P_Constant'!N11*100 -> 97.33371235 | O11: =Tab1.1_2013_GDP_P_Current!P11/'Tab 1.2_2013_GDP_P_Constant'!O11*100 -> 103.0018474 | P11: =Tab1.1_2013_GDP_P_Current!Q11/'Tab 1.2_2013_GDP_P_Constant'!P11*100 -> 133.2530687 | Q11: =Tab1.1_2013_GDP_P_Current!R11/'Tab 1.2_2013_GDP_P_Constant'!Q11*100 -> 110.4864143
A12: C | B12: Manufacturing | C12: =Tab1.1_2013_GDP_P_Current!D12/'Tab 1.2_2013_GDP_P_Constant'!C12*100 -> 67.45061663 | D12: =Tab1.1_2013_GDP_P_Current!E12/'Tab 1.2_2013_GDP_P_Constant'!D12*100 -> 69.87241215 | E12: =Tab1.1_2013_GDP_P_Current!F12/'Tab 1.2_2013_GDP_P_Constant'!E12*100 -> 71.28955385 | F12: =Tab1.1_2013_GDP_P_Current!G12/'Tab 1.2_2013_GDP_P_Constant'!F12*100 -> 72.31460808 | G12: =Tab1.1_2013_GDP_P_Current!H12/'Tab 1.2_2013_GDP_P_Constant'!G12*100 -> 73.74472259 | H12: =Tab1.1_2013_GDP_P_Current!I12/'Tab 1.2_2013_GDP_P_Constant'!H12*100 -> 74.17996911 | I12: =Tab1.1_2013_GDP_P_Current!J12/'Tab 1.2_2013_GDP_P_Constant'!I12*100 -> 77.87565728 | J12: =Tab1.1_2013_GDP_P_Current!K12/'Tab 1.2_2013_GDP_P_Constant'!J12*100 -> 86.83135787 | K12: =Tab1.1_2013_GDP_P_Current!L12/'Tab 1.2_2013_GDP_P_Constant'!K12*100 -> 96.99062674 | L12: =Tab1.1_2013_GDP_P_Current!M12/'Tab 1.2_2013_GDP_P_Constant'!L12*100 -> 100 | M12: =Tab1.1_2013_GDP_P_Current!N12/'Tab 1.2_2013_GDP_P_Constant'!M12*100 -> 116.5816703 | N12: =Tab1.1_2013_GDP_P_Current!O12/'Tab 1.2_2013_GDP_P_Constant'!N12*100 -> 126.4469019 | O12: =Tab1.1_2013_GDP_P_Current!P12/'Tab 1.2_2013_GDP_P_Constant'!O12*100 -> 131.552528 | P12: =Tab1.1_2013_GDP_P_Current!Q12/'Tab 1.2_2013_GDP_P_Constant'!P12*100 -> 124.4407677 | Q12: =Tab1.1_2013_GDP_P_Current!R12/'Tab 1.2_2013_GDP_P_Constant'!Q12*100 -> 137.4455786
A13: D | B13: Electricity, gas, steam and air conditioning supply | C13: =Tab1.1_2013_GDP_P_Current!D13/'Tab 1.2_2013_GDP_P_Constant'!C13*100 -> 66.27332917 | D13: =Tab1.1_2013_GDP_P_Current!E13/'Tab 1.2_2013_GDP_P_Constant'!D13*100 -> 72.4527403 | E13: =Tab1.1_2013_GDP_P_Current!F13/'Tab 1.2_2013_GDP_P_Constant'!E13*100 -> 74.88126769 | F13: =Tab1.1_2013_GDP_P_Current!G13/'Tab 1.2_2013_GDP_P_Constant'!F13*100 -> 76.33092683 | G13: =Tab1.1_2013_GDP_P_Current!H13/'Tab 1.2_2013_GDP_P_Constant'!G13*100 -> 79.59918802 | H13: =Tab1.1_2013_GDP_P_Current!I13/'Tab 1.2_2013_GDP_P_Constant'!H13*100 -> 83.07891576 | I13: =Tab1.1_2013_GDP_P_Current!J13/'Tab 1.2_2013_GDP_P_Constant'!I13*100 -> 85.15506807 | J13: =Tab1.1_2013_GDP_P_Current!K13/'Tab 1.2_2013_GDP_P_Constant'!J13*100 -> 88.77553724 | K13: =Tab1.1_2013_GDP_P_Current!L13/'Tab 1.2_2013_GDP_P_Constant'!K13*100 -> 93.54953753 | L13: =Tab1.1_2013_GDP_P_Current!M13/'Tab 1.2_2013_GDP_P_Constant'!L13*100 -> 100 | M13: =Tab1.1_2013_GDP_P_Current!N13/'Tab 1.2_2013_GDP_P_Constant'!M13*100 -> 99.67921876 | N13: =Tab1.1_2013_GDP_P_Current!O13/'Tab 1.2_2013_GDP_P_Constant'!N13*100 -> 111.5640141 | O13: =Tab1.1_2013_GDP_P_Current!P13/'Tab 1.2_2013_GDP_P_Constant'!O13*100 -> 111.608136 | P13: =Tab1.1_2013_GDP_P_Current!Q13/'Tab 1.2_2013_GDP_P_Constant'!P13*100 -> 110.3271954 | Q13: =Tab1.1_2013_GDP_P_Current!R13/'Tab 1.2_2013_GDP_P_Constant'!Q13*100 -> 195.4837589
A14: E | B14: Water supply, sewerage, waste management and remediation activities | C14: =Tab1.1_2013_GDP_P_Current!D14/'Tab 1.2_2013_GDP_P_Constant'!C14*100 -> 66.27332917 | D14: =Tab1.1_2013_GDP_P_Current!E14/'Tab 1.2_2013_GDP_P_Constant'!D14*100 -> 72.4527403 | E14: =Tab1.1_2013_GDP_P_Current!F14/'Tab 1.2_2013_GDP_P_Constant'!E14*100 -> 74.88126769 | F14: =Tab1.1_2013_GDP_P_Current!G14/'Tab 1.2_2013_GDP_P_Constant'!F14*100 -> 76.33092683 | G14: =Tab1.1_2013_GDP_P_Current!H14/'Tab 1.2_2013_GDP_P_Constant'!G14*100 -> 79.59918802 | H14: =Tab1.1_2013_GDP_P_Current!I14/'Tab 1.2_2013_GDP_P_Constant'!H14*100 -> 83.07891576 | I14: =Tab1.1_2013_GDP_P_Current!J14/'Tab 1.2_2013_GDP_P_Constant'!I14*100 -> 85.15506807 | J14: =Tab1.1_2013_GDP_P_Current!K14/'Tab 1.2_2013_GDP_P_Constant'!J14*100 -> 88.77553724 | K14: =Tab1.1_2013_GDP_P_Current!L14/'Tab 1.2_2013_GDP_P_Constant'!K14*100 -> 93.54953753 | L14: =Tab1.1_2013_GDP_P_Current!M14/'Tab 1.2_2013_GDP_P_Constant'!L14*100 -> 100 | M14: =Tab1.1_2013_GDP_P_Current!N14/'Tab 1.2_2013_GDP_P_Constant'!M14*100 -> 100 | N14: =Tab1.1_2013_GDP_P_Current!O14/'Tab 1.2_2013_GDP_P_Constant'!N14*100 -> 110.0508246 | O14: =Tab1.1_2013_GDP_P_Current!P14/'Tab 1.2_2013_GDP_P_Constant'!O14*100 -> 110.0508246 | P14: =Tab1.1_2013_GDP_P_Current!Q14/'Tab 1.2_2013_GDP_P_Constant'!P14*100 -> 110.0508246 | Q14: =Tab1.1_2013_GDP_P_Current!R14/'Tab 1.2_2013_GDP_P_Constant'!Q14*100 -> 110.0508246
A15: F | B15: Construction | C15: =Tab1.1_2013_GDP_P_Current!D15/'Tab 1.2_2013_GDP_P_Constant'!C15*100 -> 68.31008086 | D15: =Tab1.1_2013_GDP_P_Current!E15/'Tab 1.2_2013_GDP_P_Constant'!D15*100 -> 70.46738089 | E15: =Tab1.1_2013_GDP_P_Current!F15/'Tab 1.2_2013_GDP_P_Constant'!E15*100 -> 71.9160409 | F15: =Tab1.1_2013_GDP_P_Current!G15/'Tab 1.2_2013_GDP_P_Constant'!F15*100 -> 75.79636606 | G15: =Tab1.1_2013_GDP_P_Current!H15/'Tab 1.2_2013_GDP_P_Constant'!G15*100 -> 79.14309632 | H15: =Tab1.1_2013_GDP_P_Current!I15/'Tab 1.2_2013_GDP_P_Constant'!H15*100 -> 82.78367876 | I15: =Tab1.1_2013_GDP_P_Current!J15/'Tab 1.2_2013_GDP_P_Constant'!I15*100 -> 86.92286269 | J15: =Tab1.1_2013_GDP_P_Current!K15/'Tab 1.2_2013_GDP_P_Constant'!J15*100 -> 90.74746865 | K15: =Tab1.1_2013_GDP_P_Current!L15/'Tab 1.2_2013_GDP_P_Constant'!K15*100 -> 94.60815817 | L15: =Tab1.1_2013_GDP_P_Current!M15/'Tab 1.2_2013_GDP_P_Constant'!L15*100 -> 100 | M15: =Tab1.1_2013_GDP_P_Current!N15/'Tab 1.2_2013_GDP_P_Constant'!M15*100 -> 94.68340532 | N15: =Tab1.1_2013_GDP_P_Current!O15/'Tab 1.2_2013_GDP_P_Constant'!N15*100 -> 133.5056181 | O15: =Tab1.1_2013_GDP_P_Current!P15/'Tab 1.2_2013_GDP_P_Constant'!O15*100 -> 156.4528917 | P15: =Tab1.1_2013_GDP_P_Current!Q15/'Tab 1.2_2013_GDP_P_Constant'!P15*100 -> 149.641171 | Q15: =Tab1.1_2013_GDP_P_Current!R15/'Tab 1.2_2013_GDP_P_Constant'!Q15*100 -> 124.2752506
B16: Services | C16: =Tab1.1_2013_GDP_P_Current!D16/'Tab 1.2_2013_GDP_P_Constant'!C16*100 -> 71.15060488 | D16: =Tab1.1_2013_GDP_P_Current!E16/'Tab 1.2_2013_GDP_P_Constant'!D16*100 -> 73.58531218 | E16: =Tab1.1_2013_GDP_P_Current!F16/'Tab 1.2_2013_GDP_P_Constant'!E16*100 -> 74.91801819 | F16: =Tab1.1_2013_GDP_P_Current!G16/'Tab 1.2_2013_GDP_P_Constant'!F16*100 -> 77.98635551 | G16: =Tab1.1_2013_GDP_P_Current!H16/'Tab 1.2_2013_GDP_P_Constant'!G16*100 -> 80.83661742 | H16: =Tab1.1_2013_GDP_P_Current!I16/'Tab 1.2_2013_GDP_P_Constant'!H16*100 -> 84.00909939 | I16: =Tab1.1_2013_GDP_P_Current!J16/'Tab 1.2_2013_GDP_P_Constant'!I16*100 -> 88.21584941 | J16: =Tab1.1_2013_GDP_P_Current!K16/'Tab 1.2_2013_GDP_P_Constant'!J16*100 -> 92.04356746 | K16: =Tab1.1_2013_GDP_P_Current!L16/'Tab 1.2_2013_GDP_P_Constant'!K16*100 -> 95.43341729 | L16: =Tab1.1_2013_GDP_P_Current!M16/'Tab 1.2_2013_GDP_P_Constant'!L16*100 -> 100 | M16: =Tab1.1_2013_GDP_P_Current!N16/'Tab 1.2_2013_GDP_P_Constant'!M16*100 -> 104.7765694 | N16: =Tab1.1_2013_GDP_P_Current!O16/'Tab 1.2_2013_GDP_P_Constant'!N16*100 -> 110.2527283 | O16: =Tab1.1_2013_GDP_P_Current!P16/'Tab 1.2_2013_GDP_P_Constant'!O16*100 -> 116.3856512 | P16: =Tab1.1_2013_GDP_P_Current!Q16/'Tab 1.2_2013_GDP_P_Constant'!P16*100 -> 124.2295154 | Q16: =Tab1.1_2013_GDP_P_Current!R16/'Tab 1.2_2013_GDP_P_Constant'!Q16*100 -> 134.0207538
A17: G | B17: Wholesale and retail trade; repair of motors and motocycles | C17: =Tab1.1_2013_GDP_P_Current!D17/'Tab 1.2_2013_GDP_P_Constant'!C17*100 -> 69.26183208 | D17: =Tab1.1_2013_GDP_P_Current!E17/'Tab 1.2_2013_GDP_P_Constant'!D17*100 -> 71.19328734 | E17: =Tab1.1_2013_GDP_P_Current!F17/'Tab 1.2_2013_GDP_P_Constant'!E17*100 -> 72.65737973 | F17: =Tab1.1_2013_GDP_P_Current!G17/'Tab 1.2_2013_GDP_P_Constant'!F17*100 -> 76.55845235 | G17: =Tab1.1_2013_GDP_P_Current!H17/'Tab 1.2_2013_GDP_P_Constant'!G17*100 -> 79.96044577 | H17: =Tab1.1_2013_GDP_P_Current!I17/'Tab 1.2_2013_GDP_P_Constant'!H17*100 -> 83.607847 | I17: =Tab1.1_2013_GDP_P_Current!J17/'Tab 1.2_2013_GDP_P_Constant'!I17*100 -> 88.05160407 | J17: =Tab1.1_2013_GDP_P_Current!K17/'Tab 1.2_2013_GDP_P_Constant'!J17*100 -> 91.92587465 | K17: =Tab1.1_2013_GDP_P_Current!L17/'Tab 1.2_2013_GDP_P_Constant'!K17*100 -> 95.51098376 | L17: =Tab1.1_2013_GDP_P_Current!M17/'Tab 1.2_2013_GDP_P_Constant'!L17*100 -> 100 | M17: =Tab1.1_2013_GDP_P_Current!N17/'Tab 1.2_2013_GDP_P_Constant'!M17*100 -> 105.4957766 | N17: =Tab1.1_2013_GDP_P_Current!O17/'Tab 1.2_2013_GDP_P_Constant'!N17*100 -> 112.7824095 | O17: =Tab1.1_2013_GDP_P_Current!P17/'Tab 1.2_2013_GDP_P_Constant'!O17*100 -> 121.252668 | P17: =Tab1.1_2013_GDP_P_Current!Q17/'Tab 1.2_2013_GDP_P_Constant'!P17*100 -> 130.6209674 | Q17: =Tab1.1_2013_GDP_P_Current!R17/'Tab 1.2_2013_GDP_P_Constant'!Q17*100 -> 138.6584569
A18: H | B18: Transport and storage | C18: =Tab1.1_2013_GDP_P_Current!D18/'Tab 1.2_2013_GDP_P_Constant'!C18*100 -> 53.2545647 | D18: =Tab1.1_2013_GDP_P_Current!E18/'Tab 1.2_2013_GDP_P_Constant'!D18*100 -> 60.99793911 | E18: =Tab1.1_2013_GDP_P_Current!F18/'Tab 1.2_2013_GDP_P_Constant'!E18*100 -> 60.75113633 | F18: =Tab1.1_2013_GDP_P_Current!G18/'Tab 1.2_2013_GDP_P_Constant'!F18*100 -> 61.02733272 | G18: =Tab1.1_2013_GDP_P_Current!H18/'Tab 1.2_2013_GDP_P_Constant'!G18*100 -> 62.84305187 | H18: =Tab1.1_2013_GDP_P_Current!I18/'Tab 1.2_2013_GDP_P_Constant'!H18*100 -> 64.09186862 | I18: =Tab1.1_2013_GDP_P_Current!J18/'Tab 1.2_2013_GDP_P_Constant'!I18*100 -> 72.62292459 | J18: =Tab1.1_2013_GDP_P_Current!K18/'Tab 1.2_2013_GDP_P_Constant'!J18*100 -> 81.79166339 | K18: =Tab1.1_2013_GDP_P_Current!L18/'Tab 1.2_2013_GDP_P_Constant'!K18*100 -> 88.67289005 | L18: =Tab1.1_2013_GDP_P_Current!M18/'Tab 1.2_2013_GDP_P_Constant'!L18*100 -> 100 | M18: =Tab1.1_2013_GDP_P_Current!N18/'Tab 1.2_2013_GDP_P_Constant'!M18*100 -> 110.3571363 | N18: =Tab1.1_2013_GDP_P_Current!O18/'Tab 1.2_2013_GDP_P_Constant'!N18*100 -> 116.2245956 | O18: =Tab1.1_2013_GDP_P_Current!P18/'Tab 1.2_2013_GDP_P_Constant'!O18*100 -> 115.3217716 | P18: =Tab1.1_2013_GDP_P_Current!Q18/'Tab 1.2_2013_GDP_P_Constant'!P18*100 -> 117.2724998 | Q18: =Tab1.1_2013_GDP_P_Current!R18/'Tab 1.2_2013_GDP_P_Constant'!Q18*100 -> 120.0272877
A19: I | B19: Accommodation and food service activities | C19: =Tab1.1_2013_GDP_P_Current!D19/'Tab 1.2_2013_GDP_P_Constant'!C19*100 -> 66.11629168 | D19: =Tab1.1_2013_GDP_P_Current!E19/'Tab 1.2_2013_GDP_P_Constant'!D19*100 -> 69.3616441 | E19: =Tab1.1_2013_GDP_P_Current!F19/'Tab 1.2_2013_GDP_P_Constant'!E19*100 -> 68.66918937 | F19: =Tab1.1_2013_GDP_P_Current!G19/'Tab 1.2_2013_GDP_P_Constant'!F19*100 -> 70.47679081 | G19: =Tab1.1_2013_GDP_P_Current!H19/'Tab 1.2_2013_GDP_P_Constant'!G19*100 -> 73.83414708 | H19: =Tab1.1_2013_GDP_P_Current!I19/'Tab 1.2_2013_GDP_P_Constant'!H19*100 -> 77.4089543 | I19: =Tab1.1_2013_GDP_P_Current!J19/'Tab 1.2_2013_GDP_P_Constant'!I19*100 -> 82.40553321 | J19: =Tab1.1_2013_GDP_P_Current!K19/'Tab 1.2_2013_GDP_P_Constant'!J19*100 -> 88.85715244 | K19: =Tab1.1_2013_GDP_P_Current!L19/'Tab 1.2_2013_GDP_P_Constant'!K19*100 -> 93.59937528 | L19: =Tab1.1_2013_GDP_P_Current!M19/'Tab 1.2_2013_GDP_P_Constant'!L19*100 -> 100 | M19: =Tab1.1_2013_GDP_P_Current!N19/'Tab 1.2_2013_GDP_P_Constant'!M19*100 -> 104.6833712 | N19: =Tab1.1_2013_GDP_P_Current!O19/'Tab 1.2_2013_GDP_P_Constant'!N19*100 -> 112.6997042 | O19: =Tab1.1_2013_GDP_P_Current!P19/'Tab 1.2_2013_GDP_P_Constant'!O19*100 -> 122.0090125 | P19: =Tab1.1_2013_GDP_P_Current!Q19/'Tab 1.2_2013_GDP_P_Constant'!P19*100 -> 132.5295023 | Q19: =Tab1.1_2013_GDP_P_Current!R19/'Tab 1.2_2013_GDP_P_Constant'!Q19*100 -> 165.8647661
A20: J | B20: Information and Communication | C20: =Tab1.1_2013_GDP_P_Current!D20/'Tab 1.2_2013_GDP_P_Constant'!C20*100 -> 86.28955807 | D20: =Tab1.1_2013_GDP_P_Current!E20/'Tab 1.2_2013_GDP_P_Constant'!D20*100 -> 86.71734224 | E20: =Tab1.1_2013_GDP_P_Current!F20/'Tab 1.2_2013_GDP_P_Constant'!E20*100 -> 86.37398871 | F20: =Tab1.1_2013_GDP_P_Current!G20/'Tab 1.2_2013_GDP_P_Constant'!F20*100 -> 87.08201736 | G20: =Tab1.1_2013_GDP_P_Current!H20/'Tab 1.2_2013_GDP_P_Constant'!G20*100 -> 87.60788723 | H20: =Tab1.1_2013_GDP_P_Current!I20/'Tab 1.2_2013_GDP_P_Constant'!H20*100 -> 89.4213705 | I20: =Tab1.1_2013_GDP_P_Current!J20/'Tab 1.2_2013_GDP_P_Constant'!I20*100 -> 91.68426607 | J20: =Tab1.1_2013_GDP_P_Current!K20/'Tab 1.2_2013_GDP_P_Constant'!J20*100 -> 94.05608096 | K20: =Tab1.1_2013_GDP_P_Current!L20/'Tab 1.2_2013_GDP_P_Constant'!K20*100 -> 96.80204596 | L20: =Tab1.1_2013_GDP_P_Current!M20/'Tab 1.2_2013_GDP_P_Constant'!L20*100 -> 100 | M20: =Tab1.1_2013_GDP_P_Current!N20/'Tab 1.2_2013_GDP_P_Constant'!M20*100 -> 98.85089757 | N20: =Tab1.1_2013_GDP_P_Current!O20/'Tab 1.2_2013_GDP_P_Constant'!N20*100 -> 99.70461492 | O20: =Tab1.1_2013_GDP_P_Current!P20/'Tab 1.2_2013_GDP_P_Constant'!O20*100 -> 100.3903082 | P20: =Tab1.1_2013_GDP_P_Current!Q20/'Tab 1.2_2013_GDP_P_Constant'!P20*100 -> 99.95349971 | Q20: =Tab1.1_2013_GDP_P_Current!R20/'Tab 1.2_2013_GDP_P_Constant'!Q20*100 -> 99.14805806
A21: K | B21: Financial and insurance activities | C21: =Tab1.1_2013_GDP_P_Current!D21/'Tab 1.2_2013_GDP_P_Constant'!C21*100 -> 68.04312307 | D21: =Tab1.1_2013_GDP_P_Current!E21/'Tab 1.2_2013_GDP_P_Constant'!D21*100 -> 70.19199231 | E21: =Tab1.1_2013_GDP_P_Current!F21/'Tab 1.2_2013_GDP_P_Constant'!E21*100 -> 71.63549303 | F21: =Tab1.1_2013_GDP_P_Current!G21/'Tab 1.2_2013_GDP_P_Constant'!F21*100 -> 75.48169918 | G21: =Tab1.1_2013_GDP_P_Current!H21/'Tab 1.2_2013_GDP_P_Constant'!G21*100 -> 78.83584541 | H21: =Tab1.1_2013_GDP_P_Current!I21/'Tab 1.2_2013_GDP_P_Constant'!H21*100 -> 82.43194792 | I21: =Tab1.1_2013_GDP_P_Current!J21/'Tab 1.2_2013_GDP_P_Constant'!I21*100 -> 86.59421839 | J21: =Tab1.1_2013_GDP_P_Current!K21/'Tab 1.2_2013_GDP_P_Constant'!J21*100 -> 90.74746865 | K21: =Tab1.1_2013_GDP_P_Current!L21/'Tab 1.2_2013_GDP_P_Constant'!K21*100 -> 94.60815817 | L21: =Tab1.1_2013_GDP_P_Current!M21/'Tab 1.2_2013_GDP_P_Constant'!L21*100 -> 100 | M21: =Tab1.1_2013_GDP_P_Current!N21/'Tab 1.2_2013_GDP_P_Constant'!M21*100 -> 107.8294677 | N21: =Tab1.1_2013_GDP_P_Current!O21/'Tab 1.2_2013_GDP_P_Constant'!N21*100 -> 99.25714357 | O21: =Tab1.1_2013_GDP_P_Current!P21/'Tab 1.2_2013_GDP_P_Constant'!O21*100 -> 98.29321141 | P21: =Tab1.1_2013_GDP_P_Current!Q21/'Tab 1.2_2013_GDP_P_Constant'!P21*100 -> 118.2909363 | Q21: =Tab1.1_2013_GDP_P_Current!R21/'Tab 1.2_2013_GDP_P_Constant'!Q21*100 -> 194.7093528
A22: L | B22: Real estate activities | C22: =Tab1.1_2013_GDP_P_Current!D22/'Tab 1.2_2013_GDP_P_Constant'!C22*100 -> 80.92868102 | D22: =Tab1.1_2013_GDP_P_Current!E22/'Tab 1.2_2013_GDP_P_Constant'!D22*100 -> 83.56115794 | E22: =Tab1.1_2013_GDP_P_Current!F22/'Tab 1.2_2013_GDP_P_Constant'!E22*100 -> 89.02154912 | F22: =Tab1.1_2013_GDP_P_Current!G22/'Tab 1.2_2013_GDP_P_Constant'!F22*100 -> 91.82977436 | G22: =Tab1.1_2013_GDP_P_Current!H22/'Tab 1.2_2013_GDP_P_Constant'!G22*100 -> 93.05179744 | H22: =Tab1.1_2013_GDP_P_Current!I22/'Tab 1.2_2013_GDP_P_Constant'!H22*100 -> 96.19992313 | I22: =Tab1.1_2013_GDP_P_Current!J22/'Tab 1.2_2013_GDP_P_Constant'!I22*100 -> 97.39382808 | J22: =Tab1.1_2013_GDP_P_Current!K22/'Tab 1.2_2013_GDP_P_Constant'!J22*100 -> 97.93493325 | K22: =Tab1.1_2013_GDP_P_Current!L22/'Tab 1.2_2013_GDP_P_Constant'!K22*100 -> 97.94526576 | L22: =Tab1.1_2013_GDP_P_Current!M22/'Tab 1.2_2013_GDP_P_Constant'!L22*100 -> 100 | M22: =Tab1.1_2013_GDP_P_Current!N22/'Tab 1.2_2013_GDP_P_Constant'!M22*100 -> 92.77944768 | N22: =Tab1.1_2013_GDP_P_Current!O22/'Tab 1.2_2013_GDP_P_Constant'!N22*100 -> 102.6761411 | O22: =Tab1.1_2013_GDP_P_Current!P22/'Tab 1.2_2013_GDP_P_Constant'!O22*100 -> 106.7073672 | P22: =Tab1.1_2013_GDP_P_Current!Q22/'Tab 1.2_2013_GDP_P_Constant'!P22*100 -> 110.759291 | Q22: =Tab1.1_2013_GDP_P_Current!R22/'Tab 1.2_2013_GDP_P_Constant'!Q22*100 -> 113.7997362
A23: M | B23: Professional, scientific and technical activities | C23: =Tab1.1_2013_GDP_P_Current!D23/'Tab 1.2_2013_GDP_P_Constant'!C23*100 -> 80.92868102 | D23: =Tab1.1_2013_GDP_P_Current!E23/'Tab 1.2_2013_GDP_P_Constant'!D23*100 -> 83.56115794 | E23: =Tab1.1_2013_GDP_P_Current!F23/'Tab 1.2_2013_GDP_P_Constant'!E23*100 -> 89.02154912 | F23: =Tab1.1_2013_GDP_P_Current!G23/'Tab 1.2_2013_GDP_P_Constant'!F23*100 -> 91.82977436 | G23: =Tab1.1_2013_GDP_P_Current!H23/'Tab 1.2_2013_GDP_P_Constant'!G23*100 -> 93.05179744 | H23: =Tab1.1_2013_GDP_P_Current!I23/'Tab 1.2_2013_GDP_P_Constant'!H23*100 -> 96.19992313 | I23: =Tab1.1_2013_GDP_P_Current!J23/'Tab 1.2_2013_GDP_P_Constant'!I23*100 -> 97.39382808 | J23: =Tab1.1_2013_GDP_P_Current!K23/'Tab 1.2_2013_GDP_P_Constant'!J23*100 -> 97.93493325 | K23: =Tab1.1_2013_GDP_P_Current!L23/'Tab 1.2_2013_GDP_P_Constant'!K23*100 -> 97.94526576 | L23: =Tab1.1_2013_GDP_P_Current!M23/'Tab 1.2_2013_GDP_P_Constant'!L23*100 -> 100 | M23: =Tab1.1_2013_GDP_P_Current!N23/'Tab 1.2_2013_GDP_P_Constant'!M23*100 -> 103.8551137 | N23: =Tab1.1_2013_GDP_P_Current!O23/'Tab 1.2_2013_GDP_P_Constant'!N23*100 -> 108.6384152 | O23: =Tab1.1_2013_GDP_P_Current!P23/'Tab 1.2_2013_GDP_P_Constant'!O23*100 -> 114.9837113 | P23: =Tab1.1_2013_GDP_P_Current!Q23/'Tab 1.2_2013_GDP_P_Constant'!P23*100 -> 122.2552924 | Q23: =Tab1.1_2013_GDP_P_Current!R23/'Tab 1.2_2013_GDP_P_Constant'!Q23*100 -> 129.5252685
A24: N | B24: Administrative and support service activities | C24: =Tab1.1_2013_GDP_P_Current!D24/'Tab 1.2_2013_GDP_P_Constant'!C24*100 -> 80.92868102 | D24: =Tab1.1_2013_GDP_P_Current!E24/'Tab 1.2_2013_GDP_P_Constant'!D24*100 -> 83.56115794 | E24: =Tab1.1_2013_GDP_P_Current!F24/'Tab 1.2_2013_GDP_P_Constant'!E24*100 -> 89.02154912 | F24: =Tab1.1_2013_GDP_P_Current!G24/'Tab 1.2_2013_GDP_P_Constant'!F24*100 -> 91.82977436 | G24: =Tab1.1_2013_GDP_P_Current!H24/'Tab 1.2_2013_GDP_P_Constant'!G24*100 -> 93.05179744 | H24: =Tab1.1_2013_GDP_P_Current!I24/'Tab 1.2_2013_GDP_P_Constant'!H24*100 -> 96.19992313 | I24: =Tab1.1_2013_GDP_P_Current!J24/'Tab 1.2_2013_GDP_P_Constant'!I24*100 -> 97.39382808 | J24: =Tab1.1_2013_GDP_P_Current!K24/'Tab 1.2_2013_GDP_P_Constant'!J24*100 -> 97.93493325 | K24: =Tab1.1_2013_GDP_P_Current!L24/'Tab 1.2_2013_GDP_P_Constant'!K24*100 -> 97.94526576 | L24: =Tab1.1_2013_GDP_P_Current!M24/'Tab 1.2_2013_GDP_P_Constant'!L24*100 -> 100 | M24: =Tab1.1_2013_GDP_P_Current!N24/'Tab 1.2_2013_GDP_P_Constant'!M24*100 -> 102.8195624 | N24: =Tab1.1_2013_GDP_P_Current!O24/'Tab 1.2_2013_GDP_P_Constant'!N24*100 -> 105.0766832 | O24: =Tab1.1_2013_GDP_P_Current!P24/'Tab 1.2_2013_GDP_P_Constant'!O24*100 -> 114.2810361 | P24: =Tab1.1_2013_GDP_P_Current!Q24/'Tab 1.2_2013_GDP_P_Constant'!P24*100 -> 128.3680736 | Q24: =Tab1.1_2013_GDP_P_Current!R24/'Tab 1.2_2013_GDP_P_Constant'!Q24*100 -> 130.0020128
A25: O | B25: Public administration and defence; compulsory social security | C25: =Tab1.1_2013_GDP_P_Current!D25/'Tab 1.2_2013_GDP_P_Constant'!C25*100 -> 68.04312307 | D25: =Tab1.1_2013_GDP_P_Current!E25/'Tab 1.2_2013_GDP_P_Constant'!D25*100 -> 70.19199231 | E25: =Tab1.1_2013_GDP_P_Current!F25/'Tab 1.2_2013_GDP_P_Constant'!E25*100 -> 71.63549303 | F25: =Tab1.1_2013_GDP_P_Current!G25/'Tab 1.2_2013_GDP_P_Constant'!F25*100 -> 75.48169918 | G25: =Tab1.1_2013_GDP_P_Current!H25/'Tab 1.2_2013_GDP_P_Constant'!G25*100 -> 78.83584541 | H25: =Tab1.1_2013_GDP_P_Current!I25/'Tab 1.2_2013_GDP_P_Constant'!H25*100 -> 82.4342436 | I25: =Tab1.1_2013_GDP_P_Current!J25/'Tab 1.2_2013_GDP_P_Constant'!I25*100 -> 86.59421839 | J25: =Tab1.1_2013_GDP_P_Current!K25/'Tab 1.2_2013_GDP_P_Constant'!J25*100 -> 90.74746865 | K25: =Tab1.1_2013_GDP_P_Current!L25/'Tab 1.2_2013_GDP_P_Constant'!K25*100 -> 94.60815817 | L25: =Tab1.1_2013_GDP_P_Current!M25/'Tab 1.2_2013_GDP_P_Constant'!L25*100 -> 100 | M25: =Tab1.1_2013_GDP_P_Current!N25/'Tab 1.2_2013_GDP_P_Constant'!M25*100 -> 105.9479994 | N25: =Tab1.1_2013_GDP_P_Current!O25/'Tab 1.2_2013_GDP_P_Constant'!N25*100 -> 113.1614212 | O25: =Tab1.1_2013_GDP_P_Current!P25/'Tab 1.2_2013_GDP_P_Constant'!O25*100 -> 121.3416257 | P25: =Tab1.1_2013_GDP_P_Current!Q25/'Tab 1.2_2013_GDP_P_Constant'!P25*100 -> 131.0904422 | Q25: =Tab1.1_2013_GDP_P_Current!R25/'Tab 1.2_2013_GDP_P_Constant'!Q25*100 -> 139.6388083
A26: P | B26: Education | C26: =Tab1.1_2013_GDP_P_Current!D26/'Tab 1.2_2013_GDP_P_Constant'!C26*100 -> 93.29945136 | D26: =Tab1.1_2013_GDP_P_Current!E26/'Tab 1.2_2013_GDP_P_Constant'!D26*100 -> 96.22547542 | E26: =Tab1.1_2013_GDP_P_Current!F26/'Tab 1.2_2013_GDP_P_Constant'!E26*100 -> 94.89136864 | F26: =Tab1.1_2013_GDP_P_Current!G26/'Tab 1.2_2013_GDP_P_Constant'!F26*100 -> 94.93507127 | G26: =Tab1.1_2013_GDP_P_Current!H26/'Tab 1.2_2013_GDP_P_Constant'!G26*100 -> 95.05987158 | H26: =Tab1.1_2013_GDP_P_Current!I26/'Tab 1.2_2013_GDP_P_Constant'!H26*100 -> 95.6648952 | I26: =Tab1.1_2013_GDP_P_Current!J26/'Tab 1.2_2013_GDP_P_Constant'!I26*100 -> 96.07099111 | J26: =Tab1.1_2013_GDP_P_Current!K26/'Tab 1.2_2013_GDP_P_Constant'!J26*100 -> 98.63988329 | K26: =Tab1.1_2013_GDP_P_Current!L26/'Tab 1.2_2013_GDP_P_Constant'!K26*100 -> 99.52132382 | L26: =Tab1.1_2013_GDP_P_Current!M26/'Tab 1.2_2013_GDP_P_Constant'!L26*100 -> 100 | M26: =Tab1.1_2013_GDP_P_Current!N26/'Tab 1.2_2013_GDP_P_Constant'!M26*100 -> 99.86700671 | N26: =Tab1.1_2013_GDP_P_Current!O26/'Tab 1.2_2013_GDP_P_Constant'!N26*100 -> 100.7344421 | O26: =Tab1.1_2013_GDP_P_Current!P26/'Tab 1.2_2013_GDP_P_Constant'!O26*100 -> 101.5545483 | P26: =Tab1.1_2013_GDP_P_Current!Q26/'Tab 1.2_2013_GDP_P_Constant'!P26*100 -> 101.4422026 | Q26: =Tab1.1_2013_GDP_P_Current!R26/'Tab 1.2_2013_GDP_P_Constant'!Q26*100 -> 101.5302513
A27: Q | B27: Human health and social work activities | C27: =Tab1.1_2013_GDP_P_Current!D27/'Tab 1.2_2013_GDP_P_Constant'!C27*100 -> 97.37291283 | D27: =Tab1.1_2013_GDP_P_Current!E27/'Tab 1.2_2013_GDP_P_Constant'!D27*100 -> 98.11093614 | E27: =Tab1.1_2013_GDP_P_Current!F27/'Tab 1.2_2013_GDP_P_Constant'!E27*100 -> 97.86165336 | F27: =Tab1.1_2013_GDP_P_Current!G27/'Tab 1.2_2013_GDP_P_Constant'!F27*100 -> 98.12801824 | G27: =Tab1.1_2013_GDP_P_Current!H27/'Tab 1.2_2013_GDP_P_Constant'!G27*100 -> 98.41296576 | H27: =Tab1.1_2013_GDP_P_Current!I27/'Tab 1.2_2013_GDP_P_Constant'!H27*100 -> 99.09548002 | I27: =Tab1.1_2013_GDP_P_Current!J27/'Tab 1.2_2013_GDP_P_Constant'!I27*100 -> 99.18511179 | J27: =Tab1.1_2013_GDP_P_Current!K27/'Tab 1.2_2013_GDP_P_Constant'!J27*100 -> 99.25188828 | K27: =Tab1.1_2013_GDP_P_Current!L27/'Tab 1.2_2013_GDP_P_Constant'!K27*100 -> 99.5732317 | L27: =Tab1.1_2013_GDP_P_Current!M27/'Tab 1.2_2013_GDP_P_Constant'!L27*100 -> 100 | M27: =Tab1.1_2013_GDP_P_Current!N27/'Tab 1.2_2013_GDP_P_Constant'!M27*100 -> 122.1626432 | N27: =Tab1.1_2013_GDP_P_Current!O27/'Tab 1.2_2013_GDP_P_Constant'!N27*100 -> 128.297699 | O27: =Tab1.1_2013_GDP_P_Current!P27/'Tab 1.2_2013_GDP_P_Constant'!O27*100 -> 131.4242344 | P27: =Tab1.1_2013_GDP_P_Current!Q27/'Tab 1.2_2013_GDP_P_Constant'!P27*100 -> 132.7774571 | Q27: =Tab1.1_2013_GDP_P_Current!R27/'Tab 1.2_2013_GDP_P_Constant'!Q27*100 -> 134.2442288
A28: R | B28: Arts, entertainment and recreation | C28: =Tab1.1_2013_GDP_P_Current!D28/'Tab 1.2_2013_GDP_P_Constant'!C28*100 -> 88.01388392 | D28: =Tab1.1_2013_GDP_P_Current!E28/'Tab 1.2_2013_GDP_P_Constant'!D28*100 -> 89.14496126 | E28: =Tab1.1_2013_GDP_P_Current!F28/'Tab 1.2_2013_GDP_P_Constant'!E28*100 -> 90.18839023 | F28: =Tab1.1_2013_GDP_P_Current!G28/'Tab 1.2_2013_GDP_P_Constant'!F28*100 -> 91.10824551 | G28: =Tab1.1_2013_GDP_P_Current!H28/'Tab 1.2_2013_GDP_P_Constant'!G28*100 -> 91.49844622 | H28: =Tab1.1_2013_GDP_P_Current!I28/'Tab 1.2_2013_GDP_P_Constant'!H28*100 -> 92.30896146 | I28: =Tab1.1_2013_GDP_P_Current!J28/'Tab 1.2_2013_GDP_P_Constant'!I28*100 -> 93.41291132 | J28: =Tab1.1_2013_GDP_P_Current!K28/'Tab 1.2_2013_GDP_P_Constant'!J28*100 -> 94.82855536 | K28: =Tab1.1_2013_GDP_P_Current!L28/'Tab 1.2_2013_GDP_P_Constant'!K28*100 -> 97.24932481 | L28: =Tab1.1_2013_GDP_P_Current!M28/'Tab 1.2_2013_GDP_P_Constant'!L28*100 -> 100 | M28: =Tab1.1_2013_GDP_P_Current!N28/'Tab 1.2_2013_GDP_P_Constant'!M28*100 -> 101.7860185 | N28: =Tab1.1_2013_GDP_P_Current!O28/'Tab 1.2_2013_GDP_P_Constant'!N28*100 -> 103.9358123 | O28: =Tab1.1_2013_GDP_P_Current!P28/'Tab 1.2_2013_GDP_P_Constant'!O28*100 -> 108.3329427 | P28: =Tab1.1_2013_GDP_P_Current!Q28/'Tab 1.2_2013_GDP_P_Constant'!P28*100 -> 114.7463952 | Q28: =Tab1.1_2013_GDP_P_Current!R28/'Tab 1.2_2013_GDP_P_Constant'!Q28*100 -> 124.0736087
A29: S | B29: Other service activities | C29: =Tab1.1_2013_GDP_P_Current!D29/'Tab 1.2_2013_GDP_P_Constant'!C29*100 -> 88.01388392 | D29: =Tab1.1_2013_GDP_P_Current!E29/'Tab 1.2_2013_GDP_P_Constant'!D29*100 -> 89.14496126 | E29: =Tab1.1_2013_GDP_P_Current!F29/'Tab 1.2_2013_GDP_P_Constant'!E29*100 -> 90.18839023 | F29: =Tab1.1_2013_GDP_P_Current!G29/'Tab 1.2_2013_GDP_P_Constant'!F29*100 -> 91.10824551 | G29: =Tab1.1_2013_GDP_P_Current!H29/'Tab 1.2_2013_GDP_P_Constant'!G29*100 -> 91.49844622 | H29: =Tab1.1_2013_GDP_P_Current!I29/'Tab 1.2_2013_GDP_P_Constant'!H29*100 -> 92.30896146 | I29: =Tab1.1_2013_GDP_P_Current!J29/'Tab 1.2_2013_GDP_P_Constant'!I29*100 -> 93.41291132 | J29: =Tab1.1_2013_GDP_P_Current!K29/'Tab 1.2_2013_GDP_P_Constant'!J29*100 -> 94.82855536 | K29: =Tab1.1_2013_GDP_P_Current!L29/'Tab 1.2_2013_GDP_P_Constant'!K29*100 -> 97.24932481 | L29: =Tab1.1_2013_GDP_P_Current!M29/'Tab 1.2_2013_GDP_P_Constant'!L29*100 -> 100 | M29: =Tab1.1_2013_GDP_P_Current!N29/'Tab 1.2_2013_GDP_P_Constant'!M29*100 -> 103.5957725 | N29: =Tab1.1_2013_GDP_P_Current!O29/'Tab 1.2_2013_GDP_P_Constant'!N29*100 -> 108.40597 | O29: =Tab1.1_2013_GDP_P_Current!P29/'Tab 1.2_2013_GDP_P_Constant'!O29*100 -> 114.8600429 | P29: =Tab1.1_2013_GDP_P_Current!Q29/'Tab 1.2_2013_GDP_P_Constant'!P29*100 -> 121.8081517 | Q29: =Tab1.1_2013_GDP_P_Current!R29/'Tab 1.2_2013_GDP_P_Constant'!Q29*100 -> 128.6681653
B30: GDP basic price (Gross Value Added) | C30: =Tab1.1_2013_GDP_P_Current!D30/'Tab 1.2_2013_GDP_P_Constant'!C30*100 -> 69.85616666 | D30: =Tab1.1_2013_GDP_P_Current!E30/'Tab 1.2_2013_GDP_P_Constant'!D30*100 -> 73.04057411 | E30: =Tab1.1_2013_GDP_P_Current!F30/'Tab 1.2_2013_GDP_P_Constant'!E30*100 -> 73.29207241 | F30: =Tab1.1_2013_GDP_P_Current!G30/'Tab 1.2_2013_GDP_P_Constant'!F30*100 -> 76.12635112 | G30: =Tab1.1_2013_GDP_P_Current!H30/'Tab 1.2_2013_GDP_P_Constant'!G30*100 -> 78.92914812 | H30: =Tab1.1_2013_GDP_P_Current!I30/'Tab 1.2_2013_GDP_P_Constant'!H30*100 -> 81.70682085 | I30: =Tab1.1_2013_GDP_P_Current!J30/'Tab 1.2_2013_GDP_P_Constant'!I30*100 -> 87.44406829 | J30: =Tab1.1_2013_GDP_P_Current!K30/'Tab 1.2_2013_GDP_P_Constant'!J30*100 -> 91.10825741 | K30: =Tab1.1_2013_GDP_P_Current!L30/'Tab 1.2_2013_GDP_P_Constant'!K30*100 -> 94.84088044 | L30: =Tab1.1_2013_GDP_P_Current!M30/'Tab 1.2_2013_GDP_P_Constant'!L30*100 -> 100 | M30: =Tab1.1_2013_GDP_P_Current!N30/'Tab 1.2_2013_GDP_P_Constant'!M30*100 -> 103.9893862 | N30: =Tab1.1_2013_GDP_P_Current!O30/'Tab 1.2_2013_GDP_P_Constant'!N30*100 -> 113.0312598 | O30: =Tab1.1_2013_GDP_P_Current!P30/'Tab 1.2_2013_GDP_P_Constant'!O30*100 -> 122.3447003 | P30: =Tab1.1_2013_GDP_P_Current!Q30/'Tab 1.2_2013_GDP_P_Constant'!P30*100 -> 128.168532 | Q30: =Tab1.1_2013_GDP_P_Current!R30/'Tab 1.2_2013_GDP_P_Constant'!Q30*100 -> 134.2631398
B31: Taxes less subsidies on products (+) | C31: =Tab1.1_2013_GDP_P_Current!D31/'Tab 1.2_2013_GDP_P_Constant'!C31*100 -> 68.35237202 | D31: =Tab1.1_2013_GDP_P_Current!E31/'Tab 1.2_2013_GDP_P_Constant'!D31*100 -> 66.4860045 | E31: =Tab1.1_2013_GDP_P_Current!F31/'Tab 1.2_2013_GDP_P_Constant'!E31*100 -> 77.87221768 | F31: =Tab1.1_2013_GDP_P_Current!G31/'Tab 1.2_2013_GDP_P_Constant'!F31*100 -> 87.21340813 | G31: =Tab1.1_2013_GDP_P_Current!H31/'Tab 1.2_2013_GDP_P_Constant'!G31*100 -> 75.79542853 | H31: =Tab1.1_2013_GDP_P_Current!I31/'Tab 1.2_2013_GDP_P_Constant'!H31*100 -> 90.88730616 | I31: =Tab1.1_2013_GDP_P_Current!J31/'Tab 1.2_2013_GDP_P_Constant'!I31*100 -> 79.3148412 | J31: =Tab1.1_2013_GDP_P_Current!K31/'Tab 1.2_2013_GDP_P_Constant'!J31*100 -> 88.00763968 | K31: =Tab1.1_2013_GDP_P_Current!L31/'Tab 1.2_2013_GDP_P_Constant'!K31*100 -> 88.18236121 | L31: =Tab1.1_2013_GDP_P_Current!M31/'Tab 1.2_2013_GDP_P_Constant'!L31*100 -> 100 | M31: =Tab1.1_2013_GDP_P_Current!N31/'Tab 1.2_2013_GDP_P_Constant'!M31*100 -> 121.9520805 | N31: =Tab1.1_2013_GDP_P_Current!O31/'Tab 1.2_2013_GDP_P_Constant'!N31*100 -> 148.3590655 | O31: =Tab1.1_2013_GDP_P_Current!P31/'Tab 1.2_2013_GDP_P_Constant'!O31*100 -> 153.4759595 | P31: =Tab1.1_2013_GDP_P_Current!Q31/'Tab 1.2_2013_GDP_P_Constant'!P31*100 -> 145.435446 | Q31: =Tab1.1_2013_GDP_P_Current!R31/'Tab 1.2_2013_GDP_P_Constant'!Q31*100 -> 160.8849073
B34: 2018* Provisional data
